Date the Expenditure was incurred,Local authority department which incurred the expenditure,SUPPLIER_DESC,Summary of the purpose of the expenditure,Amount,Vat,"Merchant category (eg. Computers, software etc)"
PAYMENT_DATE,DEPART_DESC,SUPPLIER_DESC,ANALYSIS_DESC,AMOUNT,Vat,ACCOUNT_DESC
02/12/2016,City Developments and Neighbourhood,De Montfort Hall,Room & Space Hire & Entertainment Services,831.50,166.30,Room & Space Hire & Entertainment Services
03/01/2017,Adults & Housing Department,Anchor Trust,Sheltered Housing - ILS,"3,513.48",0.00,Sheltered Housing - ILS
03/01/2017,Education & Childrens Services,Hopwells Ltd,Catering - Provisions,"29,900.67",0.00,Catering Provisions / Food & Drink
03/01/2017,Education & Childrens Services,Hopwells Ltd,Catering - Provisions,"1,284.90",256.98,Catering Provisions / Food & Drink
03/01/2017,Education & Childrens Services,Pasta King UK Ltd,Catering - Provisions,610.30,0.00,Catering Provisions / Food & Drink
03/01/2017,Education & Childrens Services,Total Gas and Power,Electricity Bills,756.75,0.00,Electricity Utilities
03/01/2017,Education & Childrens Services,Total Produce Foodservice,Catering - Provisions,"9,024.05",0.00,Catering Provisions / Food & Drink
04/01/2017,Adults & Housing Department,A.L.A.Care Ltd,Residential Permanent,"1,780.00",0.00,Residential Care
04/01/2017,Adults & Housing Department,A.L.A.Care Ltd,Residential Permanent,"1,780.00",0.00,Residential Care
04/01/2017,Adults & Housing Department,Aarons Unit,Continuing Health Care Contribution - Nursing Care,"1,275.00",0.00,Continuing Health Care Contribution - Nursing Care
04/01/2017,Adults & Housing Department,Aarons Unit,Continuing Health Care Contribution - Nursing Care,"1,229.46",0.00,Continuing Health Care Contribution - Nursing Care
04/01/2017,Adults & Housing Department,Aarons Unit,Continuing Health Care Contribution - Nursing Care,"3,972.00",0.00,Continuing Health Care Contribution - Nursing Care
04/01/2017,Adults & Housing Department,Aarons Unit,Continuing Health Care Contribution - Nursing Care,"3,830.14",0.00,Continuing Health Care Contribution - Nursing Care
04/01/2017,Adults & Housing Department,Aarons Unit,Residential Permanent,"5,420.00",0.00,Residential Care
04/01/2017,Adults & Housing Department,Aarons Unit,Residential Permanent,"1,780.00",0.00,Residential Care
04/01/2017,Adults & Housing Department,Aarons Unit,Residential Permanent,"1,780.00",0.00,Residential Care
04/01/2017,Adults & Housing Department,Aarons Unit,Residential Permanent,"5,364.00",0.00,Residential Care
04/01/2017,Adults & Housing Department,Abberdale House,Residential Permanent,"1,900.00",0.00,Residential Care
04/01/2017,Adults & Housing Department,Abberdale House,Residential Permanent,"1,900.00",0.00,Residential Care
04/01/2017,Adults & Housing Department,Abberdale House,Residential Permanent,"1,704.00",0.00,Residential Care
04/01/2017,Adults & Housing Department,Abberdale House,Residential Permanent,"1,704.00",0.00,Residential Care
04/01/2017,Adults & Housing Department,Abberdale House,Residential Permanent,"1,900.00",0.00,Residential Care
04/01/2017,Adults & Housing Department,Abberdale House,Residential Permanent,"1,704.00",0.00,Residential Care
04/01/2017,Adults & Housing Department,Abberdale House,Residential Permanent,"1,704.00",0.00,Residential Care
04/01/2017,Adults & Housing Department,Abberdale House,Residential Permanent,"1,900.00",0.00,Residential Care
04/01/2017,Adults & Housing Department,Abberdale House,Residential Permanent,"1,900.00",0.00,Residential Care
04/01/2017,Adults & Housing Department,Abberdale House,Residential Permanent,"1,900.00",0.00,Residential Care
04/01/2017,Adults & Housing Department,Abberdale House,Residential Permanent,"1,704.00",0.00,Residential Care
04/01/2017,Adults & Housing Department,Abberdale House,Residential Permanent,"1,900.00",0.00,Residential Care
04/01/2017,Adults & Housing Department,Abberdale House,Residential Permanent,"1,153.57",0.00,Residential Care
04/01/2017,Adults & Housing Department,Abberdale House,Residential Permanent,"1,704.00",0.00,Residential Care
04/01/2017,Adults & Housing Department,Abberdale House,Residential Permanent,"1,900.00",0.00,Residential Care
04/01/2017,Adults & Housing Department,Abberdale House,Residential Permanent,"1,900.00",0.00,Residential Care
04/01/2017,Adults & Housing Department,Abberdale House,Residential Permanent,"1,900.00",0.00,Residential Care
04/01/2017,Adults & Housing Department,Abberdale House,Residential Permanent,"1,900.00",0.00,Residential Care
04/01/2017,Adults & Housing Department,Abbey Healthcare T/a Aaron Court,Nursing Permanent,"1,852.00",0.00,Nursing Care
04/01/2017,Adults & Housing Department,Abbey Healthcare T/a Aaron Court,Nursing Permanent,"1,856.00",0.00,Nursing Care
04/01/2017,Adults & Housing Department,Abbey Healthcare T/a Aaron Court,Nursing Permanent,"1,852.00",0.00,Nursing Care
04/01/2017,Adults & Housing Department,Abbey Healthcare T/a Aaron Court,Nursing Permanent,"1,852.00",0.00,Nursing Care
04/01/2017,Adults & Housing Department,Abbey Healthcare T/a Aaron Court,Nursing Permanent,"1,896.00",0.00,Nursing Care
04/01/2017,Adults & Housing Department,Abbey Healthcare T/a Aaron Court,Nursing Permanent,"1,852.00",0.00,Nursing Care
04/01/2017,Adults & Housing Department,Abbey Healthcare T/a Aaron Court,Nursing Permanent,"1,852.00",0.00,Nursing Care
04/01/2017,Adults & Housing Department,Abbey Healthcare T/a Aaron Court,Nursing Permanent,"1,852.00",0.00,Nursing Care
04/01/2017,Adults & Housing Department,Abbey Healthcare T/a Aaron Court,Nursing Permanent,"1,896.00",0.00,Nursing Care
04/01/2017,Adults & Housing Department,Abbey Healthcare T/a Aaron Court,Nursing Permanent,"1,852.00",0.00,Nursing Care
04/01/2017,Adults & Housing Department,Abbey Healthcare T/a Aaron Court,Nursing Permanent,"1,852.00",0.00,Nursing Care
04/01/2017,Adults & Housing Department,Abbey Healthcare T/a Aaron Court,Residential Permanent,"1,704.00",0.00,Residential Care
04/01/2017,Adults & Housing Department,Abbey Healthcare T/a Aaron Court,Residential Permanent,"1,316.00",0.00,Residential Care
04/01/2017,Adults & Housing Department,Abbey Healthcare T/a Aaron Court,Residential Permanent,"1,428.00",0.00,Residential Care
04/01/2017,Adults & Housing Department,Abbey Healthcare T/a Aaron Court,Residential Permanent,"1,900.00",0.00,Residential Care
04/01/2017,Adults & Housing Department,Abbey Healthcare T/a Aaron Court,Residential Permanent,"1,704.00",0.00,Residential Care
04/01/2017,Adults & Housing Department,Abbey Healthcare T/a Aaron Court,Residential Permanent,"1,704.00",0.00,Residential Care
04/01/2017,Adults & Housing Department,Abbey Healthcare T/a Aaron Court,Residential Permanent,"1,900.00",0.00,Residential Care
04/01/2017,Adults & Housing Department,Abbey Healthcare T/a Aaron Court,Residential Permanent,"1,900.00",0.00,Residential Care
04/01/2017,Adults & Housing Department,Abbey Healthcare T/a Aaron Court,Residential Permanent,"1,900.00",0.00,Residential Care
04/01/2017,Adults & Housing Department,Abbey Healthcare T/a Aaron Court,Residential Permanent,"1,704.00",0.00,Residential Care
04/01/2017,Adults & Housing Department,Abbey Healthcare T/a Aaron Court,Residential Permanent,"1,704.00",0.00,Residential Care
04/01/2017,Adults & Housing Department,Abbey Healthcare T/a Aaron Court,Residential Permanent,"1,704.00",0.00,Residential Care
04/01/2017,Adults & Housing Department,Abbey Healthcare T/a Aaron Court,Residential Permanent,"1,704.00",0.00,Residential Care
04/01/2017,Adults & Housing Department,Abbey Healthcare T/a Aaron Court,Residential Respite,608.57,0.00,Residential Care
04/01/2017,Adults & Housing Department,ABBEY HOUSE,Residential Permanent,"1,704.00",0.00,Residential Care
04/01/2017,Adults & Housing Department,ABBEY HOUSE,Residential Permanent,"1,732.00",0.00,Residential Care
04/01/2017,Adults & Housing Department,ABBEY HOUSE,Residential Permanent,"1,900.00",0.00,Residential Care
04/01/2017,Adults & Housing Department,ABBEY HOUSE,Residential Permanent,"1,900.00",0.00,Residential Care
04/01/2017,Adults & Housing Department,ABBEY HOUSE,Residential Permanent,"1,732.00",0.00,Residential Care
04/01/2017,Adults & Housing Department,ABBEY HOUSE,Residential Permanent,"1,732.00",0.00,Residential Care
04/01/2017,Adults & Housing Department,ABBEY HOUSE,Residential Permanent,"1,704.00",0.00,Residential Care
04/01/2017,Adults & Housing Department,ABBEY HOUSE,Residential Permanent,"1,704.00",0.00,Residential Care
04/01/2017,Adults & Housing Department,ABBEY HOUSE,Residential Permanent,"1,704.00",0.00,Residential Care
04/01/2017,Adults & Housing Department,ABBEY HOUSE,Residential Permanent,"1,900.00",0.00,Residential Care
04/01/2017,Adults & Housing Department,ABBEY HOUSE,Residential Permanent,"1,900.00",0.00,Residential Care
04/01/2017,Adults & Housing Department,ABBEY HOUSE,Residential Permanent,"1,704.00",0.00,Residential Care
04/01/2017,Adults & Housing Department,ABBEY HOUSE,Residential Permanent,"1,704.00",0.00,Residential Care
04/01/2017,Adults & Housing Department,ABBEY HOUSE,Residential Permanent,"1,704.00",0.00,Residential Care
04/01/2017,Adults & Housing Department,ABBEY HOUSE,Residential Permanent,"1,900.00",0.00,Residential Care
04/01/2017,Adults & Housing Department,ABBEY HOUSE,Residential Permanent,"1,704.00",0.00,Residential Care
04/01/2017,Adults & Housing Department,ABBEY HOUSE,Residential Permanent,"1,900.00",0.00,Residential Care
04/01/2017,Adults & Housing Department,ABBEY HOUSE,Residential Permanent,"1,900.00",0.00,Residential Care
04/01/2017,Adults & Housing Department,ABBEY HOUSE,Residential Permanent,"1,704.00",0.00,Residential Care
04/01/2017,Adults & Housing Department,ABBEY HOUSE,Residential Permanent,"1,704.00",0.00,Residential Care
04/01/2017,Adults & Housing Department,ABBEY HOUSE,Residential Permanent,"1,704.00",0.00,Residential Care
04/01/2017,Adults & Housing Department,ABBEY HOUSE,Residential Respite,"1,704.00",0.00,Residential Care
04/01/2017,Adults & Housing Department,ABBEY HOUSE,Residential Short Stay,"1,582.29",0.00,Residential Care
04/01/2017,Adults & Housing Department,ABBEY HOUSE,Residential Short Stay,912.86,0.00,Residential Care
04/01/2017,Adults & Housing Department,ABBEY HOUSE,Residential Short Stay,"1,156.29",0.00,Residential Care
04/01/2017,Adults & Housing Department,ABBEY HOUSE,Residential Short Stay,587.14,0.00,Residential Care
04/01/2017,Adults & Housing Department,ABBEY HOUSE,Residential Short Stay,"1,704.00",0.00,Residential Care
04/01/2017,Adults & Housing Department,ABBEY HOUSE,Residential Short Stay,"1,704.00",0.00,Residential Care
04/01/2017,Adults & Housing Department,ABBEY HOUSE,Residential Short Stay,852.00,0.00,Residential Care
04/01/2017,Adults & Housing Department,Abbotsford Care Ltd T/a Diamond House,Residential Permanent,"1,900.00",0.00,Residential Care
04/01/2017,Adults & Housing Department,Abbotsford Care Ltd T/a Diamond House,Residential Permanent,"1,704.00",0.00,Residential Care
04/01/2017,Adults & Housing Department,Abbotsford Care Ltd T/a Diamond House,Residential Permanent,596.00,0.00,Residential Care
04/01/2017,Adults & Housing Department,Abbotsford Care Ltd T/a Diamond House,Residential Permanent,"1,704.00",0.00,Residential Care
04/01/2017,Adults & Housing Department,Abbotsford Care Ltd T/a Diamond House,Residential Permanent,"1,900.00",0.00,Residential Care
04/01/2017,Adults & Housing Department,Abbotsford Care Ltd T/a Diamond House,Residential Permanent,596.00,0.00,Residential Care
04/01/2017,Adults & Housing Department,Abbotsford Care Ltd T/a Diamond House,Residential Permanent,"1,704.00",0.00,Residential Care
04/01/2017,Adults & Housing Department,Abbotsford Care Ltd T/a Diamond House,Residential Permanent,596.00,0.00,Residential Care
04/01/2017,Adults & Housing Department,Abbotsford Care Ltd T/a Diamond House,Residential Permanent,596.00,0.00,Residential Care
04/01/2017,Adults & Housing Department,Abbotsford Care Ltd T/a Diamond House,Residential Permanent,"1,704.00",0.00,Residential Care
04/01/2017,Adults & Housing Department,Abbotsford Care Ltd T/a Diamond House,Residential Permanent,"1,704.00",0.00,Residential Care
04/01/2017,Adults & Housing Department,Abbotsford Care Ltd T/a Diamond House,Residential Permanent,596.00,0.00,Residential Care
04/01/2017,Adults & Housing Department,Abbotsford Care Ltd T/a Diamond House,Residential Permanent,"1,704.00",0.00,Residential Care
04/01/2017,Adults & Housing Department,Abbotsford Care Ltd T/a Diamond House,Residential Permanent,"1,900.00",0.00,Residential Care
04/01/2017,Adults & Housing Department,Abbotsford Care Ltd T/a Diamond House,Residential Permanent,"1,900.00",0.00,Residential Care
04/01/2017,Adults & Housing Department,Abbotsford Care Ltd T/a Diamond House,Residential Permanent,596.00,0.00,Residential Care
04/01/2017,Adults & Housing Department,Abbotsford Care Ltd T/a Diamond House,Residential Permanent,596.00,0.00,Residential Care
04/01/2017,Adults & Housing Department,Abbotsford Care Ltd T/a Diamond House,Residential Permanent,"1,900.00",0.00,Residential Care
04/01/2017,Adults & Housing Department,Abbotsford Care Ltd T/a Diamond House,Residential Permanent,596.00,0.00,Residential Care
04/01/2017,Adults & Housing Department,Abbotsford Care Ltd T/a Diamond House,Residential Permanent,"1,704.00",0.00,Residential Care
04/01/2017,Adults & Housing Department,Abbotsford Care Ltd T/a Diamond House,Residential Permanent,"1,900.00",0.00,Residential Care
04/01/2017,Adults & Housing Department,Abbotsford Care Ltd T/a Diamond House,Residential Permanent,"1,704.00",0.00,Residential Care
04/01/2017,Adults & Housing Department,Abbotsford Care Ltd T/a Diamond House,Residential Permanent,596.00,0.00,Residential Care
04/01/2017,Adults & Housing Department,Abbotsford Care Ltd T/a Diamond House,Residential Permanent,"1,704.00",0.00,Residential Care
04/01/2017,Adults & Housing Department,Abbotsford Care Ltd T/a Diamond House,Residential Permanent,"1,704.00",0.00,Residential Care
04/01/2017,Adults & Housing Department,Abbotsford Care Ltd T/a Diamond House,Residential Permanent,"1,704.00",0.00,Residential Care
04/01/2017,Adults & Housing Department,Abbotsford Care Ltd T/a Diamond House,Residential Permanent,"1,704.00",0.00,Residential Care
04/01/2017,Adults & Housing Department,Abbotsford Care Ltd T/a Diamond House,Residential Permanent,"1,704.00",0.00,Residential Care
04/01/2017,Adults & Housing Department,Abbotsford Care Ltd T/a Diamond House,Residential Permanent,"1,704.00",0.00,Residential Care
04/01/2017,Adults & Housing Department,Abbotsford Care Ltd T/a Diamond House,Residential Permanent,"1,900.00",0.00,Residential Care
04/01/2017,Adults & Housing Department,Abbotsford Care Ltd T/a Diamond House,Residential Permanent,"1,900.00",0.00,Residential Care
04/01/2017,Adults & Housing Department,Abbotsford Care Ltd T/a Diamond House,Residential Permanent,596.00,0.00,Residential Care
04/01/2017,Adults & Housing Department,Abbotsford Care Ltd T/a Diamond House,Residential Permanent,"1,900.00",0.00,Residential Care
04/01/2017,Adults & Housing Department,Abbotsford Care Ltd T/a Diamond House,Residential Respite,852.00,0.00,Residential Care
04/01/2017,,ADT Fire & Security plc,Building Works - Alterations,"1,832.36",366.47,Building Works - Alterations
04/01/2017,,ADT Fire & Security plc,Building Works - Alterations,"2,161.36",432.27,Building Works - Alterations
04/01/2017,City Developments and Neighbourhood,ADT Fire & Security plc,Responsive,"1,509.43",301.89,Building Services / Repairs & Maintenance  Fixtures & Fittings
04/01/2017,City Developments and Neighbourhood,ADT Fire & Security plc,Responsive,"1,312.43",262.49,Building Services / Repairs & Maintenance  Fixtures & Fittings
04/01/2017,City Developments and Neighbourhood,ADT Fire & Security plc,Servicing,"1,041.00",208.20,Building Services / Repairs & Maintenance  Fixtures & Fittings
04/01/2017,City Developments and Neighbourhood,Aggregate Industries UK Ltd,Materials Purchase,"1,184.49",236.90,Materials Purchase
04/01/2017,City Developments and Neighbourhood,Aggregate Industries UK Ltd,Materials Purchase,"1,652.34",330.47,Materials Purchase
04/01/2017,Adults & Housing Department,Ala Care Ltd,Residential Permanent,"1,900.00",0.00,Residential Care
04/01/2017,Education & Childrens Services,Al-Aqsa Primary School,Neg Pvt Vol & Ind Providers,"37,453.99",0.00,Voluntary Organisations
04/01/2017,Education & Childrens Services,Al-Islamia Pre-School,Neg Pvt Vol & Ind Providers,"15,964.20",0.00,Voluntary Organisations
04/01/2017,Adults & Housing Department,ALLAG CARE LIMITED T/AS SYCAMORE COTTAGE,Residential Permanent,"3,220.00",0.00,Residential Care
04/01/2017,Adults & Housing Department,ALLAG CARE LIMITED T/AS SYCAMORE COTTAGE,Residential Permanent,"1,780.00",0.00,Residential Care
04/01/2017,Adults & Housing Department,ALLAG CARE LIMITED T/AS SYCAMORE COTTAGE,Residential Permanent,"1,780.00",0.00,Residential Care
04/01/2017,Education & Childrens Services,Allexton Day Nursery Ltd,Neg Pvt Vol & Ind Providers,"16,019.15",0.00,Voluntary Organisations
04/01/2017,Adults & Housing Department,AMAFHH HEALTHCARE LTD T/A QUARRY HILL GRANGE RESIDENTIAL HOME,Residential Permanent,"1,436.00",0.00,Residential Care
04/01/2017,Adults & Housing Department,Amberwood Residential Care Home,Residential Permanent,"1,944.00",0.00,Residential Care
04/01/2017,Education & Childrens Services,ANGELS PRESCHOOL,Neg Pvt Vol & Ind Providers,"9,900.00",0.00,Voluntary Organisations
04/01/2017,Adults & Housing Department,Arbor House,Interim Residential (Delayed Discharges),950.00,0.00,Residential Care
04/01/2017,Adults & Housing Department,Arbor House,Residential Permanent,"1,704.00",0.00,Residential Care
04/01/2017,Adults & Housing Department,Arbor House,Residential Permanent,"1,704.00",0.00,Residential Care
04/01/2017,Adults & Housing Department,Arbor House,Residential Permanent,669.43,0.00,Residential Care
04/01/2017,Adults & Housing Department,Arbor House,Residential Permanent,"1,704.00",0.00,Residential Care
04/01/2017,Adults & Housing Department,Arbor House,Residential Permanent,"1,704.00",0.00,Residential Care
04/01/2017,Adults & Housing Department,Arbor House,Residential Permanent,"1,900.00",0.00,Residential Care
04/01/2017,Adults & Housing Department,Arbor House,Residential Permanent,"1,704.00",0.00,Residential Care
04/01/2017,Adults & Housing Department,Arbor House,Residential Permanent,"1,704.00",0.00,Residential Care
04/01/2017,Adults & Housing Department,Arbor House,Residential Permanent,"1,900.00",0.00,Residential Care
04/01/2017,Adults & Housing Department,Arbor House,Residential Permanent,"1,704.00",0.00,Residential Care
04/01/2017,Adults & Housing Department,Arbor House,Residential Permanent,921.16,0.00,Residential Care
04/01/2017,Adults & Housing Department,Arbor House,Residential Permanent,"1,900.00",0.00,Residential Care
04/01/2017,Adults & Housing Department,Arbor House,Residential Permanent,"1,704.00",0.00,Residential Care
04/01/2017,Adults & Housing Department,Arbor House,Residential Permanent,"1,704.00",0.00,Residential Care
04/01/2017,Adults & Housing Department,Arbor House,Residential Permanent,"1,704.00",0.00,Residential Care
04/01/2017,Adults & Housing Department,Arbor House,Residential Permanent,"1,704.00",0.00,Residential Care
04/01/2017,Adults & Housing Department,Arbor House,Residential Permanent,"1,704.00",0.00,Residential Care
04/01/2017,Adults & Housing Department,Arbor House,Residential Permanent,"1,900.00",0.00,Residential Care
04/01/2017,Adults & Housing Department,Arbor House,Residential Permanent,"1,900.00",0.00,Residential Care
04/01/2017,Adults & Housing Department,Arbor House,Residential Permanent,"1,900.00",0.00,Residential Care
04/01/2017,Adults & Housing Department,Arbor House,Residential Permanent,"1,900.00",0.00,Residential Care
04/01/2017,Adults & Housing Department,Arbor House,Residential Permanent,"1,704.00",0.00,Residential Care
04/01/2017,Adults & Housing Department,Arbor House,Residential Permanent,"1,704.00",0.00,Residential Care
04/01/2017,Adults & Housing Department,Arbor House,Residential Permanent,"1,704.00",0.00,Residential Care
04/01/2017,Adults & Housing Department,Arbor House,Residential Permanent,"1,704.00",0.00,Residential Care
04/01/2017,Adults & Housing Department,Arbor House,Residential Permanent,"1,704.00",0.00,Residential Care
04/01/2017,Adults & Housing Department,Arbor House,Residential Permanent,"1,704.00",0.00,Residential Care
04/01/2017,Adults & Housing Department,Arbor House,Residential Permanent,"1,704.00",0.00,Residential Care
04/01/2017,Adults & Housing Department,Arbor House,Residential Permanent,"1,704.00",0.00,Residential Care
04/01/2017,Adults & Housing Department,Arbor House,Residential Permanent,"1,704.00",0.00,Residential Care
04/01/2017,Adults & Housing Department,Arbor House,Residential Permanent,"1,704.00",0.00,Residential Care
04/01/2017,Adults & Housing Department,Arbor House,Residential Short Stay,"1,704.00",0.00,Residential Care
04/01/2017,Adults & Housing Department,Arbor House,Residential Short Stay,669.43,0.00,Residential Care
04/01/2017,Adults & Housing Department,Arbor House,Residential Short Stay,"1,521.43",0.00,Residential Care
04/01/2017,,Arcadis LLP,Consultant Fees,"11,046.00","2,209.20",Consultant Fees
04/01/2017,Education & Childrens Services,Ash Field Academy,Management & Business & Administrative Services,"13,184.50",0.00,Management & Business & Administrative Services
04/01/2017,Adults & Housing Department,ASHINGTON GRANGE,Nursing Permanent,"1,684.72",0.00,Nursing Care
04/01/2017,Adults & Housing Department,Ashleigh Nursing Home,Nursing Permanent,"1,852.00",0.00,Nursing Care
04/01/2017,Adults & Housing Department,Ashleigh Nursing Home,Nursing Permanent,"1,852.00",0.00,Nursing Care
04/01/2017,Adults & Housing Department,Ashleigh Nursing Home,Nursing Permanent,"1,852.00",0.00,Nursing Care
04/01/2017,Adults & Housing Department,Ashleigh Nursing Home,Nursing Permanent,"1,852.00",0.00,Nursing Care
04/01/2017,Adults & Housing Department,Ashleigh Nursing Home,Nursing Permanent,"1,852.00",0.00,Nursing Care
04/01/2017,Adults & Housing Department,Ashleigh Nursing Home,Nursing Permanent,"1,852.00",0.00,Nursing Care
04/01/2017,Adults & Housing Department,Ashleigh Nursing Home,Residential Permanent,"1,873.12",0.00,Residential Care
04/01/2017,Adults & Housing Department,Ashleigh Nursing Home,Residential Permanent,"1,900.00",0.00,Residential Care
04/01/2017,City Developments and Neighbourhood,Ashtead Plant Hire Co Ltd T/A Eve Trakway,Plant Hire/Lease,"1,782.00",356.40,Equipment Hire / Lease
04/01/2017,Adults & Housing Department,Ashton Lodge,Residential Permanent,"1,704.00",0.00,Residential Care
04/01/2017,Adults & Housing Department,Ashton Lodge,Residential Permanent,"1,900.00",0.00,Residential Care
04/01/2017,Adults & Housing Department,Ashton Lodge,Residential Permanent,"1,900.00",0.00,Residential Care
04/01/2017,Adults & Housing Department,Ashton Lodge,Residential Permanent,"1,900.00",0.00,Residential Care
04/01/2017,Adults & Housing Department,Ashton Lodge,Residential Permanent,"1,900.00",0.00,Residential Care
04/01/2017,Adults & Housing Department,Ashton Lodge,Residential Permanent,"1,704.00",0.00,Residential Care
04/01/2017,Adults & Housing Department,Ashton Lodge,Residential Permanent,"1,704.00",0.00,Residential Care
04/01/2017,Adults & Housing Department,Ashton Lodge,Residential Permanent,"1,900.00",0.00,Residential Care
04/01/2017,Adults & Housing Department,Ashton Lodge,Residential Permanent,"1,528.00",0.00,Residential Care
04/01/2017,Adults & Housing Department,Ashton Lodge,Residential Permanent,"1,704.00",0.00,Residential Care
04/01/2017,Adults & Housing Department,Ashton Lodge,Residential Permanent,"1,900.00",0.00,Residential Care
04/01/2017,Adults & Housing Department,Ashton Lodge,Residential Permanent,"1,460.57",0.00,Residential Care
04/01/2017,Adults & Housing Department,Ashton Lodge,Residential Permanent,"1,704.00",0.00,Residential Care
04/01/2017,Adults & Housing Department,Ashton Lodge,Residential Permanent,"1,900.00",0.00,Residential Care
04/01/2017,Adults & Housing Department,Ashton Lodge,Residential Permanent,"1,900.00",0.00,Residential Care
04/01/2017,Adults & Housing Department,Ashton Lodge,Residential Permanent,"1,704.00",0.00,Residential Care
04/01/2017,Adults & Housing Department,Ashton Lodge,Residential Permanent,"1,704.00",0.00,Residential Care
04/01/2017,Adults & Housing Department,Ashton Lodge,Residential Permanent,"1,704.00",0.00,Residential Care
04/01/2017,Adults & Housing Department,Ashton Lodge,Residential Respite,"1,644.00",0.00,Residential Care
04/01/2017,Adults & Housing Department,Ashton Lodge,Residential Respite,"1,056.86",0.00,Residential Care
04/01/2017,Adults & Housing Department,Ashton Lodge,Residential Respite,"1,704.00",0.00,Residential Care
04/01/2017,Adults & Housing Department,Ashton Lodge,Residential Short Stay,"1,696.43",0.00,Residential Care
04/01/2017,Adults & Housing Department,Ashton Lodge,Residential Short Stay,852.00,0.00,Residential Care
04/01/2017,Adults & Housing Department,Ashton Lodge,Residential Short Stay,678.57,0.00,Residential Care
04/01/2017,City Developments and Neighbourhood,AT Services Ltd,Servicing,541.31,108.26,Building Services / Repairs & Maintenance  Fixtures & Fittings
04/01/2017,Adults & Housing Department,Autism Care (Uk) Ltd,Residential Permanent,"6,302.32",0.00,Residential Care
04/01/2017,Adults & Housing Department,Autism Plus Ltd,Residential Permanent,"9,156.20",0.00,Residential Care
04/01/2017,Adults & Housing Department,Avery Homes Grantham Ltd,Residential Permanent,"1,920.00",0.00,Residential Care
04/01/2017,Adults & Housing Department,Aylesham Court Nursing Home,Nursing Permanent,600.00,0.00,Nursing Care
04/01/2017,Adults & Housing Department,Aylesham Court Nursing Home,Nursing Permanent,"1,736.00",0.00,Nursing Care
04/01/2017,Adults & Housing Department,Aylesham Court Nursing Home,Nursing Permanent,"1,736.00",0.00,Nursing Care
04/01/2017,Adults & Housing Department,Aylesham Court Nursing Home,Nursing Permanent,"1,993.20",0.00,Nursing Care
04/01/2017,Adults & Housing Department,Aylesham Court Nursing Home,Residential Permanent,804.00,0.00,Residential Care
04/01/2017,Adults & Housing Department,Aylesham Court Nursing Home,Residential Permanent,"1,596.00",0.00,Residential Care
04/01/2017,Adults & Housing Department,Aylesham Court Nursing Home,Residential Permanent,"1,436.00",0.00,Residential Care
04/01/2017,Adults & Housing Department,AYLESTONE GRANGE,Residential Permanent,"1,900.00",0.00,Residential Care
04/01/2017,Adults & Housing Department,AYLESTONE GRANGE,Residential Permanent,"1,900.00",0.00,Residential Care
04/01/2017,Adults & Housing Department,AYLESTONE GRANGE,Residential Permanent,"1,738.96",0.00,Residential Care
04/01/2017,Adults & Housing Department,AYLESTONE GRANGE,Residential Permanent,"2,381.24",0.00,Residential Care
04/01/2017,Adults & Housing Department,AYLESTONE GRANGE,Residential Permanent,"1,528.00",0.00,Residential Care
04/01/2017,Adults & Housing Department,AYLESTONE GRANGE,Residential Permanent,"2,298.56",0.00,Residential Care
04/01/2017,Adults & Housing Department,AYLESTONE GRANGE,Residential Permanent,"1,900.00",0.00,Residential Care
04/01/2017,Adults & Housing Department,AYLESTONE GRANGE,Residential Permanent,"2,509.48",0.00,Residential Care
04/01/2017,City Developments and Neighbourhood,B&Q Plc,Gift certificates / vouchers / cards,"4,078.74",815.75,Printed & Electronic Media
04/01/2017,City Developments and Neighbourhood,Balfour Beatty Living Places Ltd,Project - Hire Equipment / Events,"5,100.16","1,020.03",Project - Equipment Hire / Lease
04/01/2017,City Developments and Neighbourhood,Balfour Beatty Living Places Ltd,Project - Hire Equipment / Events,"3,519.07",703.81,Project - Equipment Hire / Lease
04/01/2017,Adults & Housing Department,Barchester Healthcare Homes Ltd T/a Hurstwood View,Residential Permanent,"1,856.00",0.00,Residential Care
04/01/2017,Adults & Housing Department,BARCLAY HOUSE,Residential Permanent,"1,855.20",0.00,Residential Care
04/01/2017,Adults & Housing Department,BARCLAY HOUSE,Residential Permanent,"1,855.20",0.00,Residential Care
04/01/2017,Adults & Housing Department,BARCLAY HOUSE,Residential Permanent,"1,732.00",0.00,Residential Care
04/01/2017,Adults & Housing Department,BARCLAY HOUSE,Residential Permanent,"1,732.00",0.00,Residential Care
04/01/2017,Adults & Housing Department,Barkby Road Residential Home,Residential Permanent,"1,624.00",0.00,Residential Care
04/01/2017,Adults & Housing Department,Barkby Road Residential Home,Residential Permanent,"1,624.00",0.00,Residential Care
04/01/2017,Adults & Housing Department,Barkby Road Residential Home,Residential Permanent,"7,299.44",0.00,Residential Care
04/01/2017,Adults & Housing Department,Barkby Road Residential Home,Residential Permanent,"7,521.08",0.00,Residential Care
04/01/2017,Adults & Housing Department,Barkby Road Residential Home,Residential Permanent,"1,624.00",0.00,Residential Care
04/01/2017,Adults & Housing Department,Barkby Road Residential Home,Residential Permanent,"4,524.12",0.00,Residential Care
04/01/2017,Adults & Housing Department,Barkby Road Residential Home,Residential Permanent,"1,624.00",0.00,Residential Care
04/01/2017,Adults & Housing Department,Barkby Road Residential Home,Residential Permanent,"6,130.00",0.00,Residential Care
04/01/2017,Adults & Housing Department,Barkby Road Residential Home,Residential Permanent,"1,624.00",0.00,Residential Care
04/01/2017,Adults & Housing Department,Barkby Road Residential Home,Residential Permanent,"3,697.68",0.00,Residential Care
04/01/2017,Adults & Housing Department,Baron Park Nursing Home,Nursing Permanent,"3,193.72",0.00,Nursing Care
04/01/2017,Adults & Housing Department,Baron Park Nursing Home,Nursing Permanent,"1,700.00",0.00,Nursing Care
04/01/2017,Adults & Housing Department,Baron Park Nursing Home,Nursing Permanent,"1,700.00",0.00,Nursing Care
04/01/2017,Adults & Housing Department,Baron Park Nursing Home,Nursing Permanent,"1,700.00",0.00,Nursing Care
04/01/2017,Adults & Housing Department,Baron Park Nursing Home,Nursing Permanent,"3,120.72",0.00,Nursing Care
04/01/2017,Education & Childrens Services,Beanstalk Day Nursery,Neg Pvt Vol & Ind Providers,"6,678.00",0.00,Voluntary Organisations
04/01/2017,Adults & Housing Department,BEECH TREES,Residential Permanent,"5,846.20",0.00,Residential Care
04/01/2017,Adults & Housing Department,BEECH TREES,Residential Permanent,"1,676.00",0.00,Residential Care
04/01/2017,Adults & Housing Department,Berrystead Nursing Home,Nursing Permanent,"1,504.00",0.00,Nursing Care
04/01/2017,Adults & Housing Department,Berrystead Nursing Home,Residential Permanent,"1,780.00",0.00,Residential Care
04/01/2017,Adults & Housing Department,Berrystead Nursing Home,Residential Permanent,"1,660.00",0.00,Residential Care
04/01/2017,Adults & Housing Department,Berrystead Nursing Home,Residential Permanent,"1,660.00",0.00,Residential Care
04/01/2017,Education & Childrens Services,Beva Day Care,Neg Pvt Vol & Ind Providers,"3,527.02",0.00,Voluntary Organisations
04/01/2017,Education & Childrens Services,Blossoms Private Day Nursery,Neg Pvt Vol & Ind Providers,"21,172.90",0.00,Voluntary Organisations
04/01/2017,Adults & Housing Department,BODNANT HOUSE,Residential Permanent,"1,528.00",0.00,Residential Care
04/01/2017,Adults & Housing Department,BODNANT HOUSE,Residential Permanent,"1,704.00",0.00,Residential Care
04/01/2017,Adults & Housing Department,BODNANT HOUSE,Residential Permanent,"1,528.00",0.00,Residential Care
04/01/2017,Adults & Housing Department,BODNANT HOUSE,Residential Permanent,609.00,0.00,Residential Care
04/01/2017,Adults & Housing Department,BODNANT HOUSE,Residential Permanent,"1,218.00",0.00,Residential Care
04/01/2017,Adults & Housing Department,BODNANT HOUSE,Residential Permanent,"1,732.00",0.00,Residential Care
04/01/2017,Adults & Housing Department,BODNANT HOUSE,Residential Respite,"1,732.00",0.00,Residential Care
04/01/2017,Adults & Housing Department,BODNANT HOUSE,Residential Respite,866.00,0.00,Residential Care
04/01/2017,Adults & Housing Department,Bosworth Court Nursing Home,Residential Permanent,"1,780.00",0.00,Residential Care
04/01/2017,Adults & Housing Department,Bosworth Court Nursing Home,Residential Permanent,"1,780.00",0.00,Residential Care
04/01/2017,Adults & Housing Department,Bosworth Court Nursing Home,Residential Permanent,720.00,0.00,Residential Care
04/01/2017,Education & Childrens Services,Breedon House Nurseries Ltd -  River View,Neg Pvt Vol & Ind Providers,"29,149.78",0.00,Voluntary Organisations
04/01/2017,Education & Childrens Services,Bright Bees Beaumont Lodge,Neg Pvt Vol & Ind Providers,"5,047.00",0.00,Voluntary Organisations
04/01/2017,Education & Childrens Services,Bright Bees Netherhall,Neg Pvt Vol & Ind Providers,"12,854.17",0.00,Voluntary Organisations
04/01/2017,Education & Childrens Services,Bright Bees Nursery Ltd,Neg Pvt Vol & Ind Providers,"40,810.63",0.00,Voluntary Organisations
04/01/2017,Adults & Housing Department,Brooklyn Care Home,Residential Permanent,"1,624.00",0.00,Residential Care
04/01/2017,Adults & Housing Department,Brooklyn Care Home,Residential Permanent,"9,704.00",0.00,Residential Care
04/01/2017,Corporate Resources & Support,Browne Jacobson LLP,3rd Party Solicitors Costs,801.96,0.00,Legal Fees & Charges
04/01/2017,Adults & Housing Department,Bupa Carehomes (Cfh Care) Ltd,Residential Permanent,"1,596.00",0.00,Residential Care
04/01/2017,Adults & Housing Department,BURGESS CARE LTD,Residential Permanent,"1,624.00",0.00,Residential Care
04/01/2017,Adults & Housing Department,BURGESS CARE LTD,Residential Permanent,"4,362.00",0.00,Residential Care
04/01/2017,Adults & Housing Department,BURGESS CARE LTD,Residential Permanent,"6,560.00",0.00,Residential Care
04/01/2017,Education & Childrens Services,Chatterbox Pre-School,Neg Pvt Vol & Ind Providers,"19,711.44",0.00,Voluntary Organisations
04/01/2017,Adults & Housing Department,Cheer Health Ltd T/A London Rd,Nursing Respite,595.29,0.00,Nursing Care
04/01/2017,Adults & Housing Department,Cheer Health Ltd T/A London Rd,Nursing Respite,"3,500.00",0.00,Nursing Care
04/01/2017,Adults & Housing Department,Cheer Health Ltd T/A London Rd,Nursing Respite,"3,500.00",0.00,Nursing Care
04/01/2017,Adults & Housing Department,Cheer Health Ltd T/A London Rd,Nursing Respite,"1,125.00",0.00,Nursing Care
04/01/2017,Adults & Housing Department,Cheer Health Ltd T/A London Rd,Nursing Respite,"3,500.00",0.00,Nursing Care
04/01/2017,Adults & Housing Department,Cheer Health Ltd T/A London Rd,Nursing Respite,"1,852.00",0.00,Nursing Care
04/01/2017,Adults & Housing Department,Cheer Health Ltd T/A London Rd,Nursing Respite,"1,792.00",0.00,Nursing Care
04/01/2017,Adults & Housing Department,Cheer Health Ltd T/A London Rd,Nursing Respite,"1,792.00",0.00,Nursing Care
04/01/2017,Adults & Housing Department,Cheer Health Ltd T/A London Rd,Nursing Respite,"3,500.00",0.00,Nursing Care
04/01/2017,Adults & Housing Department,Cheer Health Ltd T/A London Rd,Nursing Respite,"1,792.00",0.00,Nursing Care
04/01/2017,Adults & Housing Department,Cherre Residential Care,Residential Permanent,"1,732.00",0.00,Residential Care
04/01/2017,Adults & Housing Department,Cherre Residential Care,Residential Permanent,"2,394.16",0.00,Residential Care
04/01/2017,Adults & Housing Department,Cherre Residential Care,Residential Permanent,"1,732.00",0.00,Residential Care
04/01/2017,Adults & Housing Department,Cherre Residential Care,Residential Permanent,"3,254.40",0.00,Residential Care
04/01/2017,Adults & Housing Department,Cherre Residential Care,Residential Permanent,"1,732.00",0.00,Residential Care
04/01/2017,Adults & Housing Department,Cherre Residential Care,Residential Permanent,"11,585.76",0.00,Residential Care
04/01/2017,Adults & Housing Department,Cherre Residential Care,Residential Permanent,649.88,0.00,Residential Care
04/01/2017,Adults & Housing Department,Cherre Residential Care,Residential Permanent,"1,732.00",0.00,Residential Care
04/01/2017,Adults & Housing Department,Cherre Residential Care,Residential Permanent,"3,197.60",0.00,Residential Care
04/01/2017,Adults & Housing Department,Cherre Residential Care,Residential Permanent,"1,732.00",0.00,Residential Care
04/01/2017,Adults & Housing Department,Cherre Residential Care,Residential Permanent,"1,732.00",0.00,Residential Care
04/01/2017,Adults & Housing Department,Cherre Residential Care,Residential Permanent,"7,728.76",0.00,Residential Care
04/01/2017,Adults & Housing Department,Cherre Residential Care,Residential Permanent,"1,732.00",0.00,Residential Care
04/01/2017,Adults & Housing Department,Cherre Residential Care,Residential Permanent,"1,732.00",0.00,Residential Care
04/01/2017,Education & Childrens Services,Cherry Tree Day Nursery,Neg Pvt Vol & Ind Providers,"13,236.30",0.00,Voluntary Organisations
04/01/2017,Adults & Housing Department,Cherrytree,Residential Permanent,"1,780.00",0.00,Residential Care
04/01/2017,Adults & Housing Department,Cherrytree,Residential Permanent,"1,596.00",0.00,Residential Care
04/01/2017,Adults & Housing Department,Chestnuts (Arnesby) Ltd,Residential Permanent,"1,732.00",0.00,Residential Care
04/01/2017,Adults & Housing Department,Chestnuts (Arnesby) Ltd,Residential Permanent,"1,900.00",0.00,Residential Care
04/01/2017,Adults & Housing Department,Chestnuts (Arnesby) Ltd,Residential Permanent,"1,732.00",0.00,Residential Care
04/01/2017,Adults & Housing Department,Chestnuts (Arnesby) Ltd,Residential Permanent,"1,835.84",0.00,Residential Care
04/01/2017,Adults & Housing Department,Chestnuts (Arnesby) Ltd,Residential Permanent,"2,716.28",0.00,Residential Care
04/01/2017,Adults & Housing Department,Chestnuts (Arnesby) Ltd,Residential Permanent,"2,398.76",0.00,Residential Care
04/01/2017,Adults & Housing Department,Chestnuts (Arnesby) Ltd,Residential Respite,"3,420.00",0.00,Residential Care
04/01/2017,Adults & Housing Department,Chestnuts (Arnesby) Ltd,Residential Respite,"1,836.00",0.00,Residential Care
04/01/2017,Adults & Housing Department,Chestnuts (Arnesby) Ltd,Residential Respite,"1,836.00",0.00,Residential Care
04/01/2017,Adults & Housing Department,Chestnuts (Arnesby) Ltd,Residential Respite,"3,420.00",0.00,Residential Care
04/01/2017,Adults & Housing Department,Chestnuts (Arnesby) Ltd,Residential Respite,"2,442.86",0.00,Residential Care
04/01/2017,Adults & Housing Department,Chestnuts (Arnesby) Ltd,Residential Respite,"1,836.00",0.00,Residential Care
04/01/2017,Adults & Housing Department,Chestnuts (Arnesby) Ltd,Residential Respite,"3,420.00",0.00,Residential Care
04/01/2017,Adults & Housing Department,Chestnuts (Arnesby) Ltd,Residential Respite,"3,420.00",0.00,Residential Care
04/01/2017,Adults & Housing Department,Chestnuts (Arnesby) Ltd,Residential Respite,"2,931.43",0.00,Residential Care
04/01/2017,Adults & Housing Department,Chestnuts (Arnesby) Ltd,Residential Respite,"1,573.71",0.00,Residential Care
04/01/2017,Adults & Housing Department,Chestnuts (Arnesby) Ltd,Residential Respite,"1,836.00",0.00,Residential Care
04/01/2017,Adults & Housing Department,Chestnuts (Arnesby) Ltd,Residential Respite,"1,357.14",0.00,Residential Care
04/01/2017,Adults & Housing Department,Chhg Ltd T/A Gretton Homes,Residential Permanent,"1,592.00",0.00,Residential Care
04/01/2017,Adults & Housing Department,Chhg Ltd T/A Gretton Homes,Residential Permanent,"5,720.00",0.00,Residential Care
04/01/2017,Adults & Housing Department,Chhg Ltd T/A Gretton Homes,Residential Permanent,"7,602.12",0.00,Residential Care
04/01/2017,Education & Childrens Services,Childcare Company Leicester Lt,Neg Pvt Vol & Ind Providers,"24,970.94",0.00,Voluntary Organisations
04/01/2017,Education & Childrens Services,Children in Mind,Residential Placements,"24,134.33",0.00,Other Agencies
04/01/2017,Adults & Housing Department,Christchurch Court,Residential Permanent,"6,950.57",0.00,Residential Care
04/01/2017,Adults & Housing Department,Christchurch Court,Residential Permanent,"1,624.00",0.00,Residential Care
04/01/2017,Adults & Housing Department,Christchurch Court,Residential Permanent,"7,044.00",0.00,Residential Care
04/01/2017,Adults & Housing Department,Christchurch Court,Residential Permanent,"7,011.48",0.00,Residential Care
04/01/2017,Adults & Housing Department,CLARENDON MEWS CARE LIMITED,Interim Residential (Delayed Discharges),"1,704.00",0.00,Residential Care
04/01/2017,Adults & Housing Department,CLARENDON MEWS CARE LIMITED,Interim Residential (Delayed Discharges),669.43,0.00,Residential Care
04/01/2017,Adults & Housing Department,CLARENDON MEWS CARE LIMITED,Residential Permanent,"1,704.00",0.00,Residential Care
04/01/2017,Adults & Housing Department,CLARENDON MEWS CARE LIMITED,Residential Permanent,"1,900.00",0.00,Residential Care
04/01/2017,Adults & Housing Department,CLARENDON MEWS CARE LIMITED,Residential Permanent,"1,900.00",0.00,Residential Care
04/01/2017,Adults & Housing Department,CLARENDON MEWS CARE LIMITED,Residential Permanent,"1,900.00",0.00,Residential Care
04/01/2017,Adults & Housing Department,CLARENDON MEWS CARE LIMITED,Residential Permanent,"1,357.14",0.00,Residential Care
04/01/2017,Adults & Housing Department,CLARENDON MEWS CARE LIMITED,Residential Permanent,"1,704.00",0.00,Residential Care
04/01/2017,Adults & Housing Department,CLARENDON MEWS CARE LIMITED,Residential Permanent,"1,900.00",0.00,Residential Care
04/01/2017,Adults & Housing Department,CLARENDON MEWS CARE LIMITED,Residential Permanent,"1,900.00",0.00,Residential Care
04/01/2017,Adults & Housing Department,CLARENDON MEWS CARE LIMITED,Residential Permanent,"1,900.00",0.00,Residential Care
04/01/2017,Adults & Housing Department,CLARENDON MEWS CARE LIMITED,Residential Permanent,"1,704.00",0.00,Residential Care
04/01/2017,Adults & Housing Department,CLARENDON MEWS CARE LIMITED,Residential Permanent,"1,704.00",0.00,Residential Care
04/01/2017,Adults & Housing Department,CLARENDON MEWS CARE LIMITED,Residential Permanent,"1,900.00",0.00,Residential Care
04/01/2017,Adults & Housing Department,CLARENDON MEWS CARE LIMITED,Residential Permanent,"1,704.00",0.00,Residential Care
04/01/2017,Adults & Housing Department,CLARENDON MEWS CARE LIMITED,Residential Permanent,"1,704.00",0.00,Residential Care
04/01/2017,Adults & Housing Department,CLARENDON MEWS CARE LIMITED,Residential Permanent,"1,900.00",0.00,Residential Care
04/01/2017,Adults & Housing Department,CLARENDON MEWS CARE LIMITED,Residential Permanent,"1,704.00",0.00,Residential Care
04/01/2017,Adults & Housing Department,CLARENDON MEWS CARE LIMITED,Residential Permanent,"1,900.00",0.00,Residential Care
04/01/2017,Adults & Housing Department,CLARENDON MEWS CARE LIMITED,Residential Permanent,"1,704.00",0.00,Residential Care
04/01/2017,Adults & Housing Department,CLARENDON MEWS CARE LIMITED,Residential Permanent,"1,704.00",0.00,Residential Care
04/01/2017,Adults & Housing Department,CLARENDON MEWS CARE LIMITED,Residential Permanent,672.00,0.00,Residential Care
04/01/2017,Adults & Housing Department,CLARENDON MEWS CARE LIMITED,Residential Permanent,"1,704.00",0.00,Residential Care
04/01/2017,Adults & Housing Department,CLARENDON MEWS CARE LIMITED,Residential Permanent,"1,704.00",0.00,Residential Care
04/01/2017,Adults & Housing Department,CLARENDON MEWS CARE LIMITED,Residential Permanent,"1,704.00",0.00,Residential Care
04/01/2017,Adults & Housing Department,CLARENDON MEWS CARE LIMITED,Residential Permanent,"1,704.00",0.00,Residential Care
04/01/2017,Adults & Housing Department,CLARENDON MEWS CARE LIMITED,Residential Permanent,"1,900.00",0.00,Residential Care
04/01/2017,Adults & Housing Department,CLARENDON MEWS CARE LIMITED,Residential Permanent,"1,900.00",0.00,Residential Care
04/01/2017,Adults & Housing Department,CLARENDON MEWS CARE LIMITED,Residential Permanent,"1,900.00",0.00,Residential Care
04/01/2017,Adults & Housing Department,CLARENDON MEWS CARE LIMITED,Residential Short Stay,"1,034.57",0.00,Residential Care
04/01/2017,Adults & Housing Department,CLARENDON MEWS CARE LIMITED,Residential Short Stay,"1,156.29",0.00,Residential Care
04/01/2017,Adults & Housing Department,Community Living Project,Residential Permanent,"1,592.00",0.00,Residential Care
04/01/2017,Adults & Housing Department,Community Living Project,Residential Permanent,"2,804.40",0.00,Residential Care
04/01/2017,Adults & Housing Department,Community Living Project,Residential Permanent,"3,660.00",0.00,Residential Care
04/01/2017,Education & Childrens Services,Compass Fostering Central Ltd,Parenting Assessments,"5,092.99",0.00,Other Agencies
04/01/2017,Adults & Housing Department,Conifer Lodge Ltd,Residential Permanent,"2,016.00",0.00,Residential Care
04/01/2017,Adults & Housing Department,COOPER HOUSE,Interim Residential (Delayed Discharges),852.00,0.00,Residential Care
04/01/2017,Adults & Housing Department,COOPER HOUSE,Interim Residential (Delayed Discharges),730.29,0.00,Residential Care
04/01/2017,Adults & Housing Department,COOPER HOUSE,Interim Residential (Delayed Discharges),852.00,0.00,Residential Care
04/01/2017,Adults & Housing Department,COOPER HOUSE,Residential Permanent,"1,900.00",0.00,Residential Care
04/01/2017,Adults & Housing Department,COOPER HOUSE,Residential Permanent,"1,704.00",0.00,Residential Care
04/01/2017,Adults & Housing Department,COOPER HOUSE,Residential Permanent,"1,704.00",0.00,Residential Care
04/01/2017,Adults & Housing Department,COOPER HOUSE,Residential Permanent,"1,704.00",0.00,Residential Care
04/01/2017,Adults & Housing Department,COOPER HOUSE,Residential Permanent,"1,704.00",0.00,Residential Care
04/01/2017,Adults & Housing Department,COOPER HOUSE,Residential Permanent,"1,704.00",0.00,Residential Care
04/01/2017,Adults & Housing Department,COOPER HOUSE,Residential Permanent,"1,704.00",0.00,Residential Care
04/01/2017,Adults & Housing Department,COOPER HOUSE,Residential Permanent,"1,704.00",0.00,Residential Care
04/01/2017,Adults & Housing Department,COOPER HOUSE,Residential Permanent,"1,704.00",0.00,Residential Care
04/01/2017,Adults & Housing Department,COOPER HOUSE,Residential Permanent,"1,704.00",0.00,Residential Care
04/01/2017,Adults & Housing Department,COOPER HOUSE,Residential Permanent,"1,704.00",0.00,Residential Care
04/01/2017,Adults & Housing Department,COOPER HOUSE,Residential Permanent,"1,704.00",0.00,Residential Care
04/01/2017,Adults & Housing Department,COOPER HOUSE,Residential Permanent,"1,900.00",0.00,Residential Care
04/01/2017,Adults & Housing Department,COOPER HOUSE,Residential Permanent,"1,900.00",0.00,Residential Care
04/01/2017,Adults & Housing Department,COOPER HOUSE,Residential Permanent,"1,704.00",0.00,Residential Care
04/01/2017,Adults & Housing Department,COOPER HOUSE,Residential Permanent,"1,704.00",0.00,Residential Care
04/01/2017,Adults & Housing Department,COOPER HOUSE,Residential Permanent,"1,704.00",0.00,Residential Care
04/01/2017,Adults & Housing Department,COOPER HOUSE,Residential Permanent,"1,704.00",0.00,Residential Care
04/01/2017,Adults & Housing Department,COOPER HOUSE,Residential Permanent,"1,900.00",0.00,Residential Care
04/01/2017,Adults & Housing Department,COOPER HOUSE,Residential Permanent,"1,704.00",0.00,Residential Care
04/01/2017,Adults & Housing Department,COOPER HOUSE,Residential Permanent,684.40,0.00,Residential Care
04/01/2017,Adults & Housing Department,COOPER HOUSE,Residential Permanent,"1,900.00",0.00,Residential Care
04/01/2017,Adults & Housing Department,COOPER HOUSE,Residential Short Stay,"1,153.57",0.00,Residential Care
04/01/2017,Adults & Housing Department,COOPER HOUSE,Residential Short Stay,"1,832.14",0.00,Residential Care
04/01/2017,Adults & Housing Department,COOPER HOUSE,Residential Short Stay,"1,696.43",0.00,Residential Care
04/01/2017,Adults & Housing Department,COOPER HOUSE,Residential Short Stay,"1,900.00",0.00,Residential Care
04/01/2017,Adults & Housing Department,Craegmoor Facilities Co Ltd t/a Craegmoor Charnwood Lodge,Residential Permanent,"1,660.00",0.00,Residential Care
04/01/2017,Adults & Housing Department,Craegmoor Facilities Co Ltd t/a Craegmoor Charnwood Lodge,Residential Permanent,"9,532.00",0.00,Residential Care
04/01/2017,Adults & Housing Department,Craegmoor Facilities Co Ltd t/a Craegmoor Charnwood Lodge,Residential Permanent,"1,780.00",0.00,Residential Care
04/01/2017,Adults & Housing Department,Craegmoor Facilities Co Ltd t/a Craegmoor Charnwood Lodge,Residential Permanent,"3,522.20",0.00,Residential Care
04/01/2017,Adults & Housing Department,Craegmoor Facilities Co Ltd t/a Craegmoor Landsdowne Road,Residential Permanent,"1,732.00",0.00,Residential Care
04/01/2017,Adults & Housing Department,Craegmoor Facilities Co Ltd t/a Craegmoor Landsdowne Road,Residential Permanent,"1,732.00",0.00,Residential Care
04/01/2017,Adults & Housing Department,Craegmoor Facilities Co Ltd t/a Craegmoor Landsdowne Road,Residential Permanent,"1,732.00",0.00,Residential Care
04/01/2017,Adults & Housing Department,Craegmoor Facilities Co Ltd t/a Craegmoor Landsdowne Road,Residential Permanent,"1,169.08",0.00,Residential Care
04/01/2017,Adults & Housing Department,Craegmoor Facilities Co Ltd t/a Craegmoor Landsdowne Road,Residential Permanent,"1,732.00",0.00,Residential Care
04/01/2017,Adults & Housing Department,Craegmoor Facilities Co Ltd t/a Craegmoor Landsdowne Road,Residential Permanent,"1,732.00",0.00,Residential Care
04/01/2017,Adults & Housing Department,Craegmoor Facilities Co Ltd t/a Craegmoor Landsdowne Road,Residential Permanent,"1,732.00",0.00,Residential Care
04/01/2017,Adults & Housing Department,Craegmoor Facilities Co Ltd t/a Craegmoor Landsdowne Road,Residential Permanent,"1,732.00",0.00,Residential Care
04/01/2017,Adults & Housing Department,Craegmoor Facilities Co Ltd t/a Craegmoor Landsdowne Road,Residential Permanent,"2,700.00",0.00,Residential Care
04/01/2017,Adults & Housing Department,Craegmoor Facilities Co Ltd t/a Craegmoor Landsdowne Road,Residential Permanent,"1,732.00",0.00,Residential Care
04/01/2017,Adults & Housing Department,Craegmoor Facilities Co Ltd t/a Craegmoor Landsdowne Road,Residential Permanent,"1,732.00",0.00,Residential Care
04/01/2017,Adults & Housing Department,Craegmoor Facilities Co Ltd t/a Craegmoor Landsdowne Road,Residential Permanent,"1,270.44",0.00,Residential Care
04/01/2017,Adults & Housing Department,Craegmoor Facilities Co Ltd t/a Craegmoor Landsdowne Road,Residential Permanent,"1,732.00",0.00,Residential Care
04/01/2017,Adults & Housing Department,Craegmoor Facilities Co Ltd t/a Craegmoor Landsdowne Road,Residential Permanent,"1,732.00",0.00,Residential Care
04/01/2017,Adults & Housing Department,Craegmoor Facilities Co Ltd t/a Craegmoor Landsdowne Road,Residential Permanent,"1,732.00",0.00,Residential Care
04/01/2017,Adults & Housing Department,Craegmoor Facilities Co Ltd t/a Craegmoor Landsdowne Road,Residential Permanent,"1,732.00",0.00,Residential Care
04/01/2017,Adults & Housing Department,Craegmoor Facilities Co Ltd t/a Craegmoor Landsdowne Road,Residential Permanent,"1,732.00",0.00,Residential Care
04/01/2017,Adults & Housing Department,Craegmoor Facilities Co Ltd t/a Craegmoor Landsdowne Road,Residential Permanent,"1,732.00",0.00,Residential Care
04/01/2017,Adults & Housing Department,Craegmoor Facilities Co Ltd t/a Craegmoor Landsdowne Road,Residential Permanent,"1,732.00",0.00,Residential Care
04/01/2017,Adults & Housing Department,Craegmoor Facilities Co Ltd t/a Craegmoor Landsdowne Road,Residential Permanent,"1,732.00",0.00,Residential Care
04/01/2017,Adults & Housing Department,Craegmoor Facilities Co Ltd t/a Craegmoor Landsdowne Road,Residential Permanent,"1,732.00",0.00,Residential Care
04/01/2017,Adults & Housing Department,Craegmoor Facilities Co Ltd t/a Craegmoor Landsdowne Road,Residential Permanent,920.92,0.00,Residential Care
04/01/2017,Adults & Housing Department,Craegmoor Facilities Co Ltd t/a Craegmoor Landsdowne Road,Residential Permanent,534.40,0.00,Residential Care
04/01/2017,Adults & Housing Department,Craegmoor Facilities Co Ltd t/a Craegmoor Landsdowne Road,Residential Permanent,"1,732.00",0.00,Residential Care
04/01/2017,Adults & Housing Department,Craegmoor Facilities Co Ltd t/a Craegmoor Landsdowne Road,Residential Permanent,"1,454.88",0.00,Residential Care
04/01/2017,Adults & Housing Department,Craegmoor Facilities Co Ltd t/a Craegmoor Landsdowne Road,Residential Permanent,"1,900.00",0.00,Residential Care
04/01/2017,Adults & Housing Department,Craegmoor Facilities Co Ltd t/a Craegmoor Landsdowne Road,Residential Permanent,"1,524.44",0.00,Residential Care
04/01/2017,Adults & Housing Department,Craegmoor Facilities Co Ltd t/a Craegmoor Landsdowne Road,Residential Permanent,"1,732.00",0.00,Residential Care
04/01/2017,Adults & Housing Department,Craegmoor Facilities Co Ltd t/a Craegmoor Landsdowne Road,Residential Permanent,"1,732.00",0.00,Residential Care
04/01/2017,Adults & Housing Department,Craegmoor Facilities Co Ltd t/a Craegmoor Landsdowne Road,Residential Respite,"1,732.00",0.00,Residential Care
04/01/2017,Adults & Housing Department,Craegmoor Facilities Co Ltd t/a Craegmoor Landsdowne Road,Residential Respite,"1,175.29",0.00,Residential Care
04/01/2017,Adults & Housing Department,Craegmoor Facilities Co Ltd t/a Craegmoor Landsdowne Road,Residential Respite,556.71,0.00,Residential Care
04/01/2017,Adults & Housing Department,Craegmoor Facilities Co Ltd t/a Craegmoor Landsdowne Road,Residential Respite,556.71,0.00,Residential Care
04/01/2017,Adults & Housing Department,Craegmoor Facilities Co Ltd t/a Craegmoor Tithe Barn & Stable Cottage,Residential Permanent,"6,628.00",0.00,Residential Care
04/01/2017,Adults & Housing Department,Craegmoor Facilities Co. Ltd t/a Craegmoor Halifax Drive,Residential Permanent,"1,732.00",0.00,Residential Care
04/01/2017,Adults & Housing Department,Craegmoor Facilities Co. Ltd t/a Craegmoor Halifax Drive,Residential Permanent,"1,732.00",0.00,Residential Care
04/01/2017,Adults & Housing Department,Craegmoor Facilities Co. Ltd t/a Craegmoor Halifax Drive,Residential Permanent,"1,732.00",0.00,Residential Care
04/01/2017,Adults & Housing Department,Craegmoor Facilities Co. Ltd t/a Craegmoor Halifax Drive,Residential Permanent,631.48,0.00,Residential Care
04/01/2017,Adults & Housing Department,Craegmoor Facilities Co. Ltd t/a Craegmoor Halifax Drive,Residential Permanent,"1,732.00",0.00,Residential Care
04/01/2017,Adults & Housing Department,Craegmoor Facilities Co. Ltd t/a Craegmoor Halifax Drive,Residential Permanent,"1,732.00",0.00,Residential Care
04/01/2017,Adults & Housing Department,Craegmoor Facilities Co. Ltd t/a Craegmoor Halifax Drive,Residential Permanent,"1,900.00",0.00,Residential Care
04/01/2017,Adults & Housing Department,Craegmoor Facilities Co. Ltd t/a Craegmoor Halifax Drive,Residential Permanent,"1,732.00",0.00,Residential Care
04/01/2017,Adults & Housing Department,Craegmoor Facilities Co. Ltd t/a Craegmoor Halifax Drive,Residential Permanent,"1,732.00",0.00,Residential Care
04/01/2017,Adults & Housing Department,Craegmoor Facilities Co. Ltd t/a Craegmoor Halifax Drive,Residential Permanent,"1,732.00",0.00,Residential Care
04/01/2017,Adults & Housing Department,Craegmoor Facilities Co. Ltd t/a Craegmoor Halifax Drive,Residential Permanent,"1,297.28",0.00,Residential Care
04/01/2017,Adults & Housing Department,Craegmoor Facilities Co. Ltd t/a Craegmoor Halifax Drive,Residential Permanent,"1,732.00",0.00,Residential Care
04/01/2017,Adults & Housing Department,Craegmoor Facilities Co. Ltd t/a Craegmoor Halifax Drive,Residential Permanent,"1,732.00",0.00,Residential Care
04/01/2017,Adults & Housing Department,Craegmoor Facilities Co. Ltd t/a Craegmoor Halifax Drive,Residential Permanent,"1,732.00",0.00,Residential Care
04/01/2017,Adults & Housing Department,Craegmoor Facilities Co. Ltd t/a Craegmoor Halifax Drive,Residential Permanent,"1,732.00",0.00,Residential Care
04/01/2017,Adults & Housing Department,Craegmoor Facilities Co. Ltd t/a Craegmoor Halifax Drive,Residential Permanent,"1,732.00",0.00,Residential Care
04/01/2017,Adults & Housing Department,Craegmoor Facilities Co. Ltd t/a Craegmoor Halifax Drive,Residential Permanent,"1,900.00",0.00,Residential Care
04/01/2017,Adults & Housing Department,Craegmoor Facilities Co. Ltd t/a Craegmoor Halifax Drive,Residential Permanent,"1,732.00",0.00,Residential Care
04/01/2017,Adults & Housing Department,Craegmoor Facilities Co. Ltd t/a Craegmoor Halifax Drive,Residential Permanent,"1,732.00",0.00,Residential Care
04/01/2017,Adults & Housing Department,Craegmoor Facilities Co. Ltd t/a Craegmoor Halifax Drive,Residential Permanent,"1,732.00",0.00,Residential Care
04/01/2017,Adults & Housing Department,Craegmoor Facilities Co. Ltd t/a Craegmoor Halifax Drive,Residential Permanent,"1,732.00",0.00,Residential Care
04/01/2017,Adults & Housing Department,Craegmoor Facilities Co. Ltd t/a Craegmoor Halifax Drive,Residential Permanent,958.80,0.00,Residential Care
04/01/2017,Adults & Housing Department,Craegmoor Facilities Co. Ltd t/a Craegmoor Halifax Drive,Residential Permanent,"1,732.00",0.00,Residential Care
04/01/2017,Adults & Housing Department,Craegmoor Facilities Co. Ltd t/a Craegmoor Halifax Drive,Residential Permanent,"1,129.92",0.00,Residential Care
04/01/2017,Adults & Housing Department,Craegmoor Facilities Co. Ltd t/a Craegmoor Halifax Drive,Residential Permanent,"1,732.00",0.00,Residential Care
04/01/2017,Adults & Housing Department,Craegmoor Facilities Co. Ltd t/a Craegmoor Halifax Drive,Residential Short Stay,"2,268.00",0.00,Residential Care
04/01/2017,Adults & Housing Department,Craegmoor Facilities Co. Ltd t/a Craegmoor Halifax Drive,Residential Short Stay,"1,732.00",0.00,Residential Care
04/01/2017,Adults & Housing Department,Craegmoor Facilities Co. Ltd t/a Craegmoor Halifax Drive,Residential Short Stay,"1,732.00",0.00,Residential Care
04/01/2017,Adults & Housing Department,Craegmoor Facilities Co. Ltd t/a Craegmoor Halifax Drive,Residential Short Stay,"1,732.00",0.00,Residential Care
04/01/2017,Adults & Housing Department,Craegmoor Healthcare Co. Ltd t/a The Meadows Nursing Home,Residential Permanent,"1,744.00",0.00,Residential Care
04/01/2017,Corporate Resources & Support,Critiqom Limited,Postage,"2,794.11",558.82,Postage
04/01/2017,Corporate Resources & Support,Critiqom Limited,Printing,"2,230.46",446.09,Printing & Copying
04/01/2017,Adults & Housing Department,CURTIS WESTON HOUSE,Residential Permanent,"1,436.00",0.00,Residential Care
04/01/2017,Adults & Housing Department,CURTIS WESTON HOUSE,Residential Permanent,"1,780.00",0.00,Residential Care
04/01/2017,City Developments and Neighbourhood,Curve,Marketing and Advertising,"3,314.00",662.80,Marketing & Advertising
04/01/2017,Education & Childrens Services,Daisy Base Childcare Unit,Neg Pvt Vol & Ind Providers,"13,320.00",0.00,Voluntary Organisations
04/01/2017,Adults & Housing Department,Dallington House,Residential Permanent,"1,596.00",0.00,Residential Care
04/01/2017,Adults & Housing Department,Dallington House,Residential Permanent,"1,436.00",0.00,Residential Care
04/01/2017,Adults & Housing Department,Dallington House,Residential Permanent,"1,596.00",0.00,Residential Care
04/01/2017,Adults & Housing Department,Damascus House,Residential Permanent,"1,624.00",0.00,Residential Care
04/01/2017,Education & Childrens Services,Daneshill Nursery,Neg Pvt Vol & Ind Providers,"8,806.00",0.00,Voluntary Organisations
04/01/2017,Adults & Housing Department,Deafway,Residential Permanent,"2,872.00",0.00,Residential Care
04/01/2017,Adults & Housing Department,Deafway,Residential Permanent,"4,680.00",0.00,Residential Care
04/01/2017,Adults & Housing Department,Deafway,Residential Permanent,"1,780.00",0.00,Residential Care
04/01/2017,Adults & Housing Department,Deafway,Residential Permanent,"3,260.00",0.00,Residential Care
04/01/2017,Adults & Housing Department,Devonshire Court,Nursing Permanent,"1,504.00",0.00,Nursing Care
04/01/2017,Adults & Housing Department,Devonshire Court,Residential Permanent,"1,596.00",0.00,Residential Care
04/01/2017,Adults & Housing Department,Diwali Ltd,Residential Permanent,"1,274.12",0.00,Residential Care
04/01/2017,Adults & Housing Department,Diwali Ltd,Residential Permanent,"1,900.00",0.00,Residential Care
04/01/2017,Adults & Housing Department,Diwali Ltd,Residential Permanent,"1,900.00",0.00,Residential Care
04/01/2017,Adults & Housing Department,Diwali Ltd,Residential Permanent,"1,900.00",0.00,Residential Care
04/01/2017,Adults & Housing Department,Diwali Ltd,Residential Permanent,"1,704.00",0.00,Residential Care
04/01/2017,Adults & Housing Department,Diwali Ltd,Residential Permanent,"1,704.00",0.00,Residential Care
04/01/2017,Adults & Housing Department,Diwali Ltd,Residential Permanent,"1,900.00",0.00,Residential Care
04/01/2017,Adults & Housing Department,Diwali Ltd,Residential Permanent,"1,900.00",0.00,Residential Care
04/01/2017,Adults & Housing Department,Diwali Ltd,Residential Permanent,"1,704.00",0.00,Residential Care
04/01/2017,Adults & Housing Department,Diwali Ltd,Residential Short Stay,"1,492.86",0.00,Residential Care
04/01/2017,Adults & Housing Department,Downing (Barwell) Ltd,Residential Permanent,"1,780.00",0.00,Residential Care
04/01/2017,City Developments and Neighbourhood,Duval FM Ltd.,Security & Safety Services,"1,164.00",232.80,Public Order & Security Services
04/01/2017,City Developments and Neighbourhood,Duval FM Ltd.,Security & Safety Services,698.40,139.68,Public Order & Security Services
04/01/2017,City Developments and Neighbourhood,EA Foulds Limited,Responsive,"4,000.00",800.00,Building Services / Repairs & Maintenance  Fixtures & Fittings
04/01/2017,Education & Childrens Services,Early Learners Nursery School,Neg Pvt Vol & Ind Providers,"9,649.50",0.00,Voluntary Organisations
04/01/2017,Adults & Housing Department,East Coast Recovery,Residential Short Stay,"1,022.86",0.00,Residential Care
04/01/2017,Adults & Housing Department,East Coast Recovery,Residential Short Stay,548.57,0.00,Residential Care
04/01/2017,Adults & Housing Department,Eastern Care Ltd T/a Newton House,Residential Permanent,"1,528.00",0.00,Residential Care
04/01/2017,Adults & Housing Department,Eastern Care Ltd T/a Newton House,Residential Permanent,"1,732.00",0.00,Residential Care
04/01/2017,Adults & Housing Department,Eastern Care Ltd T/a Newton House,Residential Permanent,"1,528.00",0.00,Residential Care
04/01/2017,Adults & Housing Department,Eastern Care Ltd T/a Newton House,Residential Permanent,"1,528.00",0.00,Residential Care
04/01/2017,Adults & Housing Department,Eastern Care Ltd T/a Newton House,Residential Permanent,"1,732.00",0.00,Residential Care
04/01/2017,Adults & Housing Department,Eastern Care Ltd T/a Newton House,Residential Permanent,"1,528.00",0.00,Residential Care
04/01/2017,Adults & Housing Department,Eastern Care Ltd T/a Newton House,Residential Permanent,"1,528.00",0.00,Residential Care
04/01/2017,Adults & Housing Department,Eastern Care Ltd T/a Newton House,Residential Permanent,"1,528.00",0.00,Residential Care
04/01/2017,Adults & Housing Department,Eastern Care Ltd T/a Newton House,Residential Permanent,"1,528.00",0.00,Residential Care
04/01/2017,Adults & Housing Department,Eastern Care Ltd T/a Newton House,Residential Permanent,"1,732.00",0.00,Residential Care
04/01/2017,Adults & Housing Department,Eastern Care Ltd T/a Newton House,Residential Permanent,"1,528.00",0.00,Residential Care
04/01/2017,Adults & Housing Department,Eastern Care Ltd T/a Newton House,Residential Permanent,"1,528.00",0.00,Residential Care
04/01/2017,Adults & Housing Department,Eastern Care Ltd T/a Newton House,Residential Permanent,"1,528.00",0.00,Residential Care
04/01/2017,Adults & Housing Department,Eastern Care Ltd T/a Newton House,Residential Permanent,"1,528.00",0.00,Residential Care
04/01/2017,Adults & Housing Department,Eastern Care Ltd T/a Newton House,Residential Permanent,"1,528.00",0.00,Residential Care
04/01/2017,Adults & Housing Department,Elliott Rest Homes,Adult Social Care only - Residential Homes,522.80,0.00,Residential Care
04/01/2017,Adults & Housing Department,Elliott Rest Homes,Adult Social Care only - Residential Homes,522.80,0.00,Residential Care
04/01/2017,Adults & Housing Department,Elliott Rest Homes,Adult Social Care only - Residential Homes,522.80,0.00,Residential Care
04/01/2017,Adults & Housing Department,Elliott Rest Homes,Adult Social Care only - Residential Homes,522.80,0.00,Residential Care
04/01/2017,Adults & Housing Department,Elliott Rest Homes,Adult Social Care only - Residential Homes,522.80,0.00,Residential Care
04/01/2017,Adults & Housing Department,Elliott Rest Homes,Residential Permanent,"1,900.00",0.00,Residential Care
04/01/2017,Adults & Housing Department,Elliott Rest Homes,Residential Permanent,"1,528.00",0.00,Residential Care
04/01/2017,Adults & Housing Department,Elliott Rest Homes,Residential Permanent,"1,732.00",0.00,Residential Care
04/01/2017,Adults & Housing Department,Elliott Rest Homes,Residential Permanent,"1,528.00",0.00,Residential Care
04/01/2017,Adults & Housing Department,Elliott Rest Homes,Residential Permanent,"1,732.00",0.00,Residential Care
04/01/2017,Adults & Housing Department,Elliott Rest Homes,Residential Permanent,"1,732.00",0.00,Residential Care
04/01/2017,Adults & Housing Department,Elliott Rest Homes,Residential Permanent,"1,528.00",0.00,Residential Care
04/01/2017,Adults & Housing Department,Elliott Rest Homes,Residential Permanent,"1,528.00",0.00,Residential Care
04/01/2017,Adults & Housing Department,Elliott Rest Homes,Residential Permanent,"1,528.00",0.00,Residential Care
04/01/2017,Adults & Housing Department,Elliott Rest Homes,Residential Permanent,"1,900.00",0.00,Residential Care
04/01/2017,Adults & Housing Department,Elliott Rest Homes,Residential Permanent,"1,900.00",0.00,Residential Care
04/01/2017,Adults & Housing Department,Elliott Rest Homes,Residential Respite,"1,900.00",0.00,Residential Care
04/01/2017,Adults & Housing Department,Elliott Rest Homes,Residential Short Stay,"1,732.00",0.00,Residential Care
04/01/2017,City Developments and Neighbourhood,Emperor Scaffolding Ltd,Project - Hire Equipment / Events,"2,430.00",486.00,Project - Equipment Hire / Lease
04/01/2017,Adults & Housing Department,English Oak Care Homes T/a Willow Lodge,Residential Permanent,"2,912.00",0.00,Residential Care
04/01/2017,Adults & Housing Department,Enham,Direct Payments - Managed Accounts,"7,088.10","1,417.62",Direct Payments
04/01/2017,Adults & Housing Department,Enham,Direct Payments - Payroll & Employment Advice,"5,086.85","1,017.37",Direct Payments
04/01/2017,Adults & Housing Department,Enham,Direct Payments - Recruitment & Selection,500.00,100.00,Direct Payments
04/01/2017,Adults & Housing Department,Espa Ltd,Residential Permanent,"4,685.72",0.00,Residential Care
04/01/2017,Adults & Housing Department,Etchells Signs Ltd,Furniture Purchase,"2,335.28",467.06,Furniture Purchase
04/01/2017,Adults & Housing Department,FIRSTSMILE LTD T/A FRAMLAND,Residential Permanent,"1,564.00",0.00,Residential Care
04/01/2017,Education & Childrens Services,Flipflops Childcare,Neg Pvt Vol & Ind Providers,"3,038.07",0.00,Voluntary Organisations
04/01/2017,Adults & Housing Department,Flora Lodge,Residential Permanent,"1,528.00",0.00,Residential Care
04/01/2017,Adults & Housing Department,Flora Lodge,Residential Permanent,"1,900.00",0.00,Residential Care
04/01/2017,Adults & Housing Department,Flora Lodge,Residential Permanent,"1,302.44",0.00,Residential Care
04/01/2017,Adults & Housing Department,Flora Lodge,Residential Permanent,"1,528.00",0.00,Residential Care
04/01/2017,Adults & Housing Department,Flora Lodge,Residential Permanent,"1,528.00",0.00,Residential Care
04/01/2017,Adults & Housing Department,Flora Lodge,Residential Permanent,"1,528.00",0.00,Residential Care
04/01/2017,Adults & Housing Department,Flora Lodge,Residential Permanent,"1,528.00",0.00,Residential Care
04/01/2017,Adults & Housing Department,Flora Lodge,Residential Permanent,"1,732.00",0.00,Residential Care
04/01/2017,Adults & Housing Department,Flora Lodge,Residential Permanent,"1,732.00",0.00,Residential Care
04/01/2017,Adults & Housing Department,Flora Lodge,Residential Permanent,"1,704.00",0.00,Residential Care
04/01/2017,Adults & Housing Department,Flora Lodge,Residential Permanent,"1,528.00",0.00,Residential Care
04/01/2017,City Developments and Neighbourhood,Fools Paradise Ltd,Artist's Fees,843.34,168.67,Performance Costs
04/01/2017,Adults & Housing Department,Foxton Grange,Nursing Permanent,"1,348.00",0.00,Nursing Care
04/01/2017,Adults & Housing Department,Foxton Grange,Nursing Permanent,"1,852.00",0.00,Nursing Care
04/01/2017,Adults & Housing Department,Foxton Grange,Nursing Permanent,"1,852.00",0.00,Nursing Care
04/01/2017,Adults & Housing Department,Foxton Grange,Nursing Permanent,"1,852.00",0.00,Nursing Care
04/01/2017,Adults & Housing Department,Foxton Grange,Residential Permanent,"1,900.00",0.00,Residential Care
04/01/2017,Adults & Housing Department,Foxton Grange,Residential Permanent,"1,900.00",0.00,Residential Care
04/01/2017,Adults & Housing Department,Foxton Grange,Residential Permanent,"1,900.00",0.00,Residential Care
04/01/2017,Adults & Housing Department,Foxton Grange,Residential Permanent,"1,704.00",0.00,Residential Care
04/01/2017,Adults & Housing Department,Foxton Grange,Residential Permanent,"1,704.00",0.00,Residential Care
04/01/2017,Adults & Housing Department,Foxton Grange,Residential Permanent,"1,704.00",0.00,Residential Care
04/01/2017,Adults & Housing Department,Foxton Grange,Residential Permanent,828.20,0.00,Residential Care
04/01/2017,Adults & Housing Department,Foxton Grange,Residential Permanent,"1,096.00",0.00,Residential Care
04/01/2017,Adults & Housing Department,FREEDOM CARE LTD T/AS THE CHANTRY,Residential Permanent,"5,797.40",0.00,Residential Care
04/01/2017,Adults & Housing Department,FREEDOM CARE LTD T/AS THE CHANTRY,Residential Permanent,"1,732.00",0.00,Residential Care
04/01/2017,Adults & Housing Department,FREEDOM CARE LTD T/AS THE CHANTRY,Residential Permanent,"7,683.08",0.00,Residential Care
04/01/2017,Adults & Housing Department,FREEDOM CARE LTD T/AS THE CHANTRY,Residential Permanent,"1,732.00",0.00,Residential Care
04/01/2017,Adults & Housing Department,Freeways,Residential Permanent,"4,330.64",0.00,Residential Care
04/01/2017,Adults & Housing Department,FSHC NEWCO LTD T/AS: THE LAWNS,Residential Permanent,"1,576.00",0.00,Residential Care
04/01/2017,Adults & Housing Department,FSHC NEWCO LTD T/AS: THE LAWNS,Residential Permanent,"1,396.00",0.00,Residential Care
04/01/2017,Adults & Housing Department,FSHC NEWCO LTD T/AS: THE LAWNS,Residential Permanent,"1,564.00",0.00,Residential Care
04/01/2017,Adults & Housing Department,FSHC NEWCO LTD T/AS: THE LAWNS,Residential Permanent,"1,596.00",0.00,Residential Care
04/01/2017,Adults & Housing Department,G B Care Ltd,Nursing Permanent,"1,852.00",0.00,Nursing Care
04/01/2017,Adults & Housing Department,G B Care Ltd,Nursing Permanent,"1,852.00",0.00,Nursing Care
04/01/2017,Adults & Housing Department,G B Care Ltd,Nursing Permanent,"1,852.00",0.00,Nursing Care
04/01/2017,Adults & Housing Department,G B Care Ltd,Nursing Permanent,"1,852.00",0.00,Nursing Care
04/01/2017,Adults & Housing Department,G B Care Ltd,Nursing Permanent,"1,852.00",0.00,Nursing Care
04/01/2017,Adults & Housing Department,G B Care Ltd,Nursing Permanent,"1,852.00",0.00,Nursing Care
04/01/2017,Adults & Housing Department,G B Care Ltd,Nursing Permanent,"1,852.00",0.00,Nursing Care
04/01/2017,Adults & Housing Department,G B Care Ltd,Nursing Short Stay,"1,792.00",0.00,Nursing Care
04/01/2017,Adults & Housing Department,G B Care Ltd,Nursing Short Stay,"1,852.00",0.00,Nursing Care
04/01/2017,Adults & Housing Department,G B Care Ltd,Nursing Short Stay,"1,792.00",0.00,Nursing Care
04/01/2017,Adults & Housing Department,G B Care Ltd,Residential Permanent,"1,900.00",0.00,Residential Care
04/01/2017,Adults & Housing Department,G B Care Ltd,Residential Permanent,"1,900.00",0.00,Residential Care
04/01/2017,Adults & Housing Department,G B Care Ltd,Residential Permanent,"1,900.00",0.00,Residential Care
04/01/2017,Adults & Housing Department,G B Care Ltd,Residential Permanent,"1,528.00",0.00,Residential Care
04/01/2017,Adults & Housing Department,G B Care Ltd,Residential Permanent,"1,900.00",0.00,Residential Care
04/01/2017,Adults & Housing Department,G B Care Ltd,Residential Permanent,938.44,0.00,Residential Care
04/01/2017,Adults & Housing Department,G B Care Ltd,Residential Permanent,"1,900.00",0.00,Residential Care
04/01/2017,Adults & Housing Department,G B Care Ltd,Residential Permanent,"1,900.00",0.00,Residential Care
04/01/2017,Education & Childrens Services,Gingers Pre-School,Neg Pvt Vol & Ind Providers,"7,927.15",0.00,Voluntary Organisations
04/01/2017,Education & Childrens Services,Glebelands Pre School,Neg Pvt Vol & Ind Providers,"11,025.00",0.00,Voluntary Organisations
04/01/2017,Education & Childrens Services,Glen Street Playgroup,Neg Pvt Vol & Ind Providers,"5,007.28",0.00,Voluntary Organisations
04/01/2017,Adults & Housing Department,Glenside Manor Health Care Services Ltd,Nursing Permanent,"6,275.00",0.00,Nursing Care
04/01/2017,Adults & Housing Department,Goodwood Orchard Resdntl Home,Interim Residential (Delayed Discharges),852.00,0.00,Residential Care
04/01/2017,Adults & Housing Department,Goodwood Orchard Resdntl Home,Residential Permanent,"1,704.00",0.00,Residential Care
04/01/2017,Adults & Housing Department,Goodwood Orchard Resdntl Home,Residential Permanent,"1,704.00",0.00,Residential Care
04/01/2017,Adults & Housing Department,Goodwood Orchard Resdntl Home,Residential Permanent,"1,704.00",0.00,Residential Care
04/01/2017,Adults & Housing Department,Goodwood Orchard Resdntl Home,Residential Permanent,"1,704.00",0.00,Residential Care
04/01/2017,Adults & Housing Department,Grange Lodge Residential Home Ltd,Residential Permanent,"2,100.00",0.00,Residential Care
04/01/2017,Adults & Housing Department,Gratia Residential Care Home Ltd,Interim Residential (Delayed Discharges),950.00,0.00,Residential Care
04/01/2017,Adults & Housing Department,Gratia Residential Care Home Ltd,Residential Permanent,628.44,0.00,Residential Care
04/01/2017,Adults & Housing Department,Gratia Residential Care Home Ltd,Residential Permanent,"1,732.00",0.00,Residential Care
04/01/2017,Adults & Housing Department,Gratia Residential Care Home Ltd,Residential Permanent,"1,732.00",0.00,Residential Care
04/01/2017,Adults & Housing Department,Gratia Residential Care Home Ltd,Residential Permanent,"2,623.32",0.00,Residential Care
04/01/2017,Adults & Housing Department,Gratia Residential Care Home Ltd,Residential Permanent,"1,900.00",0.00,Residential Care
04/01/2017,Adults & Housing Department,Gratia Residential Care Home Ltd,Residential Permanent,"1,732.00",0.00,Residential Care
04/01/2017,Adults & Housing Department,Gratia Residential Care Home Ltd,Residential Permanent,"1,900.00",0.00,Residential Care
04/01/2017,Adults & Housing Department,Gratia Residential Care Home Ltd,Residential Permanent,"1,732.00",0.00,Residential Care
04/01/2017,Adults & Housing Department,Gratia Residential Care Home Ltd,Residential Permanent,"1,900.00",0.00,Residential Care
04/01/2017,Adults & Housing Department,Gratia Residential Care Home Ltd,Residential Permanent,"1,900.00",0.00,Residential Care
04/01/2017,Adults & Housing Department,Gratia Residential Care Home Ltd,Residential Permanent,"1,732.00",0.00,Residential Care
04/01/2017,Adults & Housing Department,Gratia Residential Care Home Ltd,Residential Permanent,"1,900.00",0.00,Residential Care
04/01/2017,Adults & Housing Department,Gratia Residential Care Home Ltd,Residential Permanent,610.71,0.00,Residential Care
04/01/2017,City Developments and Neighbourhood,Green Machines Sweepers UK Ltd.,Repairs & Maintenance Vehicles,522.42,104.48,Vehicles Repairs & Maintenance / Parts & Accessories
04/01/2017,City Developments and Neighbourhood,Green Machines Sweepers UK Ltd.,Repairs & Maintenance Vehicles,605.98,121.20,Vehicles Repairs & Maintenance / Parts & Accessories
04/01/2017,Adults & Housing Department,Greentree Enterprises Ltd. T/A Clarendon Hse Care Ltd,Residential Permanent,"1,490.00",0.00,Residential Care
04/01/2017,Adults & Housing Department,Grey Ferrers Nursing Home,Nursing Permanent,"1,852.00",0.00,Nursing Care
04/01/2017,Adults & Housing Department,Grey Ferrers Nursing Home,Nursing Permanent,"1,852.00",0.00,Nursing Care
04/01/2017,Adults & Housing Department,Grey Ferrers Nursing Home,Nursing Permanent,"1,852.00",0.00,Nursing Care
04/01/2017,Adults & Housing Department,Grey Ferrers Nursing Home,Nursing Permanent,"1,852.00",0.00,Nursing Care
04/01/2017,Adults & Housing Department,Grey Ferrers Nursing Home,Nursing Permanent,"1,852.00",0.00,Nursing Care
04/01/2017,Adults & Housing Department,Grey Ferrers Nursing Home,Nursing Permanent,"1,852.00",0.00,Nursing Care
04/01/2017,Adults & Housing Department,Grey Ferrers Nursing Home,Nursing Permanent,"1,852.00",0.00,Nursing Care
04/01/2017,Adults & Housing Department,Grey Ferrers Nursing Home,Nursing Permanent,"1,852.00",0.00,Nursing Care
04/01/2017,Adults & Housing Department,Grey Ferrers Nursing Home,Nursing Permanent,"1,852.00",0.00,Nursing Care
04/01/2017,Adults & Housing Department,Grey Ferrers Nursing Home,Nursing Permanent,"1,852.00",0.00,Nursing Care
04/01/2017,Adults & Housing Department,Grey Ferrers Nursing Home,Nursing Permanent,"1,852.00",0.00,Nursing Care
04/01/2017,Adults & Housing Department,Grey Ferrers Nursing Home,Nursing Permanent,"1,852.00",0.00,Nursing Care
04/01/2017,Adults & Housing Department,Grey Ferrers Nursing Home,Nursing Permanent,"1,852.00",0.00,Nursing Care
04/01/2017,Adults & Housing Department,Grey Ferrers Nursing Home,Nursing Permanent,"1,852.00",0.00,Nursing Care
04/01/2017,Adults & Housing Department,Grey Ferrers Nursing Home,Nursing Permanent,"1,852.00",0.00,Nursing Care
04/01/2017,Adults & Housing Department,Grey Ferrers Nursing Home,Nursing Permanent,"1,852.00",0.00,Nursing Care
04/01/2017,Adults & Housing Department,Grey Ferrers Nursing Home,Residential Permanent,"1,704.00",0.00,Residential Care
04/01/2017,Adults & Housing Department,Grey Ferrers Nursing Home,Residential Permanent,"1,704.00",0.00,Residential Care
04/01/2017,Adults & Housing Department,GWENDOLEN ROAD CARE HOME,Interim Residential (Delayed Discharges),950.00,0.00,Residential Care
04/01/2017,Adults & Housing Department,GWENDOLEN ROAD CARE HOME,Residential Permanent,"1,900.00",0.00,Residential Care
04/01/2017,Adults & Housing Department,GWENDOLEN ROAD CARE HOME,Residential Permanent,"1,528.00",0.00,Residential Care
04/01/2017,Adults & Housing Department,GWENDOLEN ROAD CARE HOME,Residential Permanent,"1,900.00",0.00,Residential Care
04/01/2017,Adults & Housing Department,GWENDOLEN ROAD CARE HOME,Residential Permanent,"1,900.00",0.00,Residential Care
04/01/2017,Adults & Housing Department,GWENDOLEN ROAD CARE HOME,Residential Permanent,"5,752.00",0.00,Residential Care
04/01/2017,Adults & Housing Department,Hambleton House,Residential Permanent,"1,732.00",0.00,Residential Care
04/01/2017,Adults & Housing Department,Hambleton House,Residential Permanent,"1,732.00",0.00,Residential Care
04/01/2017,Adults & Housing Department,Hambleton House,Residential Permanent,"1,732.00",0.00,Residential Care
04/01/2017,Adults & Housing Department,Hambleton House,Residential Permanent,"1,900.00",0.00,Residential Care
04/01/2017,Adults & Housing Department,Hambleton House,Residential Permanent,"1,732.00",0.00,Residential Care
04/01/2017,Adults & Housing Department,Hambleton House,Residential Permanent,"1,900.00",0.00,Residential Care
04/01/2017,Adults & Housing Department,Hambleton House,Residential Permanent,"1,732.00",0.00,Residential Care
04/01/2017,Adults & Housing Department,Hambleton House,Residential Permanent,"1,528.00",0.00,Residential Care
04/01/2017,Adults & Housing Department,Hambleton House,Residential Permanent,"1,528.00",0.00,Residential Care
04/01/2017,Adults & Housing Department,Hambleton House,Residential Permanent,"1,732.00",0.00,Residential Care
04/01/2017,Adults & Housing Department,Hambleton House,Residential Permanent,"1,900.00",0.00,Residential Care
04/01/2017,Adults & Housing Department,Hambleton House,Residential Permanent,"1,732.00",0.00,Residential Care
04/01/2017,Adults & Housing Department,Hambleton House,Residential Permanent,"1,732.00",0.00,Residential Care
04/01/2017,Adults & Housing Department,Hambleton House,Residential Permanent,"1,929.52",0.00,Residential Care
04/01/2017,Adults & Housing Department,Hambleton House,Residential Respite,"1,484.57",0.00,Residential Care
04/01/2017,Education & Childrens Services,Hamilton Hilltop Nursery Sch,Neg Pvt Vol & Ind Providers,"22,644.53",0.00,Voluntary Organisations
04/01/2017,Adults & Housing Department,Hamilton House,Residential Permanent,"1,283.04",0.00,Residential Care
04/01/2017,Adults & Housing Department,Hamilton House,Residential Permanent,"1,900.00",0.00,Residential Care
04/01/2017,Adults & Housing Department,Hamilton House,Residential Permanent,"1,394.52",0.00,Residential Care
04/01/2017,Adults & Housing Department,Hamilton House,Residential Permanent,"1,528.00",0.00,Residential Care
04/01/2017,Adults & Housing Department,Hamilton House,Residential Permanent,"1,528.00",0.00,Residential Care
04/01/2017,Adults & Housing Department,Hamilton House,Residential Permanent,"1,900.00",0.00,Residential Care
04/01/2017,Adults & Housing Department,Hamilton House,Residential Permanent,"1,900.00",0.00,Residential Care
04/01/2017,Adults & Housing Department,Hamilton House,Residential Permanent,"1,706.92",0.00,Residential Care
04/01/2017,Adults & Housing Department,Hamilton House,Residential Permanent,"1,528.00",0.00,Residential Care
04/01/2017,Adults & Housing Department,Hamilton House,Residential Permanent,"1,900.00",0.00,Residential Care
04/01/2017,Adults & Housing Department,Hamilton House,Residential Permanent,"1,528.00",0.00,Residential Care
04/01/2017,Adults & Housing Department,Hamilton House,Residential Permanent,"1,900.00",0.00,Residential Care
04/01/2017,Adults & Housing Department,Hamilton House,Residential Permanent,"1,528.00",0.00,Residential Care
04/01/2017,Adults & Housing Department,Hamilton House,Residential Permanent,"1,900.00",0.00,Residential Care
04/01/2017,Adults & Housing Department,Hamilton House,Residential Permanent,"1,528.00",0.00,Residential Care
04/01/2017,Adults & Housing Department,Hamilton House,Residential Permanent,583.24,0.00,Residential Care
04/01/2017,Adults & Housing Department,Hamilton House,Residential Short Stay,"1,528.00",0.00,Residential Care
04/01/2017,Adults & Housing Department,Hamilton House,Residential Short Stay,790.71,0.00,Residential Care
04/01/2017,Adults & Housing Department,Hamilton House,Residential Short Stay,632.57,0.00,Residential Care
04/01/2017,Adults & Housing Department,Hamilton House,Residential Short Stay,740.71,0.00,Residential Care
04/01/2017,Adults & Housing Department,Hamilton House,Residential Short Stay,"1,153.57",0.00,Residential Care
04/01/2017,Adults & Housing Department,Hamilton House,Residential Short Stay,685.29,0.00,Residential Care
04/01/2017,Adults & Housing Department,Hamra Associates Ltd,Residential Permanent,"1,732.00",0.00,Residential Care
04/01/2017,Adults & Housing Department,Hamra Associates Ltd,Residential Permanent,879.36,0.00,Residential Care
04/01/2017,Adults & Housing Department,Hamra Associates Ltd,Residential Permanent,"1,732.00",0.00,Residential Care
04/01/2017,Adults & Housing Department,Hamra Associates Ltd,Residential Permanent,"1,732.00",0.00,Residential Care
04/01/2017,Adults & Housing Department,Hamra Associates Ltd,Residential Permanent,"1,732.00",0.00,Residential Care
04/01/2017,Education & Childrens Services,Hand In Hand Preschool,Neg Pvt Vol & Ind Providers,"8,540.28",0.00,Voluntary Organisations
04/01/2017,Adults & Housing Department,Harley House Care Home,Nursing Permanent,"1,852.00",0.00,Nursing Care
04/01/2017,Adults & Housing Department,Harley House Care Home,Nursing Permanent,"1,852.00",0.00,Nursing Care
04/01/2017,Adults & Housing Department,Harley House Care Home,Nursing Permanent,796.00,0.00,Nursing Care
04/01/2017,Adults & Housing Department,Harley House Care Home,Nursing Permanent,"1,852.00",0.00,Nursing Care
04/01/2017,Adults & Housing Department,Harley House Care Home,Nursing Permanent,"1,852.00",0.00,Nursing Care
04/01/2017,Adults & Housing Department,Harley House Care Home,Nursing Permanent,"1,852.00",0.00,Nursing Care
04/01/2017,Adults & Housing Department,Harley House Care Home,Nursing Permanent,"1,852.00",0.00,Nursing Care
04/01/2017,Adults & Housing Department,Harley House Care Home,Nursing Permanent,"1,852.00",0.00,Nursing Care
04/01/2017,Adults & Housing Department,Harley House Care Home,Residential Permanent,"1,900.00",0.00,Residential Care
04/01/2017,Adults & Housing Department,Hartington Road Care Home,Residential Permanent,"1,732.00",0.00,Residential Care
04/01/2017,Adults & Housing Department,Hartington Road Care Home,Residential Permanent,"1,732.00",0.00,Residential Care
04/01/2017,Adults & Housing Department,Hartington Road Care Home,Residential Permanent,"1,732.00",0.00,Residential Care
04/01/2017,Adults & Housing Department,Hartington Road Care Home,Residential Permanent,"1,732.00",0.00,Residential Care
04/01/2017,Adults & Housing Department,Hayes Park Nursing Home,Nursing Permanent,"1,852.00",0.00,Nursing Care
04/01/2017,Adults & Housing Department,Hayes Park Nursing Home,Nursing Permanent,"1,852.00",0.00,Nursing Care
04/01/2017,Adults & Housing Department,Hayes Park Nursing Home,Nursing Permanent,"1,852.00",0.00,Nursing Care
04/01/2017,Adults & Housing Department,Hayes Park Nursing Home,Nursing Permanent,"1,852.00",0.00,Nursing Care
04/01/2017,Adults & Housing Department,Hayes Park Nursing Home,Nursing Permanent,"1,852.00",0.00,Nursing Care
04/01/2017,Adults & Housing Department,Hayes Park Nursing Home,Nursing Permanent,"1,852.00",0.00,Nursing Care
04/01/2017,Adults & Housing Department,Hayes Park Nursing Home,Nursing Permanent,"1,852.00",0.00,Nursing Care
04/01/2017,Adults & Housing Department,Hayes Park Nursing Home,Nursing Permanent,"1,852.00",0.00,Nursing Care
04/01/2017,Adults & Housing Department,Hayes Park Nursing Home,Nursing Permanent,793.71,0.00,Nursing Care
04/01/2017,Adults & Housing Department,Hayes Park Nursing Home,Nursing Permanent,"1,852.00",0.00,Nursing Care
04/01/2017,Adults & Housing Department,Hayes Park Nursing Home,Nursing Permanent,"1,852.00",0.00,Nursing Care
04/01/2017,Adults & Housing Department,Hayes Park Nursing Home,Nursing Permanent,"1,852.00",0.00,Nursing Care
04/01/2017,Adults & Housing Department,Hayes Park Nursing Home,Nursing Permanent,"1,852.00",0.00,Nursing Care
04/01/2017,Adults & Housing Department,Hayes Park Nursing Home,Nursing Permanent,"1,852.00",0.00,Nursing Care
04/01/2017,Adults & Housing Department,Hayes Park Nursing Home,Nursing Permanent,"1,852.00",0.00,Nursing Care
04/01/2017,Adults & Housing Department,Hayes Park Nursing Home,Nursing Permanent,"1,852.00",0.00,Nursing Care
04/01/2017,Adults & Housing Department,Hayes Park Nursing Home,Nursing Permanent,"1,852.00",0.00,Nursing Care
04/01/2017,Adults & Housing Department,Hayes Park Nursing Home,Nursing Short Stay,"1,152.00",0.00,Nursing Care
04/01/2017,Adults & Housing Department,Hayes Park Nursing Home,Nursing Short Stay,661.43,0.00,Nursing Care
04/01/2017,Adults & Housing Department,Hayes Park Nursing Home,Nursing Short Stay,"1,024.00",0.00,Nursing Care
04/01/2017,Adults & Housing Department,Hayes Park Nursing Home,Nursing Short Stay,"1,852.00",0.00,Nursing Care
04/01/2017,Adults & Housing Department,Hayes Park Nursing Home,Nursing Short Stay,"1,792.00",0.00,Nursing Care
04/01/2017,Adults & Housing Department,Hayes Park Nursing Home,Nursing Short Stay,960.00,0.00,Nursing Care
04/01/2017,Adults & Housing Department,Hayes Park Nursing Home,Residential Permanent,"1,704.00",0.00,Residential Care
04/01/2017,Adults & Housing Department,Hayes Park Nursing Home,Residential Permanent,"1,704.00",0.00,Residential Care
04/01/2017,Adults & Housing Department,Hayes Park Nursing Home,Residential Permanent,"1,900.00",0.00,Residential Care
04/01/2017,Adults & Housing Department,Hazelford Residential Home,Residential Permanent,"1,836.00",0.00,Residential Care
04/01/2017,Adults & Housing Department,HC One Ltd T/a Mavis Bank Care Home,Nursing Permanent,933.24,0.00,Nursing Care
04/01/2017,Adults & Housing Department,HC One Ltd T/a Mavis Bank Care Home,Nursing Permanent,"1,504.00",0.00,Nursing Care
04/01/2017,Adults & Housing Department,HC One Ltd T/a The Rowans Care Home,Residential Permanent,"1,644.00",0.00,Residential Care
04/01/2017,Adults & Housing Department,HC-One Ltd T/a Cedar Court,Nursing Permanent,"1,504.00",0.00,Nursing Care
04/01/2017,Adults & Housing Department,HC-One Ltd T/a Cedar Court,Nursing Permanent,"1,504.00",0.00,Nursing Care
04/01/2017,Adults & Housing Department,HC-One Ltd T/a Cedar Court,Nursing Permanent,"1,504.00",0.00,Nursing Care
04/01/2017,Adults & Housing Department,HC-One Ltd T/a Cedar Court,Nursing Permanent,"1,736.00",0.00,Nursing Care
04/01/2017,Adults & Housing Department,HC-One Ltd T/a Cedar Court,Nursing Permanent,"1,504.00",0.00,Nursing Care
04/01/2017,Adults & Housing Department,HC-One Ltd T/a Harley Grange Care Home,Nursing Permanent,"1,852.00",0.00,Nursing Care
04/01/2017,Adults & Housing Department,HC-One Ltd T/a Harley Grange Care Home,Nursing Permanent,"1,719.71",0.00,Nursing Care
04/01/2017,Adults & Housing Department,HC-One Ltd T/a Harley Grange Care Home,Nursing Permanent,"1,852.00",0.00,Nursing Care
04/01/2017,Adults & Housing Department,HC-One Ltd T/a Harley Grange Care Home,Nursing Permanent,"1,852.00",0.00,Nursing Care
04/01/2017,Adults & Housing Department,HC-One Ltd T/a Harley Grange Care Home,Nursing Permanent,"1,719.71",0.00,Nursing Care
04/01/2017,Adults & Housing Department,HC-One Ltd T/a Harley Grange Care Home,Nursing Permanent,"1,252.80",0.00,Nursing Care
04/01/2017,Adults & Housing Department,HC-One Ltd T/a Harley Grange Care Home,Nursing Permanent,"1,852.00",0.00,Nursing Care
04/01/2017,Adults & Housing Department,HC-One Ltd T/a Harley Grange Care Home,Nursing Permanent,"1,852.00",0.00,Nursing Care
04/01/2017,Adults & Housing Department,HC-One Ltd T/a Harley Grange Care Home,Nursing Permanent,"1,852.00",0.00,Nursing Care
04/01/2017,Adults & Housing Department,HC-One Ltd T/a Harley Grange Care Home,Nursing Short Stay,"1,719.71",0.00,Nursing Care
04/01/2017,Adults & Housing Department,HC-One Ltd T/a Harley Grange Care Home,Residential Permanent,"1,360.00",0.00,Residential Care
04/01/2017,Adults & Housing Department,HC-One Ltd T/a Harley Grange Care Home,Residential Permanent,"1,704.00",0.00,Residential Care
04/01/2017,Adults & Housing Department,Heartwell House Residential Care Ltd,Residential Permanent,950.00,0.00,Residential Care
04/01/2017,Adults & Housing Department,Heartwell House Residential Care Ltd,Residential Permanent,"1,900.00",0.00,Residential Care
04/01/2017,Adults & Housing Department,Heartwell House Residential Care Ltd,Residential Permanent,"1,528.00",0.00,Residential Care
04/01/2017,Adults & Housing Department,Heartwell House Residential Care Ltd,Residential Permanent,"2,281.08",0.00,Residential Care
04/01/2017,Adults & Housing Department,Heartwell House Residential Care Ltd,Residential Permanent,"1,900.00",0.00,Residential Care
04/01/2017,Adults & Housing Department,Heartwell House Residential Care Ltd,Residential Permanent,"1,872.56",0.00,Residential Care
04/01/2017,Adults & Housing Department,Heartwell House Residential Care Ltd,Residential Permanent,"1,528.00",0.00,Residential Care
04/01/2017,Adults & Housing Department,Heartwell House Residential Care Ltd,Residential Permanent,"1,900.00",0.00,Residential Care
04/01/2017,Adults & Housing Department,Heartwell House Residential Care Ltd,Residential Permanent,"1,657.20",0.00,Residential Care
04/01/2017,Adults & Housing Department,Heartwell House Residential Care Ltd,Residential Permanent,"1,900.00",0.00,Residential Care
04/01/2017,Adults & Housing Department,Heartwell House Residential Care Ltd,Residential Permanent,"1,528.00",0.00,Residential Care
04/01/2017,Adults & Housing Department,Heartwell House Residential Care Ltd,Residential Permanent,"1,100.72",0.00,Residential Care
04/01/2017,Adults & Housing Department,Heathcotes Care Limited,Residential Permanent,"1,592.00",0.00,Residential Care
04/01/2017,Adults & Housing Department,Heathcotes Care Limited,Residential Permanent,"5,375.84",0.00,Residential Care
04/01/2017,Adults & Housing Department,Heathcotes M Ltd,Residential Permanent,"8,800.00",0.00,Residential Care
04/01/2017,Adults & Housing Department,Heathcotes M Ltd,Residential Permanent,"1,732.00",0.00,Residential Care
04/01/2017,Adults & Housing Department,Heathcotes M Ltd,Residential Permanent,"6,857.76",0.00,Residential Care
04/01/2017,Adults & Housing Department,HEATHCOTES MAGNA,Residential Permanent,"4,895.52",0.00,Residential Care
04/01/2017,Adults & Housing Department,HEATHCOTES MAGNA,Residential Permanent,"1,592.00",0.00,Residential Care
04/01/2017,Adults & Housing Department,Heritage Care - Storer Close 3,Residential Permanent,"3,576.00",0.00,Residential Care
04/01/2017,Adults & Housing Department,Heritage Care - Storer Close 3,Residential Permanent,"1,624.00",0.00,Residential Care
04/01/2017,Education & Childrens Services,Herrick Playgroup,Neg Pvt Vol & Ind Providers,735.00,0.00,Voluntary Organisations
04/01/2017,Adults & Housing Department,Hicare Ltd,Interim Residential (Delayed Discharges),950.00,0.00,Residential Care
04/01/2017,Adults & Housing Department,Hicare Ltd,Interim Residential (Delayed Discharges),678.57,0.00,Residential Care
04/01/2017,Adults & Housing Department,Hicare Ltd,Residential Permanent,"1,900.00",0.00,Residential Care
04/01/2017,Adults & Housing Department,Hicare Ltd,Residential Permanent,"1,704.00",0.00,Residential Care
04/01/2017,Adults & Housing Department,Hicare Ltd,Residential Permanent,"1,900.00",0.00,Residential Care
04/01/2017,Adults & Housing Department,Hicare Ltd,Residential Permanent,"1,900.00",0.00,Residential Care
04/01/2017,Adults & Housing Department,Hicare Ltd,Residential Permanent,"1,900.00",0.00,Residential Care
04/01/2017,Adults & Housing Department,Hicare Ltd,Residential Permanent,"1,900.00",0.00,Residential Care
04/01/2017,Adults & Housing Department,Hicare Ltd,Residential Permanent,"1,704.00",0.00,Residential Care
04/01/2017,Adults & Housing Department,Hicare Ltd,Residential Permanent,"1,900.00",0.00,Residential Care
04/01/2017,Adults & Housing Department,Hicare Ltd,Residential Permanent,"1,704.00",0.00,Residential Care
04/01/2017,Adults & Housing Department,Hicare Ltd,Residential Permanent,"1,704.00",0.00,Residential Care
04/01/2017,Adults & Housing Department,Hicare Ltd,Residential Permanent,"1,704.00",0.00,Residential Care
04/01/2017,Adults & Housing Department,Hicare Ltd,Residential Permanent,"1,704.00",0.00,Residential Care
04/01/2017,Adults & Housing Department,Hicare Ltd,Residential Permanent,"1,900.00",0.00,Residential Care
04/01/2017,Adults & Housing Department,Hicare Ltd,Residential Permanent,"1,704.00",0.00,Residential Care
04/01/2017,Adults & Housing Department,Hicare Ltd,Residential Permanent,946.96,0.00,Residential Care
04/01/2017,Adults & Housing Department,Hicare Ltd,Residential Permanent,"1,704.00",0.00,Residential Care
04/01/2017,Adults & Housing Department,Hicare Ltd,Residential Permanent,"1,704.00",0.00,Residential Care
04/01/2017,Adults & Housing Department,Hicare Ltd,Residential Permanent,"1,704.00",0.00,Residential Care
04/01/2017,Adults & Housing Department,Hicare Ltd,Residential Permanent,"1,900.00",0.00,Residential Care
04/01/2017,Adults & Housing Department,Hicare Ltd,Residential Permanent,"1,900.00",0.00,Residential Care
04/01/2017,Adults & Housing Department,Hicare Ltd,Residential Permanent,"1,704.00",0.00,Residential Care
04/01/2017,Adults & Housing Department,Hicare Ltd,Residential Permanent,"1,704.00",0.00,Residential Care
04/01/2017,Adults & Housing Department,Hicare Ltd,Residential Permanent,"1,704.00",0.00,Residential Care
04/01/2017,Adults & Housing Department,Hicare Ltd,Residential Permanent,"1,900.00",0.00,Residential Care
04/01/2017,Adults & Housing Department,Hicare Ltd,Residential Permanent,"1,900.00",0.00,Residential Care
04/01/2017,Adults & Housing Department,Hicare Ltd,Residential Permanent,"1,704.00",0.00,Residential Care
04/01/2017,Adults & Housing Department,Hicare Ltd,Residential Permanent,"1,900.00",0.00,Residential Care
04/01/2017,Adults & Housing Department,Hicare Ltd,Residential Permanent,"1,900.00",0.00,Residential Care
04/01/2017,Adults & Housing Department,Hicare Ltd,Residential Permanent,"1,704.00",0.00,Residential Care
04/01/2017,Adults & Housing Department,Hicare Ltd,Residential Permanent,"1,704.00",0.00,Residential Care
04/01/2017,Adults & Housing Department,Hicare Ltd,Residential Permanent,"1,900.00",0.00,Residential Care
04/01/2017,Adults & Housing Department,Hicare Ltd,Residential Permanent,"1,900.00",0.00,Residential Care
04/01/2017,Adults & Housing Department,Hicare Ltd,Residential Permanent,"1,704.00",0.00,Residential Care
04/01/2017,Adults & Housing Department,Hicare Ltd,Residential Permanent,"1,900.00",0.00,Residential Care
04/01/2017,Adults & Housing Department,Hicare Ltd,Residential Permanent,"1,900.00",0.00,Residential Care
04/01/2017,Adults & Housing Department,Hicare Ltd,Residential Permanent,"1,900.00",0.00,Residential Care
04/01/2017,Adults & Housing Department,Hicare Ltd,Residential Permanent,"1,900.00",0.00,Residential Care
04/01/2017,Adults & Housing Department,Hicare Ltd,Residential Permanent,"1,900.00",0.00,Residential Care
04/01/2017,Adults & Housing Department,Hicare Ltd,Residential Permanent,"1,900.00",0.00,Residential Care
04/01/2017,Adults & Housing Department,Hicare Ltd,Residential Permanent,"1,900.00",0.00,Residential Care
04/01/2017,Adults & Housing Department,Hicare Ltd,Residential Permanent,"1,704.00",0.00,Residential Care
04/01/2017,Adults & Housing Department,Hicare Ltd,Residential Permanent,"1,900.00",0.00,Residential Care
04/01/2017,Adults & Housing Department,Hicare Ltd,Residential Permanent,"1,900.00",0.00,Residential Care
04/01/2017,Adults & Housing Department,Hicare Ltd,Residential Permanent,"1,900.00",0.00,Residential Care
04/01/2017,Adults & Housing Department,Hicare Ltd,Residential Permanent,"1,900.00",0.00,Residential Care
04/01/2017,Adults & Housing Department,Hicare Ltd,Residential Permanent,"1,900.00",0.00,Residential Care
04/01/2017,Adults & Housing Department,Hicare Ltd,Residential Permanent,"1,900.00",0.00,Residential Care
04/01/2017,Adults & Housing Department,Hicare Ltd,Residential Permanent,"1,704.00",0.00,Residential Care
04/01/2017,Adults & Housing Department,Hicare Ltd,Residential Permanent,"1,900.00",0.00,Residential Care
04/01/2017,Adults & Housing Department,Hicare Ltd,Residential Permanent,"1,900.00",0.00,Residential Care
04/01/2017,Adults & Housing Department,Hicare Ltd,Residential Permanent,"1,900.00",0.00,Residential Care
04/01/2017,Adults & Housing Department,Hicare Ltd,Residential Permanent,"1,704.00",0.00,Residential Care
04/01/2017,Adults & Housing Department,Hicare Ltd,Residential Permanent,"1,704.00",0.00,Residential Care
04/01/2017,Adults & Housing Department,Hicare Ltd,Residential Permanent,"1,704.00",0.00,Residential Care
04/01/2017,Adults & Housing Department,Hicare Ltd,Residential Permanent,"1,704.00",0.00,Residential Care
04/01/2017,Adults & Housing Department,Hicare Ltd,Residential Permanent,"1,900.00",0.00,Residential Care
04/01/2017,Adults & Housing Department,Hicare Ltd,Residential Permanent,"1,704.00",0.00,Residential Care
04/01/2017,Adults & Housing Department,Hicare Ltd,Residential Respite,"1,017.86",0.00,Residential Care
04/01/2017,Adults & Housing Department,Hicare Ltd,Residential Short Stay,"1,900.00",0.00,Residential Care
04/01/2017,Adults & Housing Department,Hicare Ltd,Residential Short Stay,"1,900.00",0.00,Residential Care
04/01/2017,Adults & Housing Department,Hicare Ltd,Residential Short Stay,950.00,0.00,Residential Care
04/01/2017,Adults & Housing Department,Hicare Ltd,Residential Short Stay,"1,900.00",0.00,Residential Care
04/01/2017,Adults & Housing Department,Hicare Ltd,Residential Short Stay,"1,764.29",0.00,Residential Care
04/01/2017,Adults & Housing Department,Hicare Ltd,Residential Short Stay,950.00,0.00,Residential Care
04/01/2017,Adults & Housing Department,Hicare Ltd,Residential Short Stay,950.00,0.00,Residential Care
04/01/2017,Adults & Housing Department,Hicare Ltd,Residential Short Stay,950.00,0.00,Residential Care
04/01/2017,Adults & Housing Department,Hicare Ltd,Residential Short Stay,"1,764.29",0.00,Residential Care
04/01/2017,Adults & Housing Department,HINCKLEY CARE LIMITED T/AS THE ASHTON CARE HOME,Nursing Permanent,"2,350.48",0.00,Nursing Care
04/01/2017,Adults & Housing Department,HINCKLEY CARE LIMITED T/AS THE ASHTON CARE HOME,Nursing Permanent,"1,736.00",0.00,Nursing Care
04/01/2017,Education & Childrens Services,Holly Bush Nursery,Neg Pvt Vol & Ind Providers,"9,583.00",0.00,Voluntary Organisations
04/01/2017,Adults & Housing Department,HOLLYWELL COURT RESIDENTIAL HOME,Residential Permanent,"1,704.00",0.00,Residential Care
04/01/2017,Adults & Housing Department,HOLLYWELL COURT RESIDENTIAL HOME,Residential Permanent,"1,704.00",0.00,Residential Care
04/01/2017,Adults & Housing Department,Holmes House,Residential Permanent,"1,596.00",0.00,Residential Care
04/01/2017,Adults & Housing Department,Holmes House,Residential Permanent,"1,780.00",0.00,Residential Care
04/01/2017,Adults & Housing Department,Holmes House,Residential Permanent,"1,436.00",0.00,Residential Care
04/01/2017,Adults & Housing Department,Holmes House,Residential Permanent,"1,436.00",0.00,Residential Care
04/01/2017,Adults & Housing Department,Homefield College,Residential Permanent,"1,460.00",0.00,Residential Care
04/01/2017,Adults & Housing Department,Homefield College,Residential Permanent,"2,031.48",0.00,Residential Care
04/01/2017,Adults & Housing Department,Homefield College,Residential Permanent,"1,198.04",0.00,Residential Care
04/01/2017,Adults & Housing Department,Homefield College,Residential Permanent,"1,624.00",0.00,Residential Care
04/01/2017,Education & Childrens Services,Hopscotch Playgroup Ltd,Neg Pvt Vol & Ind Providers,"3,707.40",0.00,Voluntary Organisations
04/01/2017,Education & Childrens Services,Hopwells Ltd,Catering - Provisions,"1,825.10",365.02,Catering Provisions / Food & Drink
04/01/2017,Education & Childrens Services,Hopwells Ltd,Catering - Provisions,"32,381.20",0.00,Catering Provisions / Food & Drink
04/01/2017,Education & Childrens Services,Humberstone Day Nursery,Neg Pvt Vol & Ind Providers,"11,930.68",0.00,Voluntary Organisations
04/01/2017,Education & Childrens Services,Humberstone Park Day Nursery Ltd,Neg Pvt Vol & Ind Providers,"8,898.75",0.00,Voluntary Organisations
04/01/2017,Adults & Housing Department,Hunters Lodge,Residential Permanent,"1,276.00",0.00,Residential Care
04/01/2017,Adults & Housing Department,Hunters Lodge,Residential Permanent,523.98,0.00,Residential Care
04/01/2017,Adults & Housing Department,Hunters Lodge,Residential Permanent,"1,744.00",0.00,Residential Care
04/01/2017,Adults & Housing Department,Hunters Lodge,Residential Permanent,506.57,0.00,Residential Care
04/01/2017,Adults & Housing Department,Hunters Lodge,Residential Permanent,692.00,0.00,Residential Care
04/01/2017,Adults & Housing Department,Ideal Care Homes Ltd T/a Beaumont Hall,Residential Permanent,"1,900.00",0.00,Residential Care
04/01/2017,Adults & Housing Department,Ideal Care Homes Ltd T/a Beaumont Hall,Residential Permanent,"1,704.00",0.00,Residential Care
04/01/2017,Adults & Housing Department,Ideal Care Homes Ltd T/a Beaumont Hall,Residential Permanent,"1,704.00",0.00,Residential Care
04/01/2017,Adults & Housing Department,Ideal Care Homes Ltd T/a Beaumont Hall,Residential Permanent,"1,704.00",0.00,Residential Care
04/01/2017,Adults & Housing Department,Ideal Care Homes Ltd T/a Beaumont Hall,Residential Permanent,"1,900.00",0.00,Residential Care
04/01/2017,Adults & Housing Department,Ideal Care Homes Ltd T/a Beaumont Hall,Residential Permanent,"1,704.00",0.00,Residential Care
04/01/2017,Adults & Housing Department,Ideal Care Homes Ltd T/a Beaumont Hall,Residential Permanent,"1,704.00",0.00,Residential Care
04/01/2017,Adults & Housing Department,Ideal Care Homes Ltd T/a Beaumont Hall,Residential Permanent,"1,900.00",0.00,Residential Care
04/01/2017,Adults & Housing Department,Ideal Care Homes Ltd T/a Beaumont Hall,Residential Permanent,"1,704.00",0.00,Residential Care
04/01/2017,Adults & Housing Department,Ideal Care Homes Ltd T/a Beaumont Hall,Residential Permanent,"1,704.00",0.00,Residential Care
04/01/2017,Adults & Housing Department,Ideal Care Homes Ltd T/a Beaumont Hall,Residential Permanent,"1,704.00",0.00,Residential Care
04/01/2017,Adults & Housing Department,Ideal Care Homes Ltd T/a Beaumont Hall,Residential Permanent,"1,704.00",0.00,Residential Care
04/01/2017,Adults & Housing Department,Ideal Care Homes Ltd T/a Beaumont Hall,Residential Permanent,"1,704.00",0.00,Residential Care
04/01/2017,Adults & Housing Department,Ideal Care Homes Ltd T/a Beaumont Hall,Residential Permanent,"1,704.00",0.00,Residential Care
04/01/2017,Adults & Housing Department,Ideal Care Homes Ltd T/a Beaumont Hall,Residential Permanent,"1,704.00",0.00,Residential Care
04/01/2017,Adults & Housing Department,Ideal Care Homes Ltd T/a Beaumont Hall,Residential Permanent,"1,704.00",0.00,Residential Care
04/01/2017,Adults & Housing Department,Ideal Care Homes Ltd T/a Beaumont Hall,Residential Permanent,"1,704.00",0.00,Residential Care
04/01/2017,Education & Childrens Services,Jay Fostering Ltd,Parenting Assessments,"3,330.33",0.00,Other Agencies
04/01/2017,Education & Childrens Services,Jay Fostering Ltd,Parenting Assessments,"2,793.72",0.00,Other Agencies
04/01/2017,City Developments and Neighbourhood,JCW Energy Services Ltd,Responsive,"1,173.72",234.74,Building Services / Repairs & Maintenance  Fixtures & Fittings
04/01/2017,Adults & Housing Department,JD Zencare Ltd,Nursing Permanent,"1,627.12",0.00,Nursing Care
04/01/2017,Adults & Housing Department,JD Zencare Ltd,Nursing Permanent,"1,816.00",0.00,Nursing Care
04/01/2017,Adults & Housing Department,JD Zencare Ltd,Residential Permanent,"1,900.00",0.00,Residential Care
04/01/2017,Adults & Housing Department,JD Zencare Ltd,Residential Permanent,"1,628.28",0.00,Residential Care
04/01/2017,Adults & Housing Department,JD Zencare Ltd,Residential Permanent,"1,732.00",0.00,Residential Care
04/01/2017,Adults & Housing Department,JD Zencare Ltd,Residential Permanent,"1,280.44",0.00,Residential Care
04/01/2017,Adults & Housing Department,JD Zencare Ltd,Residential Permanent,"1,732.00",0.00,Residential Care
04/01/2017,Adults & Housing Department,JD Zencare Ltd,Residential Permanent,882.40,0.00,Residential Care
04/01/2017,Adults & Housing Department,JJ & S (Chippenham) Ltd T/a Sandmar Residential Care Home,Residential Permanent,"1,724.00",0.00,Residential Care
04/01/2017,Adults & Housing Department,JJ & S (Chippenham) Ltd T/a Sandmar Residential Care Home,Residential Permanent,"1,284.00",0.00,Residential Care
04/01/2017,Adults & Housing Department,KEATE HOUSE RESIDENTIAL HOME,Residential Permanent,"1,596.00",0.00,Residential Care
04/01/2017,City Developments and Neighbourhood,Keltbray Environmental Solutions,Asbestos - Works,800.00,160.00,Asbestos
04/01/2017,City Developments and Neighbourhood,Keltbray Environmental Solutions,Asbestos - Works,750.00,150.00,Asbestos
04/01/2017,Education & Childrens Services,Kiddisafe,Neg Pvt Vol & Ind Providers,"21,887.25",0.00,Voluntary Organisations
04/01/2017,Education & Childrens Services,Kiddisafe,Neg Pvt Vol & Ind Providers,"3,723.00",0.00,Voluntary Organisations
04/01/2017,Education & Childrens Services,Kiddycare Ltd,Neg Pvt Vol & Ind Providers,"11,322.00",0.00,Voluntary Organisations
04/01/2017,Education & Childrens Services,Kiddycare Willowbrook Nursery,Neg Pvt Vol & Ind Providers,"16,720.50",0.00,Voluntary Organisations
04/01/2017,Adults & Housing Department,Kingly Care Partnership Ltd,Nursing Permanent,656.00,0.00,Nursing Care
04/01/2017,Adults & Housing Department,Kingly Care Partnership Ltd,Nursing Permanent,"3,948.00",0.00,Nursing Care
04/01/2017,Adults & Housing Department,Kingly Care Partnership Ltd,Nursing Permanent,"5,484.00",0.00,Nursing Care
04/01/2017,Adults & Housing Department,Kingly Care Partnership Ltd,Nursing Permanent,"1,700.00",0.00,Nursing Care
04/01/2017,Adults & Housing Department,Kingly Care Partnership Ltd,Residential Permanent,"1,759.36",0.00,Residential Care
04/01/2017,Adults & Housing Department,Kingly Care Partnership Ltd,Residential Permanent,"6,954.84",0.00,Residential Care
04/01/2017,Adults & Housing Department,Kingly Care Partnership Ltd,Residential Permanent,"1,780.00",0.00,Residential Care
04/01/2017,Adults & Housing Department,Kingly Care Partnership Ltd,Residential Permanent,"3,952.00",0.00,Residential Care
04/01/2017,Education & Childrens Services,Knighton Day Nursery,Neg Pvt Vol & Ind Providers,"13,083.00",0.00,Voluntary Organisations
04/01/2017,Adults & Housing Department,Knighton Manor Ltd,Residential Permanent,"1,900.00",0.00,Residential Care
04/01/2017,Adults & Housing Department,Knighton Manor Ltd,Residential Permanent,"1,732.00",0.00,Residential Care
04/01/2017,Adults & Housing Department,Knighton Manor Ltd,Residential Permanent,"1,528.00",0.00,Residential Care
04/01/2017,Adults & Housing Department,Knighton Manor Ltd,Residential Permanent,"1,732.00",0.00,Residential Care
04/01/2017,Adults & Housing Department,Knighton Manor Ltd,Residential Permanent,"2,247.68",0.00,Residential Care
04/01/2017,Adults & Housing Department,Knighton Manor Ltd,Residential Permanent,618.32,0.00,Residential Care
04/01/2017,Adults & Housing Department,Knighton Manor Ltd,Residential Permanent,"1,732.00",0.00,Residential Care
04/01/2017,Adults & Housing Department,Knighton Manor Ltd,Residential Permanent,"1,732.00",0.00,Residential Care
04/01/2017,Adults & Housing Department,Knighton Manor Ltd,Residential Permanent,896.00,0.00,Residential Care
04/01/2017,Adults & Housing Department,Knighton Manor Ltd,Residential Permanent,"1,732.00",0.00,Residential Care
04/01/2017,Adults & Housing Department,Knighton Manor Ltd,Residential Permanent,"1,732.00",0.00,Residential Care
04/01/2017,Adults & Housing Department,Knighton Manor Ltd,Residential Permanent,"1,732.00",0.00,Residential Care
04/01/2017,Adults & Housing Department,Knighton Manor Ltd,Residential Permanent,"1,900.00",0.00,Residential Care
04/01/2017,Adults & Housing Department,Knighton Manor Ltd,Residential Permanent,"1,900.00",0.00,Residential Care
04/01/2017,Adults & Housing Department,Knighton Manor Ltd,Residential Permanent,"1,732.00",0.00,Residential Care
04/01/2017,Adults & Housing Department,Knighton Manor Ltd,Residential Permanent,"1,732.00",0.00,Residential Care
04/01/2017,Adults & Housing Department,Knighton Manor Ltd,Residential Permanent,"2,096.24",0.00,Residential Care
04/01/2017,Adults & Housing Department,Knighton Manor Ltd,Residential Permanent,"1,732.00",0.00,Residential Care
04/01/2017,Education & Childrens Services,Land Of Learning,Neg Pvt Vol & Ind Providers,"12,673.50",0.00,Voluntary Organisations
04/01/2017,Education & Childrens Services,Land Of Learning,Neg Pvt Vol & Ind Providers,"35,310.10",0.00,Voluntary Organisations
04/01/2017,Adults & Housing Department,Langdale Residential Home,Nursing Permanent,"1,736.00",0.00,Nursing Care
04/01/2017,Adults & Housing Department,Langdale Residential Home,Nursing Permanent,"1,736.00",0.00,Nursing Care
04/01/2017,Adults & Housing Department,Langdale Residential Home,Nursing Permanent,"1,392.00",0.00,Nursing Care
04/01/2017,Adults & Housing Department,Langdale Residential Home,Nursing Permanent,"1,736.00",0.00,Nursing Care
04/01/2017,Adults & Housing Department,Langdale Residential Home,Nursing Permanent,"1,736.00",0.00,Nursing Care
04/01/2017,Adults & Housing Department,Langdale Residential Home,Nursing Permanent,"1,392.00",0.00,Nursing Care
04/01/2017,Adults & Housing Department,Langdale Residential Home,Nursing Permanent,"1,504.00",0.00,Nursing Care
04/01/2017,Adults & Housing Department,Langdale Residential Home,Nursing Permanent,"1,392.00",0.00,Nursing Care
04/01/2017,Adults & Housing Department,Langdale View,Nursing Permanent,"1,852.00",0.00,Nursing Care
04/01/2017,Adults & Housing Department,Langdale View,Nursing Permanent,"1,852.00",0.00,Nursing Care
04/01/2017,Adults & Housing Department,Langdale View,Nursing Permanent,"1,852.00",0.00,Nursing Care
04/01/2017,Adults & Housing Department,Langdale View,Nursing Permanent,"1,736.00",0.00,Nursing Care
04/01/2017,Adults & Housing Department,Langdale View,Nursing Permanent,"1,852.00",0.00,Nursing Care
04/01/2017,Adults & Housing Department,Langdale View,Nursing Permanent,"1,852.00",0.00,Nursing Care
04/01/2017,Adults & Housing Department,Langdale View,Nursing Permanent,"1,852.00",0.00,Nursing Care
04/01/2017,Adults & Housing Department,Langdale View,Nursing Permanent,"1,852.00",0.00,Nursing Care
04/01/2017,Adults & Housing Department,Langdale View,Nursing Permanent,"1,852.00",0.00,Nursing Care
04/01/2017,Adults & Housing Department,Langdale View,Nursing Permanent,"1,852.00",0.00,Nursing Care
04/01/2017,Adults & Housing Department,Langdale View,Residential Permanent,"1,900.00",0.00,Residential Care
04/01/2017,Adults & Housing Department,Langdale View,Residential Short Stay,678.57,0.00,Residential Care
04/01/2017,Adults & Housing Department,Langdale View,Residential Short Stay,"1,377.00",0.00,Residential Care
04/01/2017,Adults & Housing Department,Langdale View,Residential Short Stay,852.00,0.00,Residential Care
04/01/2017,Education & Childrens Services,Leic High School For Girls,Neg Pvt Vol & Ind Providers,"12,455.63",0.00,Voluntary Organisations
04/01/2017,Education & Childrens Services,Leicester College,Neg Pvt Vol & Ind Providers,"11,221.88",0.00,Voluntary Organisations
04/01/2017,Education & Childrens Services,Leicester College Abbey Park Campus Nursery,Neg Pvt Vol & Ind Providers,"12,564.07",0.00,Voluntary Organisations
04/01/2017,Education & Childrens Services,Leicester Islamic Academy,Neg Pvt Vol & Ind Providers,"33,385.10",0.00,Voluntary Organisations
04/01/2017,Education & Childrens Services,Leicester Islamic Academy,Neg Pvt Vol & Ind Providers,735.00,0.00,Voluntary Organisations
04/01/2017,Education & Childrens Services,Leicester Montessori School,Neg Pvt Vol & Ind Providers,"3,601.50",0.00,Voluntary Organisations
04/01/2017,Education & Childrens Services,Leicester Montessori School,Neg Pvt Vol & Ind Providers,"11,185.79",0.00,Voluntary Organisations
04/01/2017,Education & Childrens Services,Leicester Montessori School,Neg Pvt Vol & Ind Providers,"7,497.00",0.00,Voluntary Organisations
04/01/2017,Education & Childrens Services,Leicester Preparatory School,Neg Pvt Vol & Ind Providers,"10,692.68",0.00,Voluntary Organisations
04/01/2017,Adults & Housing Department,Leicestershire County Care Ltd T/a Hadrian House,Residential Permanent,"1,564.00",0.00,Residential Care
04/01/2017,Adults & Housing Department,Leicestershire County Care Ltd T/a Hadrian House,Residential Permanent,"1,596.00",0.00,Residential Care
04/01/2017,Adults & Housing Department,Leicestershire County Care Ltd T/a Hadrian House,Residential Permanent,"1,780.00",0.00,Residential Care
04/01/2017,Adults & Housing Department,Leicestershire County Care Ltd T/a Hadrian House,Residential Permanent,"1,780.00",0.00,Residential Care
04/01/2017,Adults & Housing Department,Leicestershire County Care Ltd T/a Hadrian House,Residential Permanent,"1,596.00",0.00,Residential Care
04/01/2017,Adults & Housing Department,Leicestershire County Care Ltd T/a Hadrian House,Residential Permanent,"1,780.00",0.00,Residential Care
04/01/2017,Adults & Housing Department,Leicestershire County Care Ltd t/a Kirby House,Residential Permanent,"1,780.00",0.00,Residential Care
04/01/2017,Adults & Housing Department,Leicestershire County Care Ltd t/a Kirby House,Residential Permanent,"1,596.00",0.00,Residential Care
04/01/2017,Adults & Housing Department,Leicestershire County Care Ltd t/a Kirby House,Residential Permanent,"1,596.00",0.00,Residential Care
04/01/2017,Adults & Housing Department,Leicestershire County Care Ltd t/a Kirby House,Residential Permanent,"1,580.00",0.00,Residential Care
04/01/2017,Adults & Housing Department,Leicestershire County Care Ltd t/a Kirby House,Residential Permanent,"1,436.00",0.00,Residential Care
04/01/2017,Adults & Housing Department,Leicestershire County Care Ltd t/a Kirby House,Residential Permanent,"1,564.00",0.00,Residential Care
04/01/2017,,Leicestershire County Council Environment & Transport,Engineering Consultancy / Consultants Services,545.00,109.00,Engineering & Research & Technology Based Services
04/01/2017,Adults & Housing Department,Leonard Cheshire Foundation,Residential Permanent,"2,427.88",0.00,Residential Care
04/01/2017,Adults & Housing Department,Leonard Cheshire Foundation,Residential Permanent,"1,624.00",0.00,Residential Care
04/01/2017,Adults & Housing Department,Leonard Cheshire Foundation,Residential Permanent,"3,045.96",0.00,Residential Care
04/01/2017,Adults & Housing Department,Leonard Elms Care Home,Residential Permanent,"1,320.00",0.00,Residential Care
04/01/2017,Adults & Housing Department,Leonard Elms Care Home,Residential Permanent,"1,780.00",0.00,Residential Care
04/01/2017,Adults & Housing Department,Lester Hall Apartments Ltd,Residential Permanent,"1,900.00",0.00,Residential Care
04/01/2017,Adults & Housing Department,Lester Hall Apartments Ltd,Residential Permanent,"1,900.00",0.00,Residential Care
04/01/2017,Adults & Housing Department,Lester Hall Apartments Ltd,Residential Permanent,"1,900.00",0.00,Residential Care
04/01/2017,Adults & Housing Department,Lester Hall Apartments Ltd,Residential Permanent,"1,528.00",0.00,Residential Care
04/01/2017,Adults & Housing Department,Lester Hall Apartments Ltd,Residential Permanent,"3,519.80",0.00,Residential Care
04/01/2017,Adults & Housing Department,Lester Hall Apartments Ltd,Residential Permanent,894.64,0.00,Residential Care
04/01/2017,Adults & Housing Department,Lester Hall Apartments Ltd,Residential Permanent,"2,328.60",0.00,Residential Care
04/01/2017,Adults & Housing Department,Lester Hall Apartments Ltd,Residential Permanent,"1,900.00",0.00,Residential Care
04/01/2017,Adults & Housing Department,Lester Hall Apartments Ltd,Residential Permanent,824.44,0.00,Residential Care
04/01/2017,Adults & Housing Department,Lester Hall Apartments Ltd,Residential Permanent,797.44,0.00,Residential Care
04/01/2017,Adults & Housing Department,Lester Hall Apartments Ltd,Residential Permanent,"4,011.24",0.00,Residential Care
04/01/2017,Adults & Housing Department,Lester Hall Apartments Ltd,Residential Permanent,929.72,0.00,Residential Care
04/01/2017,Adults & Housing Department,Lester Hall Apartments Ltd,Residential Permanent,"1,900.00",0.00,Residential Care
04/01/2017,Adults & Housing Department,Lester Hall Apartments Ltd,Residential Permanent,"1,900.00",0.00,Residential Care
04/01/2017,Adults & Housing Department,Lester Hall Apartments Ltd,Residential Permanent,"3,177.00",0.00,Residential Care
04/01/2017,Adults & Housing Department,Lester Hall Apartments Ltd,Residential Permanent,"1,900.00",0.00,Residential Care
04/01/2017,Adults & Housing Department,Lester Hall Apartments Ltd,Residential Permanent,881.44,0.00,Residential Care
04/01/2017,Adults & Housing Department,Lester Hall Apartments Ltd,Residential Permanent,"1,900.00",0.00,Residential Care
04/01/2017,Adults & Housing Department,Lester Hall Apartments Ltd,Residential Permanent,"1,900.00",0.00,Residential Care
04/01/2017,Adults & Housing Department,Lester Hall Apartments Ltd,Residential Permanent,"1,448.00",0.00,Residential Care
04/01/2017,Adults & Housing Department,Lester Hall Apartments Ltd,Residential Permanent,"2,685.96",0.00,Residential Care
04/01/2017,Adults & Housing Department,Lester Hall Apartments Ltd,Residential Permanent,"1,900.00",0.00,Residential Care
04/01/2017,Adults & Housing Department,Lester Hall Apartments Ltd,Residential Permanent,"1,900.00",0.00,Residential Care
04/01/2017,Adults & Housing Department,Lester Hall Apartments Ltd,Residential Short Stay,"6,480.00",0.00,Residential Care
04/01/2017,Adults & Housing Department,Lester Hall Apartments Ltd,Residential Short Stay,"4,860.00",0.00,Residential Care
04/01/2017,Adults & Housing Department,Lester Hall Apartments Ltd,Residential Short Stay,"6,480.00",0.00,Residential Care
04/01/2017,Adults & Housing Department,Lifeways Community Care Ltd FA SL&FSB,DAY SUPPORT,"5,892.60",0.00,LD Supported Living
04/01/2017,Adults & Housing Department,Lingdale Lodge,Residential Short Stay,"1,780.00",0.00,Residential Care
04/01/2017,Adults & Housing Department,Lingdale Lodge,Residential Short Stay,699.29,0.00,Residential Care
04/01/2017,Adults & Housing Department,Linkage Community Trust,Residential Permanent,"1,624.00",0.00,Residential Care
04/01/2017,Adults & Housing Department,Linkage Community Trust,Residential Permanent,729.48,0.00,Residential Care
04/01/2017,Education & Childrens Services,Little Angelz Day Nursery,Neg Pvt Vol & Ind Providers,"5,328.75",0.00,Voluntary Organisations
04/01/2017,Education & Childrens Services,Little Champs Nursery,Neg Pvt Vol & Ind Providers,"4,636.80",0.00,Voluntary Organisations
04/01/2017,Education & Childrens Services,Little Cupcakes,Neg Pvt Vol & Ind Providers,"13,068.00",0.00,Voluntary Organisations
04/01/2017,Education & Childrens Services,Little Fish Pre School,Neg Pvt Vol & Ind Providers,"9,875.25",0.00,Voluntary Organisations
04/01/2017,Education & Childrens Services,Little Johns Preschool,Neg Pvt Vol & Ind Providers,"5,409.60",0.00,Voluntary Organisations
04/01/2017,Education & Childrens Services,Little MuMins Day Care Ltd,Neg Pvt Vol & Ind Providers,"15,580.95",0.00,Voluntary Organisations
04/01/2017,Education & Childrens Services,Little Peepul Day Nursery,Neg Pvt Vol & Ind Providers,"14,040.00",0.00,Voluntary Organisations
04/01/2017,Education & Childrens Services,Little Stars (Leicester) Ltd,Neg Pvt Vol & Ind Providers,"9,443.93",0.00,Voluntary Organisations
04/01/2017,Education & Childrens Services,LittleFootprints Nursery Ltd,Neg Pvt Vol & Ind Providers,"11,054.12",0.00,Voluntary Organisations
04/01/2017,,Lowe Electrical,Building Works - Alterations,"8,321.16","1,664.23",Building Works - Alterations
04/01/2017,City Developments and Neighbourhood,Lowe Electrical,Electricity at Work - Surveys,"2,067.63",413.53,Electricity at Work
04/01/2017,City Developments and Neighbourhood,Lowe Electrical,Electricity at Work - Surveys,"1,737.85",347.57,Electricity at Work
04/01/2017,City Developments and Neighbourhood,Lowe Electrical,Electricity at Work - Surveys,"4,449.33",889.87,Electricity at Work
04/01/2017,City Developments and Neighbourhood,Lowe Electrical,Responsive,"6,785.77","1,357.15",Building Services / Repairs & Maintenance  Fixtures & Fittings
04/01/2017,City Developments and Neighbourhood,Lowe Electrical,Responsive,"2,279.70",455.94,Building Services / Repairs & Maintenance  Fixtures & Fittings
04/01/2017,City Developments and Neighbourhood,Lowe Electrical,Responsive,"6,339.39","1,267.88",Building Services / Repairs & Maintenance  Fixtures & Fittings
04/01/2017,City Developments and Neighbourhood,Lowe Electrical,Responsive,"1,307.32",261.46,Building Services / Repairs & Maintenance  Fixtures & Fittings
04/01/2017,City Developments and Neighbourhood,Lowe Electrical,Responsive,"1,851.64",370.33,Building Services / Repairs & Maintenance  Fixtures & Fittings
04/01/2017,City Developments and Neighbourhood,Lowe Electrical,Responsive,"1,114.96",222.99,Building Services / Repairs & Maintenance  Fixtures & Fittings
04/01/2017,City Developments and Neighbourhood,Lowe Electrical,Responsive,"3,042.61",608.52,Building Services / Repairs & Maintenance  Fixtures & Fittings
04/01/2017,City Developments and Neighbourhood,Lowe Electrical,Responsive,"4,203.13",840.63,Building Services / Repairs & Maintenance  Fixtures & Fittings
04/01/2017,City Developments and Neighbourhood,Lowe Electrical,Responsive,"1,694.07",338.81,Building Services / Repairs & Maintenance  Fixtures & Fittings
04/01/2017,City Developments and Neighbourhood,Lowe Electrical,Responsive,"1,731.48",346.30,Building Services / Repairs & Maintenance  Fixtures & Fittings
04/01/2017,City Developments and Neighbourhood,Lowe Electrical,Responsive,"3,621.95",724.39,Building Services / Repairs & Maintenance  Fixtures & Fittings
04/01/2017,City Developments and Neighbourhood,Lowe Electrical,Responsive,"2,301.36",460.27,Building Services / Repairs & Maintenance  Fixtures & Fittings
04/01/2017,City Developments and Neighbourhood,Lowe Electrical,Responsive,"1,164.00",232.80,Building Services / Repairs & Maintenance  Fixtures & Fittings
04/01/2017,City Developments and Neighbourhood,Lowe Electrical,Responsive,"1,544.45",308.89,Building Services / Repairs & Maintenance  Fixtures & Fittings
04/01/2017,City Developments and Neighbourhood,Lowe Electrical,Responsive,"1,193.31",238.66,Building Services / Repairs & Maintenance  Fixtures & Fittings
04/01/2017,Adults & Housing Department,Macintyre Care,Residential Permanent,"1,393.20",0.00,Residential Care
04/01/2017,Adults & Housing Department,Macintyre Care,Residential Permanent,"2,324.16",0.00,Residential Care
04/01/2017,Adults & Housing Department,Macintyre Care,Residential Permanent,812.00,0.00,Residential Care
04/01/2017,Adults & Housing Department,Macintyre Care,Residential Permanent,"6,184.00",0.00,Residential Care
04/01/2017,Adults & Housing Department,Macintyre Care,Residential Permanent,"2,932.44",0.00,Residential Care
04/01/2017,Adults & Housing Department,Macintyre Care,Residential Permanent,"1,732.00",0.00,Residential Care
04/01/2017,Adults & Housing Department,Magnum Care Ltd T/a Aberry House,Nursing Permanent,"1,852.00",0.00,Nursing Care
04/01/2017,Adults & Housing Department,Magnum Care Ltd T/a Aberry House,Nursing Permanent,"1,322.86",0.00,Nursing Care
04/01/2017,Adults & Housing Department,Magnum Care Ltd T/a Aberry House,Nursing Permanent,"1,852.00",0.00,Nursing Care
04/01/2017,Adults & Housing Department,Magnum Care Ltd T/a Aberry House,Nursing Permanent,"1,852.00",0.00,Nursing Care
04/01/2017,Adults & Housing Department,Magnum Care Ltd T/a Aberry House,Nursing Permanent,"1,852.00",0.00,Nursing Care
04/01/2017,Adults & Housing Department,Magnum Care Ltd T/a Aberry House,Residential Permanent,"1,900.00",0.00,Residential Care
04/01/2017,Adults & Housing Department,Magnum Care Ltd T/a Aberry House,Residential Permanent,"1,900.00",0.00,Residential Care
04/01/2017,Adults & Housing Department,Magnum Care Ltd T/a Aberry House,Residential Permanent,"1,704.00",0.00,Residential Care
04/01/2017,Adults & Housing Department,Magnum Care Ltd T/a Aberry House,Residential Permanent,"1,704.00",0.00,Residential Care
04/01/2017,Adults & Housing Department,Magnum Care Ltd T/a Aberry House,Residential Permanent,580.00,0.00,Residential Care
04/01/2017,Adults & Housing Department,Magnum Care Ltd T/a Aberry House,Residential Permanent,"1,900.00",0.00,Residential Care
04/01/2017,Adults & Housing Department,Magnum Care Ltd T/a Aberry House,Residential Permanent,837.60,0.00,Residential Care
04/01/2017,Adults & Housing Department,Magnum Care Ltd T/a Alston House,Interim Residential (Delayed Discharges),"1,095.43",0.00,Residential Care
04/01/2017,Adults & Housing Department,Magnum Care Ltd T/a Alston House,Interim Residential (Delayed Discharges),"1,460.57",0.00,Residential Care
04/01/2017,Adults & Housing Department,Magnum Care Ltd T/a Alston House,Residential Permanent,"1,900.00",0.00,Residential Care
04/01/2017,Adults & Housing Department,Magnum Care Ltd T/a Alston House,Residential Permanent,"1,704.00",0.00,Residential Care
04/01/2017,Adults & Housing Department,Magnum Care Ltd T/a Alston House,Residential Permanent,"1,900.00",0.00,Residential Care
04/01/2017,Adults & Housing Department,Magnum Care Ltd T/a Alston House,Residential Permanent,"1,900.00",0.00,Residential Care
04/01/2017,Adults & Housing Department,Magnum Care Ltd T/a Alston House,Residential Permanent,"1,704.00",0.00,Residential Care
04/01/2017,Adults & Housing Department,Magnum Care Ltd T/a Alston House,Residential Respite,973.71,0.00,Residential Care
04/01/2017,Adults & Housing Department,Magnum Care Ltd T/a Alston House,Residential Respite,912.86,0.00,Residential Care
04/01/2017,Adults & Housing Department,Manor Nursing Home,Nursing Permanent,"1,852.00",0.00,Nursing Care
04/01/2017,Adults & Housing Department,Manor Nursing Home,Nursing Permanent,"1,852.00",0.00,Nursing Care
04/01/2017,Adults & Housing Department,Manor Nursing Home,Nursing Permanent,"2,052.00",0.00,Nursing Care
04/01/2017,Adults & Housing Department,Manor Nursing Home,Nursing Permanent,"1,852.00",0.00,Nursing Care
04/01/2017,Adults & Housing Department,Manor Nursing Home,Nursing Permanent,"1,852.00",0.00,Nursing Care
04/01/2017,Adults & Housing Department,Manor Nursing Home,Nursing Permanent,"2,052.00",0.00,Nursing Care
04/01/2017,Adults & Housing Department,Manor Nursing Home,Nursing Permanent,"1,852.00",0.00,Nursing Care
04/01/2017,Adults & Housing Department,Manor Nursing Home,Nursing Permanent,"1,852.00",0.00,Nursing Care
04/01/2017,Adults & Housing Department,Manor Nursing Home,Nursing Permanent,"1,319.14",0.00,Nursing Care
04/01/2017,Adults & Housing Department,Manor Nursing Home,Nursing Permanent,"1,852.00",0.00,Nursing Care
04/01/2017,Adults & Housing Department,Manor Nursing Home,Nursing Permanent,"1,852.00",0.00,Nursing Care
04/01/2017,Adults & Housing Department,Manor Nursing Home,Nursing Permanent,"1,852.00",0.00,Nursing Care
04/01/2017,Adults & Housing Department,Manor Nursing Home,Nursing Permanent,"2,052.00",0.00,Nursing Care
04/01/2017,Adults & Housing Department,Manor Nursing Home,Nursing Permanent,"1,152.00",0.00,Nursing Care
04/01/2017,Adults & Housing Department,Manor Nursing Home,Residential Permanent,"1,900.00",0.00,Residential Care
04/01/2017,Adults & Housing Department,Manor Nursing Home,Residential Permanent,"1,704.00",0.00,Residential Care
04/01/2017,Adults & Housing Department,Manor Nursing Home,Residential Permanent,"1,900.00",0.00,Residential Care
04/01/2017,Adults & Housing Department,Manor Nursing Home,Residential Permanent,"1,900.00",0.00,Residential Care
04/01/2017,Adults & Housing Department,Marston Court Ltd T/a Marston Court,Residential Permanent,"1,644.48",0.00,Residential Care
04/01/2017,Adults & Housing Department,Marston Court Ltd T/a Marston Court,Residential Permanent,"1,732.00",0.00,Residential Care
04/01/2017,Adults & Housing Department,Marston Court Ltd T/a Marston Court,Residential Permanent,"2,841.68",0.00,Residential Care
04/01/2017,Adults & Housing Department,Marston Court Ltd T/a Marston Court,Residential Permanent,"1,732.00",0.00,Residential Care
04/01/2017,Adults & Housing Department,Marston Court Ltd T/a Marston Court,Residential Permanent,"1,732.00",0.00,Residential Care
04/01/2017,Adults & Housing Department,Marston Court Ltd T/a Marston Court,Residential Permanent,"1,683.96",0.00,Residential Care
04/01/2017,Adults & Housing Department,Marston Court Ltd T/a Marston Court,Residential Permanent,"1,732.00",0.00,Residential Care
04/01/2017,Adults & Housing Department,Marston Court Ltd T/a Marston Court,Residential Permanent,"1,803.48",0.00,Residential Care
04/01/2017,Adults & Housing Department,Marston Court Ltd T/a Marston Court,Residential Permanent,"2,982.00",0.00,Residential Care
04/01/2017,Adults & Housing Department,Marston Court Ltd T/a Marston Court,Residential Permanent,"1,732.00",0.00,Residential Care
04/01/2017,Adults & Housing Department,Marston Court Ltd T/a Marston Court,Residential Permanent,"2,069.84",0.00,Residential Care
04/01/2017,Adults & Housing Department,Marston Court Ltd T/a Marston Court,Residential Permanent,"1,732.00",0.00,Residential Care
04/01/2017,Adults & Housing Department,Marston Court Ltd T/a Marston Court,Residential Permanent,"1,560.00",0.00,Residential Care
04/01/2017,Adults & Housing Department,Marston Court Ltd T/a Marston Court,Residential Permanent,"1,732.00",0.00,Residential Care
04/01/2017,Adults & Housing Department,Marston Court Ltd T/a Marston Court,Residential Permanent,"1,732.00",0.00,Residential Care
04/01/2017,Adults & Housing Department,Marston Court Ltd T/a Marston Court,Residential Permanent,"1,732.00",0.00,Residential Care
04/01/2017,Adults & Housing Department,Marston Court Ltd T/a Marston Court,Residential Permanent,"1,900.00",0.00,Residential Care
04/01/2017,Adults & Housing Department,Marston Court Ltd T/a Marston Court,Residential Permanent,"1,095.48",0.00,Residential Care
04/01/2017,Adults & Housing Department,Marston Court Ltd T/a Marston Court,Residential Permanent,690.68,0.00,Residential Care
04/01/2017,Adults & Housing Department,Marston Court Ltd T/a Marston Court,Residential Permanent,"1,732.00",0.00,Residential Care
04/01/2017,Adults & Housing Department,Marston Court Ltd T/a Marston Court,Residential Permanent,"1,732.00",0.00,Residential Care
04/01/2017,Adults & Housing Department,Marston Court Ltd T/a Marston Court,Residential Permanent,955.56,0.00,Residential Care
04/01/2017,Adults & Housing Department,Marston Court Ltd T/a Marston Court,Residential Permanent,"2,479.88",0.00,Residential Care
04/01/2017,Adults & Housing Department,Marston Court Ltd T/a Marston Court,Residential Permanent,"1,163.00",0.00,Residential Care
04/01/2017,Adults & Housing Department,Marston Court Ltd T/a Marston Court,Residential Permanent,"1,732.00",0.00,Residential Care
04/01/2017,Adults & Housing Department,Marston Court Ltd T/a Marston Court,Residential Permanent,"1,732.00",0.00,Residential Care
04/01/2017,Adults & Housing Department,Marston Court Ltd T/a Marston Court,Residential Permanent,"1,596.24",0.00,Residential Care
04/01/2017,Adults & Housing Department,Marston Court Ltd T/a Marston Court,Residential Permanent,"2,883.96",0.00,Residential Care
04/01/2017,Adults & Housing Department,Mauricare (AS) Ltd,Residential Permanent,"1,900.00",0.00,Residential Care
04/01/2017,Adults & Housing Department,Mauricare (AS) Ltd,Residential Permanent,"1,704.00",0.00,Residential Care
04/01/2017,Adults & Housing Department,Mauricare (AS) Ltd,Residential Permanent,"1,704.00",0.00,Residential Care
04/01/2017,Adults & Housing Department,Mauricare (AS) Ltd,Residential Permanent,"1,900.00",0.00,Residential Care
04/01/2017,Adults & Housing Department,Mauricare (AS) Ltd,Residential Permanent,"1,704.00",0.00,Residential Care
04/01/2017,Adults & Housing Department,Mauricare (AS) Ltd,Residential Permanent,"1,704.00",0.00,Residential Care
04/01/2017,Adults & Housing Department,Mauricare (AS) Ltd,Residential Permanent,"1,900.00",0.00,Residential Care
04/01/2017,Adults & Housing Department,Mauricare (AS) Ltd,Residential Permanent,"1,704.00",0.00,Residential Care
04/01/2017,Adults & Housing Department,Mauricare (AS) Ltd,Residential Permanent,"1,704.00",0.00,Residential Care
04/01/2017,Adults & Housing Department,Mauricare (AS) Ltd,Residential Permanent,"1,900.00",0.00,Residential Care
04/01/2017,Adults & Housing Department,Mauricare (AS) Ltd,Residential Permanent,"1,900.00",0.00,Residential Care
04/01/2017,Adults & Housing Department,Mauricare (AS) Ltd,Residential Permanent,"1,900.00",0.00,Residential Care
04/01/2017,Adults & Housing Department,Mauricare (AS) Ltd,Residential Permanent,"1,704.00",0.00,Residential Care
04/01/2017,Adults & Housing Department,Mauricare (AS) Ltd,Residential Permanent,608.57,0.00,Residential Care
04/01/2017,Adults & Housing Department,Mauricare (AS) Ltd,Residential Permanent,"1,425.00",0.00,Residential Care
04/01/2017,Adults & Housing Department,Mauricare (AS) Ltd,Residential Permanent,"1,900.00",0.00,Residential Care
04/01/2017,Adults & Housing Department,Mauricare Ltd,Residential Permanent,"1,704.00",0.00,Residential Care
04/01/2017,Adults & Housing Department,Mauricare Ltd,Residential Permanent,"1,732.00",0.00,Residential Care
04/01/2017,Adults & Housing Department,Mauricare Ltd,Residential Permanent,"1,704.00",0.00,Residential Care
04/01/2017,Adults & Housing Department,Mauricare Ltd,Residential Permanent,"1,528.00",0.00,Residential Care
04/01/2017,Adults & Housing Department,Mauricare Ltd,Residential Permanent,"1,704.00",0.00,Residential Care
04/01/2017,Adults & Housing Department,Mauricare Ltd,Residential Permanent,"1,704.00",0.00,Residential Care
04/01/2017,Adults & Housing Department,Mauricare Ltd,Residential Permanent,"1,900.00",0.00,Residential Care
04/01/2017,Adults & Housing Department,Mauricare Ltd,Residential Permanent,"1,900.00",0.00,Residential Care
04/01/2017,Adults & Housing Department,Mauricare Ltd,Residential Permanent,"1,704.00",0.00,Residential Care
04/01/2017,Adults & Housing Department,Mauricare Ltd,Residential Permanent,"1,900.00",0.00,Residential Care
04/01/2017,Adults & Housing Department,Mauricare Ltd,Residential Respite,"1,492.86",0.00,Residential Care
04/01/2017,Adults & Housing Department,Mauricare Ltd,Residential Short Stay,610.71,0.00,Residential Care
04/01/2017,Adults & Housing Department,Mauricare Ltd,Residential Short Stay,"1,696.43",0.00,Residential Care
04/01/2017,Adults & Housing Department,Mauricare Ltd,Residential Short Stay,"1,289.29",0.00,Residential Care
04/01/2017,Adults & Housing Department,Mauricare Ltd,Residential Short Stay,852.00,0.00,Residential Care
04/01/2017,Adults & Housing Department,Medpage Ltd t/a Easylink UK,Aids & Adaptations,609.15,121.83,Aids & Adaptations
04/01/2017,Adults & Housing Department,Medpage Ltd t/a Easylink UK,Aids & Adaptations,"1,474.00",294.80,Aids & Adaptations
04/01/2017,Adults & Housing Department,Melbourne Home,Residential Permanent,"1,900.00",0.00,Residential Care
04/01/2017,Adults & Housing Department,Melbourne Home,Residential Permanent,"1,704.00",0.00,Residential Care
04/01/2017,Adults & Housing Department,Melbourne Home,Residential Short Stay,"1,900.00",0.00,Residential Care
04/01/2017,Adults & Housing Department,Melbourne Home,Residential Short Stay,"1,153.57",0.00,Residential Care
04/01/2017,Adults & Housing Department,MENTAL HEALTH CARE (HIGHFIELD PARK) LTD,Residential Permanent,"4,653.32",0.00,Residential Care
04/01/2017,Adults & Housing Department,Mentaur Ltd,Residential Permanent,"1,676.00",0.00,Residential Care
04/01/2017,Adults & Housing Department,Mentaur Ltd,Residential Permanent,"2,986.00",0.00,Residential Care
04/01/2017,Adults & Housing Department,Mercia Care Homes Ltd,Residential Short Stay,"1,564.00",0.00,Residential Care
04/01/2017,Adults & Housing Department,Mercia Care Homes Ltd,Residential Short Stay,"1,005.43",0.00,Residential Care
04/01/2017,Adults & Housing Department,Mercia Care Homes Ltd,Residential Short Stay,"1,564.00",0.00,Residential Care
04/01/2017,Adults & Housing Department,Mercia Care Homes Ltd,Residential Short Stay,920.57,0.00,Residential Care
04/01/2017,Adults & Housing Department,Mercia Care Homes Ltd,Residential Short Stay,"1,432.00",0.00,Residential Care
04/01/2017,Adults & Housing Department,Mercia Care Homes Ltd,Residential Short Stay,"1,432.00",0.00,Residential Care
04/01/2017,Adults & Housing Department,Mere Lodge Ltd T/a Mere Lodge,Residential Permanent,"2,732.20",0.00,Residential Care
04/01/2017,Adults & Housing Department,Mere Lodge Ltd T/a Mere Lodge,Residential Permanent,"1,900.00",0.00,Residential Care
04/01/2017,Adults & Housing Department,Mere Lodge Ltd T/a Mere Lodge,Residential Permanent,"7,656.76",0.00,Residential Care
04/01/2017,Adults & Housing Department,Mere Lodge Ltd T/a Mere Lodge,Residential Permanent,"1,732.00",0.00,Residential Care
04/01/2017,Adults & Housing Department,Mere Lodge Ltd T/a Mere Lodge,Residential Permanent,"1,528.00",0.00,Residential Care
04/01/2017,Adults & Housing Department,Mere Lodge Ltd T/a Mere Lodge,Residential Permanent,"1,700.00",0.00,Residential Care
04/01/2017,Adults & Housing Department,Mere Lodge Ltd T/a Mere Lodge,Residential Permanent,"4,304.64",0.00,Residential Care
04/01/2017,Adults & Housing Department,Mere Lodge Ltd T/a Mere Lodge,Residential Permanent,"7,316.00",0.00,Residential Care
04/01/2017,Adults & Housing Department,Methodist Home For The Aged,Residential Permanent,"2,552.00",0.00,Residential Care
04/01/2017,Adults & Housing Department,Methodist Home For The Aged,Residential Permanent,"1,336.00",0.00,Residential Care
04/01/2017,Adults & Housing Department,Methodist Home For The Aged,Residential Permanent,"1,596.00",0.00,Residential Care
04/01/2017,City Developments and Neighbourhood,Microsynthesis,TM(Talent Match) County,500.52,0.00,Step-Up
04/01/2017,Adults & Housing Department,Milkwood Care Ltd T/a Castleford House Nursing Home,Nursing Permanent,"1,956.00",0.00,Nursing Care
04/01/2017,Education & Childrens Services,Milky Way Day Nursery Ltd,Neg Pvt Vol & Ind Providers,"8,799.18",0.00,Voluntary Organisations
04/01/2017,Adults & Housing Department,Milligan Court,Residential Permanent,"6,819.64",0.00,Residential Care
04/01/2017,Adults & Housing Department,Milligan Court,Residential Permanent,"1,732.00",0.00,Residential Care
04/01/2017,Adults & Housing Department,Milligan Court,Residential Permanent,"1,732.00",0.00,Residential Care
04/01/2017,Adults & Housing Department,Milligan Court,Residential Permanent,"6,836.44",0.00,Residential Care
04/01/2017,Adults & Housing Department,Milligan Court,Residential Permanent,"1,732.00",0.00,Residential Care
04/01/2017,Adults & Housing Department,Milligan Court,Residential Permanent,"4,365.36",0.00,Residential Care
04/01/2017,Adults & Housing Department,Milligan Court,Residential Permanent,"1,732.00",0.00,Residential Care
04/01/2017,Adults & Housing Department,Milligan Court,Residential Permanent,"5,924.08",0.00,Residential Care
04/01/2017,Adults & Housing Department,Milligan Court,Residential Short Stay,"1,900.00",0.00,Residential Care
04/01/2017,Adults & Housing Department,Milligan Court,Residential Short Stay,"5,856.00",0.00,Residential Care
04/01/2017,Education & Childrens Services,Millstone Day Nursery,Neg Pvt Vol & Ind Providers,"24,321.60",0.00,Voluntary Organisations
04/01/2017,Adults & Housing Department,Minster Pathways,Residential Permanent,"1,586.64",0.00,Residential Care
04/01/2017,Adults & Housing Department,Minster Pathways,Residential Permanent,"1,624.00",0.00,Residential Care
04/01/2017,Adults & Housing Department,Minster Pathways,Residential Permanent,"2,166.08",0.00,Residential Care
04/01/2017,Adults & Housing Department,Minster Pathways Ltd,Residential Permanent,"2,789.60",0.00,Residential Care
04/01/2017,,Mkn Construction,Building Works - Alterations,"5,557.50",0.00,Building Works - Alterations
04/01/2017,Adults & Housing Department,Moat House Retirement Home Ltd,Residential Permanent,670.68,0.00,Residential Care
04/01/2017,Adults & Housing Department,Moat House Retirement Home Ltd,Residential Permanent,"1,744.00",0.00,Residential Care
04/01/2017,City Developments and Neighbourhood,Molson Coors,Catering - Provisions,"3,502.22",700.44,Catering Provisions / Food & Drink
04/01/2017,Adults & Housing Department,Mosaic Shaping Disability Serv,Day Care /Community Opportunities,"3,059.20",0.00,Day Care /Community Opportunities
04/01/2017,Adults & Housing Department,Mosaic Shaping Disability Serv,Day Care /Community Opportunities,573.60,0.00,Day Care /Community Opportunities
04/01/2017,Adults & Housing Department,Mosaic Shaping Disability Serv,Day Care /Community Opportunities,573.60,0.00,Day Care /Community Opportunities
04/01/2017,Adults & Housing Department,Mosaic Shaping Disability Serv,Day Care /Community Opportunities,573.60,0.00,Day Care /Community Opportunities
04/01/2017,Adults & Housing Department,Mosaic Shaping Disability Serv,Day Care /Community Opportunities,659.64,0.00,Day Care /Community Opportunities
04/01/2017,Adults & Housing Department,Mosaic Shaping Disability Serv,Day Care /Community Opportunities,956.00,0.00,Day Care /Community Opportunities
04/01/2017,,Mr & Mrs Parmar T/A Parmar Properties,Building Works - Alterations,"100,000.00","20,000.00",Building Works - Alterations
04/01/2017,Adults & Housing Department,Mymil Ltd T/a Scraptoft Court Care Home,Nursing Permanent,"1,852.00",0.00,Nursing Care
04/01/2017,Adults & Housing Department,Mymil Ltd T/a Scraptoft Court Care Home,Nursing Permanent,"1,852.00",0.00,Nursing Care
04/01/2017,Adults & Housing Department,Mymil Ltd T/a Scraptoft Court Care Home,Nursing Permanent,"1,852.00",0.00,Nursing Care
04/01/2017,Adults & Housing Department,Mymil Ltd T/a Scraptoft Court Care Home,Nursing Permanent,"1,348.00",0.00,Nursing Care
04/01/2017,Adults & Housing Department,Mymil Ltd T/a Scraptoft Court Care Home,Nursing Permanent,"1,852.00",0.00,Nursing Care
04/01/2017,Adults & Housing Department,Mymil Ltd T/a Scraptoft Court Care Home,Nursing Permanent,608.00,0.00,Nursing Care
04/01/2017,Adults & Housing Department,Mymil Ltd T/a Scraptoft Court Care Home,Nursing Permanent,"1,852.00",0.00,Nursing Care
04/01/2017,Adults & Housing Department,Mymil Ltd T/a Scraptoft Court Care Home,Nursing Permanent,"1,852.00",0.00,Nursing Care
04/01/2017,Adults & Housing Department,Mymil Ltd T/a Scraptoft Court Care Home,Nursing Permanent,"1,852.00",0.00,Nursing Care
04/01/2017,Adults & Housing Department,Mymil Ltd T/a Scraptoft Court Care Home,Nursing Permanent,"1,852.00",0.00,Nursing Care
04/01/2017,Adults & Housing Department,Mymil Ltd T/a Scraptoft Court Care Home,Nursing Short Stay,"1,639.29",0.00,Nursing Care
04/01/2017,Adults & Housing Department,Mymil Ltd T/a Scraptoft Court Care Home,Nursing Short Stay,"1,335.71",0.00,Nursing Care
04/01/2017,Adults & Housing Department,NAS SERVICES LTD,Residential Permanent,"8,520.00","1,704.00",Residential Care
04/01/2017,Adults & Housing Department,NORFOLK LODGE,Residential Permanent,"1,644.00",0.00,Residential Care
04/01/2017,Adults & Housing Department,NORFOLK LODGE,Residential Permanent,856.00,0.00,Residential Care
04/01/2017,Adults & Housing Department,Northfield House,Residential Permanent,"1,780.00",0.00,Residential Care
04/01/2017,Adults & Housing Department,Northgate Public Services (uk) Ltd,Equipment Purchase,"2,235.88",447.18,Equipment Purchase
04/01/2017,Adults & Housing Department,Northgate Public Services (uk) Ltd,Membership and Subscriptions,"2,880.00",576.00,Corporate Membership & Subscriptions
04/01/2017,Adults & Housing Department,Nottingham community  Housing Association (Carefirst),Interim Residential (Delayed Discharges),"1,425.00",0.00,Residential Care
04/01/2017,Adults & Housing Department,Nottingham community  Housing Association (Carefirst),Residential Permanent,"1,900.00",0.00,Residential Care
04/01/2017,Adults & Housing Department,Nottingham community  Housing Association (Carefirst),Residential Permanent,"1,704.00",0.00,Residential Care
04/01/2017,Adults & Housing Department,Nottingham community  Housing Association (Carefirst),Residential Permanent,"1,704.00",0.00,Residential Care
04/01/2017,Adults & Housing Department,Nottingham community  Housing Association (Carefirst),Residential Permanent,"1,704.00",0.00,Residential Care
04/01/2017,Adults & Housing Department,Nottingham community  Housing Association (Carefirst),Residential Permanent,"1,704.00",0.00,Residential Care
04/01/2017,Adults & Housing Department,Nottingham community  Housing Association (Carefirst),Residential Permanent,"1,900.00",0.00,Residential Care
04/01/2017,Adults & Housing Department,Nottingham community  Housing Association (Carefirst),Residential Permanent,"1,900.00",0.00,Residential Care
04/01/2017,Adults & Housing Department,Nottingham community  Housing Association (Carefirst),Residential Permanent,"1,704.00",0.00,Residential Care
04/01/2017,Adults & Housing Department,Nottingham community  Housing Association (Carefirst),Residential Permanent,"1,900.00",0.00,Residential Care
04/01/2017,Adults & Housing Department,Nottingham community  Housing Association (Carefirst),Residential Permanent,"1,900.00",0.00,Residential Care
04/01/2017,Adults & Housing Department,Nottingham community  Housing Association (Carefirst),Residential Permanent,"1,704.00",0.00,Residential Care
04/01/2017,Adults & Housing Department,Nottingham community  Housing Association (Carefirst),Residential Permanent,"1,704.00",0.00,Residential Care
04/01/2017,Adults & Housing Department,Novalis Trust T/a Paradise House,Residential Permanent,"5,628.00",0.00,Residential Care
04/01/2017,Adults & Housing Department,OCS Group UK Ltd t/a Cannon,Environmental Services,969.27,193.85,Environment Related Services
04/01/2017,City Developments and Neighbourhood,Oliveti Construction Ltd,Responsive,"1,251.88",250.38,Building Works & Repairs/Maintenance/Alterations
04/01/2017,City Developments and Neighbourhood,Oliveti Construction Ltd,Responsive,839.25,167.85,Building Works & Repairs/Maintenance/Alterations
04/01/2017,Education & Childrens Services,Oliveti Construction Ltd,Vandalism,623.35,124.67,Building Works & Repairs/Maintenance/Alterations
04/01/2017,Adults & Housing Department,ONE NINE FIVE Ashby Road,Residential Permanent,"1,592.00",0.00,Residential Care
04/01/2017,Adults & Housing Department,ONE NINE FIVE Ashby Road,Residential Permanent,"9,824.00",0.00,Residential Care
04/01/2017,Adults & Housing Department,ORCHARD MANOR VIEW,Residential Permanent,"1,289.29",0.00,Residential Care
04/01/2017,Adults & Housing Department,ORCHARD MANOR VIEW,Residential Permanent,"1,704.00",0.00,Residential Care
04/01/2017,Adults & Housing Department,ORCHARD MANOR VIEW,Residential Permanent,"1,289.29",0.00,Residential Care
04/01/2017,Adults & Housing Department,ORCHARD MANOR VIEW,Residential Permanent,"1,704.00",0.00,Residential Care
04/01/2017,Adults & Housing Department,Parcs Healthcare Limited T/a Vrandavan Care Home,Residential Permanent,"1,900.00",0.00,Residential Care
04/01/2017,Adults & Housing Department,Parcs Healthcare Limited T/a Vrandavan Care Home,Residential Permanent,"1,704.00",0.00,Residential Care
04/01/2017,Adults & Housing Department,Parcs Healthcare Limited T/a Vrandavan Care Home,Residential Short Stay,"1,704.00",0.00,Residential Care
04/01/2017,Education & Childrens Services,Parkview Day Nursery,Neg Pvt Vol & Ind Providers,"22,209.25",0.00,Voluntary Organisations
04/01/2017,Adults & Housing Department,PEAR TREE GROVE LTD T/AS PEAR TREE GROVE RESIDENTIAL HOME,Residential Permanent,"4,006.96",0.00,Residential Care
04/01/2017,Adults & Housing Department,Pearlcare Glenfield Ltd (CLOSED: VAT REG),Residential Permanent,"1,704.00",0.00,Residential Care
04/01/2017,Adults & Housing Department,Pearlcare Glenfield Ltd (CLOSED: VAT REG),Residential Permanent,"1,704.00",0.00,Residential Care
04/01/2017,Adults & Housing Department,Pearlcare Glenfield Ltd (CLOSED: VAT REG),Residential Permanent,"1,900.00",0.00,Residential Care
04/01/2017,Adults & Housing Department,Pearlcare Glenfield Ltd (CLOSED: VAT REG),Residential Permanent,"1,060.00",0.00,Residential Care
04/01/2017,Adults & Housing Department,Pearlcare Glenfield Ltd (CLOSED: VAT REG),Residential Short Stay,"1,900.00",0.00,Residential Care
04/01/2017,Adults & Housing Department,Pendene House Residential Home Ltd,Residential Permanent,"1,900.00",0.00,Residential Care
04/01/2017,Adults & Housing Department,Pendene House Residential Home Ltd,Residential Permanent,620.00,0.00,Residential Care
04/01/2017,Adults & Housing Department,Pendene House Residential Home Ltd,Residential Permanent,"1,900.00",0.00,Residential Care
04/01/2017,Adults & Housing Department,Pendene House Residential Home Ltd,Residential Permanent,"1,704.00",0.00,Residential Care
04/01/2017,Adults & Housing Department,Pendene House Residential Home Ltd,Residential Permanent,764.00,0.00,Residential Care
04/01/2017,Adults & Housing Department,Pendene House Residential Home Ltd,Residential Permanent,"1,704.00",0.00,Residential Care
04/01/2017,Adults & Housing Department,Pendene House Residential Home Ltd,Residential Permanent,"1,900.00",0.00,Residential Care
04/01/2017,Adults & Housing Department,Pendene House Residential Home Ltd,Residential Respite,"1,900.00",0.00,Residential Care
04/01/2017,Adults & Housing Department,Pendene House Residential Home Ltd,Residential Respite,950.00,0.00,Residential Care
04/01/2017,Adults & Housing Department,Phoenix House,Residential Short Stay,"1,432.00",0.00,Residential Care
04/01/2017,Adults & Housing Department,Phoenix House,Residential Short Stay,"1,048.00",0.00,Residential Care
04/01/2017,Adults & Housing Department,Pilgrim Homes,Residential Permanent,"1,704.00",0.00,Residential Care
04/01/2017,Adults & Housing Department,Pilgrim Homes,Residential Permanent,"1,900.00",0.00,Residential Care
04/01/2017,Adults & Housing Department,Pilgrim Homes,Residential Permanent,"1,704.00",0.00,Residential Care
04/01/2017,Adults & Housing Department,Pilgrim Homes,Residential Permanent,"1,704.00",0.00,Residential Care
04/01/2017,Adults & Housing Department,Pine View Care Homes Ltd T/a Groby Lodge,Residential Permanent,"1,704.00",0.00,Residential Care
04/01/2017,Adults & Housing Department,Pine View Care Homes Ltd T/a Groby Lodge,Residential Permanent,"1,704.00",0.00,Residential Care
04/01/2017,Adults & Housing Department,Pine View Care Homes Ltd T/a Groby Lodge,Residential Permanent,"1,900.00",0.00,Residential Care
04/01/2017,Adults & Housing Department,Pine View Care Homes Ltd T/a Groby Lodge,Residential Permanent,"1,900.00",0.00,Residential Care
04/01/2017,Adults & Housing Department,Pine View Care Homes Ltd T/a Groby Lodge,Residential Permanent,"1,704.00",0.00,Residential Care
04/01/2017,Adults & Housing Department,Pine View Care Homes Ltd T/a Groby Lodge,Residential Permanent,"1,704.00",0.00,Residential Care
04/01/2017,Adults & Housing Department,Pine View Care Homes Ltd T/a Groby Lodge,Residential Permanent,"1,900.00",0.00,Residential Care
04/01/2017,Adults & Housing Department,Pine View Care Homes Ltd T/a Groby Lodge,Residential Permanent,"1,704.00",0.00,Residential Care
04/01/2017,Adults & Housing Department,Pine View Care Homes Ltd T/a Groby Lodge,Residential Permanent,"1,900.00",0.00,Residential Care
04/01/2017,Adults & Housing Department,Pine View Care Homes Ltd T/a Groby Lodge,Residential Permanent,"1,900.00",0.00,Residential Care
04/01/2017,Adults & Housing Department,Pine View Care Homes Ltd T/a Groby Lodge,Residential Permanent,"1,704.00",0.00,Residential Care
04/01/2017,Adults & Housing Department,Pine View Care Homes Ltd T/a Groby Lodge,Residential Permanent,"1,704.00",0.00,Residential Care
04/01/2017,Adults & Housing Department,Pine View Care Homes Ltd T/a Groby Lodge,Residential Permanent,"1,644.00",0.00,Residential Care
04/01/2017,Adults & Housing Department,Pine View Care Homes Ltd T/a Groby Lodge,Residential Permanent,"1,704.00",0.00,Residential Care
04/01/2017,Adults & Housing Department,Pine View Care Homes Ltd T/a Groby Lodge,Residential Permanent,"1,704.00",0.00,Residential Care
04/01/2017,Adults & Housing Department,Pine View Care Homes Ltd T/a Silver Birches,Residential Permanent,"1,704.00",0.00,Residential Care
04/01/2017,Adults & Housing Department,Pine View Care Homes Ltd T/a Silver Birches,Residential Permanent,"1,704.00",0.00,Residential Care
04/01/2017,Adults & Housing Department,Pine View Care Homes Ltd T/a Silver Birches,Residential Permanent,"1,900.00",0.00,Residential Care
04/01/2017,Adults & Housing Department,Pine View Care Homes Ltd T/a Silver Birches,Residential Permanent,"1,704.00",0.00,Residential Care
04/01/2017,Adults & Housing Department,Pine View Care Homes Ltd T/a Silver Birches,Residential Permanent,"1,900.00",0.00,Residential Care
04/01/2017,Adults & Housing Department,Pine View Care Homes Ltd T/a Silver Birches,Residential Permanent,"1,900.00",0.00,Residential Care
04/01/2017,Adults & Housing Department,Pine View Care Homes Ltd T/a Silver Birches,Residential Permanent,635.88,0.00,Residential Care
04/01/2017,Adults & Housing Department,Pine View Care Homes Ltd T/a Silver Birches,Residential Permanent,"1,704.00",0.00,Residential Care
04/01/2017,Adults & Housing Department,Pine View Care Homes Ltd T/a Silver Birches,Residential Permanent,"1,704.00",0.00,Residential Care
04/01/2017,City Developments and Neighbourhood,Pitney Bowes Finance Ltd,Repair & Maintenance Tools / Equipment,"4,293.68",858.74,Repairs & Maintenance - Equipment & Furniture
04/01/2017,Adults & Housing Department,Plas Cwm Carw Care Home,Nursing Permanent,"1,504.00",0.00,Nursing Care
04/01/2017,Education & Childrens Services,Platform Childcare Ltd,Residential Placements,"12,377.86",0.00,Other Agencies
04/01/2017,Education & Childrens Services,Play Days Nursery Ltd,Neg Pvt Vol & Ind Providers,"15,750.00",0.00,Voluntary Organisations
04/01/2017,Adults & Housing Department,Prime Life Ltd,Interim Residential (Delayed Discharges),"1,309.71",0.00,Residential Care
04/01/2017,Adults & Housing Department,Prime Life Ltd,Residential Permanent,"1,412.00",0.00,Residential Care
04/01/2017,Adults & Housing Department,Prime Life Ltd,Residential Permanent,"1,528.00",0.00,Residential Care
04/01/2017,Adults & Housing Department,Prime Life Ltd,Residential Permanent,"1,704.00",0.00,Residential Care
04/01/2017,Adults & Housing Department,Prime Life Ltd,Residential Permanent,"1,704.00",0.00,Residential Care
04/01/2017,Adults & Housing Department,Prime Life Ltd,Residential Permanent,"1,900.00",0.00,Residential Care
04/01/2017,Adults & Housing Department,Prime Life Ltd,Residential Permanent,"1,900.00",0.00,Residential Care
04/01/2017,Adults & Housing Department,Prime Life Ltd,Residential Permanent,"2,200.00",0.00,Residential Care
04/01/2017,Adults & Housing Department,Prime Life Ltd,Residential Permanent,"1,528.00",0.00,Residential Care
04/01/2017,Adults & Housing Department,Prime Life Ltd,Residential Permanent,"1,528.00",0.00,Residential Care
04/01/2017,Adults & Housing Department,Prime Life Ltd,Residential Permanent,"1,900.00",0.00,Residential Care
04/01/2017,Adults & Housing Department,Prime Life Ltd,Residential Permanent,"1,528.00",0.00,Residential Care
04/01/2017,Adults & Housing Department,Prime Life Ltd,Residential Permanent,"1,900.00",0.00,Residential Care
04/01/2017,Adults & Housing Department,Prime Life Ltd,Residential Permanent,609.00,0.00,Residential Care
04/01/2017,Adults & Housing Department,Prime Life Ltd,Residential Permanent,834.00,0.00,Residential Care
04/01/2017,Adults & Housing Department,Prime Life Ltd,Residential Permanent,"1,704.00",0.00,Residential Care
04/01/2017,Adults & Housing Department,Prime Life Ltd,Residential Permanent,"1,704.00",0.00,Residential Care
04/01/2017,Adults & Housing Department,Prime Life Ltd,Residential Permanent,"1,704.00",0.00,Residential Care
04/01/2017,Adults & Housing Department,Prime Life Ltd,Residential Permanent,"1,528.00",0.00,Residential Care
04/01/2017,Adults & Housing Department,Prime Life Ltd,Residential Permanent,"1,900.00",0.00,Residential Care
04/01/2017,Adults & Housing Department,Prime Life Ltd,Residential Permanent,"1,704.00",0.00,Residential Care
04/01/2017,Adults & Housing Department,Prime Life Ltd,Residential Permanent,"1,704.00",0.00,Residential Care
04/01/2017,Adults & Housing Department,Prime Life Ltd,Residential Permanent,"1,082.17",0.00,Residential Care
04/01/2017,Adults & Housing Department,Prime Life Ltd,Residential Permanent,"2,252.00",0.00,Residential Care
04/01/2017,Adults & Housing Department,Prime Life Ltd,Residential Permanent,"1,900.00",0.00,Residential Care
04/01/2017,Adults & Housing Department,Prime Life Ltd,Residential Permanent,950.00,0.00,Residential Care
04/01/2017,Adults & Housing Department,Prime Life Ltd,Residential Permanent,"1,528.00",0.00,Residential Care
04/01/2017,Adults & Housing Department,Prime Life Ltd,Residential Permanent,"1,900.00",0.00,Residential Care
04/01/2017,Adults & Housing Department,Prime Life Ltd,Residential Permanent,"1,744.00",0.00,Residential Care
04/01/2017,Adults & Housing Department,Prime Life Ltd,Residential Permanent,"1,780.00",0.00,Residential Care
04/01/2017,Adults & Housing Department,Prime Life Ltd,Residential Permanent,"1,704.00",0.00,Residential Care
04/01/2017,Adults & Housing Department,Prime Life Ltd,Residential Permanent,"1,704.00",0.00,Residential Care
04/01/2017,Adults & Housing Department,Prime Life Ltd,Residential Permanent,"1,704.00",0.00,Residential Care
04/01/2017,Adults & Housing Department,Prime Life Ltd,Residential Permanent,"1,218.00",0.00,Residential Care
04/01/2017,Adults & Housing Department,Prime Life Ltd,Residential Permanent,"1,528.00",0.00,Residential Care
04/01/2017,Adults & Housing Department,Prime Life Ltd,Residential Permanent,"1,468.00",0.00,Residential Care
04/01/2017,Adults & Housing Department,Prime Life Ltd,Residential Permanent,"1,704.00",0.00,Residential Care
04/01/2017,Adults & Housing Department,Prime Life Ltd,Residential Permanent,"1,704.00",0.00,Residential Care
04/01/2017,Adults & Housing Department,Prime Life Ltd,Residential Permanent,"1,900.00",0.00,Residential Care
04/01/2017,Adults & Housing Department,Prime Life Ltd,Residential Permanent,"1,528.00",0.00,Residential Care
04/01/2017,Adults & Housing Department,Prime Life Ltd,Residential Permanent,"2,416.00",0.00,Residential Care
04/01/2017,Adults & Housing Department,Prime Life Ltd,Residential Permanent,"1,900.00",0.00,Residential Care
04/01/2017,Adults & Housing Department,Prime Life Ltd,Residential Permanent,"1,704.00",0.00,Residential Care
04/01/2017,Adults & Housing Department,Prime Life Ltd,Residential Permanent,"1,704.00",0.00,Residential Care
04/01/2017,Adults & Housing Department,Prime Life Ltd,Residential Permanent,"1,704.00",0.00,Residential Care
04/01/2017,Adults & Housing Department,Prime Life Ltd,Residential Permanent,"1,704.00",0.00,Residential Care
04/01/2017,Adults & Housing Department,Prime Life Ltd,Residential Permanent,"1,315.60",0.00,Residential Care
04/01/2017,Adults & Housing Department,Prime Life Ltd,Residential Permanent,"2,780.00",0.00,Residential Care
04/01/2017,Adults & Housing Department,Prime Life Ltd,Residential Permanent,"1,704.00",0.00,Residential Care
04/01/2017,Adults & Housing Department,Prime Life Ltd,Residential Permanent,"1,704.00",0.00,Residential Care
04/01/2017,Adults & Housing Department,Prime Life Ltd,Residential Permanent,"1,704.00",0.00,Residential Care
04/01/2017,Adults & Housing Department,Prime Life Ltd,Residential Short Stay,"1,900.00",0.00,Residential Care
04/01/2017,Adults & Housing Department,Prime Life Ltd,Residential Short Stay,818.57,0.00,Residential Care
04/01/2017,Adults & Housing Department,Prime Life Ltd,Residential Short Stay,"1,255.14",0.00,Residential Care
04/01/2017,Adults & Housing Department,Prime Life Ltd,Residential Short Stay,"1,528.00",0.00,Residential Care
04/01/2017,Adults & Housing Department,Prime Life Ltd,Residential Short Stay,709.43,0.00,Residential Care
04/01/2017,Adults & Housing Department,Prime Life Plc,Interim Residential (Delayed Discharges),"1,460.57",0.00,Residential Care
04/01/2017,Adults & Housing Department,Prime Life Plc,Nursing Permanent,"1,852.00",0.00,Nursing Care
04/01/2017,Adults & Housing Department,Prime Life Plc,Nursing Permanent,"1,852.00",0.00,Nursing Care
04/01/2017,Adults & Housing Department,Prime Life Plc,Nursing Permanent,"1,852.00",0.00,Nursing Care
04/01/2017,Adults & Housing Department,Prime Life Plc,Nursing Permanent,551.40,0.00,Nursing Care
04/01/2017,Adults & Housing Department,Prime Life Plc,Nursing Permanent,"1,852.00",0.00,Nursing Care
04/01/2017,Adults & Housing Department,Prime Life Plc,Nursing Permanent,"1,852.00",0.00,Nursing Care
04/01/2017,Adults & Housing Department,Prime Life Plc,Nursing Permanent,"1,852.00",0.00,Nursing Care
04/01/2017,Adults & Housing Department,Prime Life Plc,Nursing Permanent,"1,852.00",0.00,Nursing Care
04/01/2017,Adults & Housing Department,Prime Life Plc,Nursing Permanent,"1,852.00",0.00,Nursing Care
04/01/2017,Adults & Housing Department,Prime Life Plc,Nursing Permanent,"1,852.00",0.00,Nursing Care
04/01/2017,Adults & Housing Department,Prime Life Plc,Nursing Permanent,"1,792.00",0.00,Nursing Care
04/01/2017,Adults & Housing Department,Prime Life Plc,Nursing Permanent,"1,852.00",0.00,Nursing Care
04/01/2017,Adults & Housing Department,Prime Life Plc,Residential Permanent,"1,253.64",0.00,Residential Care
04/01/2017,Adults & Housing Department,Prime Life Plc,Residential Permanent,"1,528.00",0.00,Residential Care
04/01/2017,Adults & Housing Department,Prime Life Plc,Residential Permanent,"1,704.00",0.00,Residential Care
04/01/2017,Adults & Housing Department,Prime Life Plc,Residential Permanent,"1,732.00",0.00,Residential Care
04/01/2017,Adults & Housing Department,Prime Life Plc,Residential Permanent,"1,900.00",0.00,Residential Care
04/01/2017,Adults & Housing Department,Prime Life Plc,Residential Permanent,"1,704.00",0.00,Residential Care
04/01/2017,Adults & Housing Department,Prime Life Plc,Residential Permanent,"1,900.00",0.00,Residential Care
04/01/2017,Adults & Housing Department,Prime Life Plc,Residential Permanent,"1,900.00",0.00,Residential Care
04/01/2017,Adults & Housing Department,Prime Life Plc,Residential Permanent,"1,900.00",0.00,Residential Care
04/01/2017,Adults & Housing Department,Prime Life Plc,Residential Permanent,"1,900.00",0.00,Residential Care
04/01/2017,Adults & Housing Department,Prime Life Plc,Residential Permanent,"1,528.00",0.00,Residential Care
04/01/2017,Adults & Housing Department,Prime Life Plc,Residential Permanent,"1,528.00",0.00,Residential Care
04/01/2017,Adults & Housing Department,Prime Life Plc,Residential Permanent,"1,900.00",0.00,Residential Care
04/01/2017,Adults & Housing Department,Prime Life Plc,Residential Permanent,"1,900.00",0.00,Residential Care
04/01/2017,Adults & Housing Department,Prime Life Plc,Residential Permanent,"1,528.00",0.00,Residential Care
04/01/2017,Adults & Housing Department,Prime Life Plc,Residential Permanent,"1,704.00",0.00,Residential Care
04/01/2017,Adults & Housing Department,Prime Life Plc,Residential Permanent,"1,512.00",0.00,Residential Care
04/01/2017,Adults & Housing Department,Prime Life Plc,Residential Permanent,"1,704.00",0.00,Residential Care
04/01/2017,Adults & Housing Department,Prime Life Plc,Residential Permanent,"1,832.14",0.00,Residential Care
04/01/2017,Adults & Housing Department,Prime Life Plc,Residential Permanent,"1,528.00",0.00,Residential Care
04/01/2017,Adults & Housing Department,Prime Life Plc,Residential Permanent,"1,528.00",0.00,Residential Care
04/01/2017,Adults & Housing Department,Prime Life Plc,Residential Permanent,"1,900.00",0.00,Residential Care
04/01/2017,Adults & Housing Department,Prime Life Plc,Residential Permanent,"1,528.00",0.00,Residential Care
04/01/2017,Adults & Housing Department,Prime Life Plc,Residential Permanent,"1,900.00",0.00,Residential Care
04/01/2017,Adults & Housing Department,Prime Life Plc,Residential Permanent,"1,900.00",0.00,Residential Care
04/01/2017,Adults & Housing Department,Prime Life Plc,Residential Permanent,"1,528.00",0.00,Residential Care
04/01/2017,Adults & Housing Department,Prime Life Plc,Residential Permanent,"1,528.00",0.00,Residential Care
04/01/2017,Adults & Housing Department,Prime Life Plc,Residential Permanent,"1,528.00",0.00,Residential Care
04/01/2017,Adults & Housing Department,Prime Life Plc,Residential Permanent,"1,900.00",0.00,Residential Care
04/01/2017,Adults & Housing Department,Prime Life Plc,Residential Permanent,"1,900.00",0.00,Residential Care
04/01/2017,Adults & Housing Department,Prime Life Plc,Residential Permanent,"1,900.00",0.00,Residential Care
04/01/2017,Adults & Housing Department,Prime Life Plc,Residential Permanent,"1,704.00",0.00,Residential Care
04/01/2017,Adults & Housing Department,Prime Life Plc,Residential Permanent,"2,261.96",0.00,Residential Care
04/01/2017,Adults & Housing Department,Prime Life Plc,Residential Permanent,"1,220.32",0.00,Residential Care
04/01/2017,Adults & Housing Department,Prime Life Plc,Residential Permanent,"1,900.00",0.00,Residential Care
04/01/2017,Adults & Housing Department,Prime Life Plc,Residential Permanent,"1,704.00",0.00,Residential Care
04/01/2017,Adults & Housing Department,Prime Life Plc,Residential Permanent,"1,704.00",0.00,Residential Care
04/01/2017,Adults & Housing Department,Prime Life Plc,Residential Permanent,"1,528.00",0.00,Residential Care
04/01/2017,Adults & Housing Department,Prime Life Plc,Residential Permanent,"1,528.00",0.00,Residential Care
04/01/2017,Adults & Housing Department,Prime Life Plc,Residential Permanent,"1,900.00",0.00,Residential Care
04/01/2017,Adults & Housing Department,Prime Life Plc,Residential Permanent,"1,704.00",0.00,Residential Care
04/01/2017,Adults & Housing Department,Prime Life Plc,Residential Permanent,"1,900.00",0.00,Residential Care
04/01/2017,Adults & Housing Department,Prime Life Plc,Residential Permanent,"1,900.00",0.00,Residential Care
04/01/2017,Adults & Housing Department,Prime Life Plc,Residential Permanent,"1,900.00",0.00,Residential Care
04/01/2017,Adults & Housing Department,Prime Life Plc,Residential Permanent,"1,528.00",0.00,Residential Care
04/01/2017,Adults & Housing Department,Prime Life Plc,Residential Permanent,"1,900.00",0.00,Residential Care
04/01/2017,Adults & Housing Department,Prime Life Plc,Residential Permanent,"1,900.00",0.00,Residential Care
04/01/2017,Adults & Housing Department,Prime Life Plc,Residential Permanent,"1,900.00",0.00,Residential Care
04/01/2017,Adults & Housing Department,Prime Life Plc,Residential Permanent,"1,900.00",0.00,Residential Care
04/01/2017,Adults & Housing Department,Prime Life Plc,Residential Permanent,"1,704.00",0.00,Residential Care
04/01/2017,Adults & Housing Department,Prime Life Plc,Residential Permanent,"1,140.00",0.00,Residential Care
04/01/2017,Adults & Housing Department,Prime Life Plc,Residential Permanent,"1,900.00",0.00,Residential Care
04/01/2017,Adults & Housing Department,Prime Life Plc,Residential Permanent,"1,704.00",0.00,Residential Care
04/01/2017,Adults & Housing Department,Prime Life Plc,Residential Permanent,"1,704.00",0.00,Residential Care
04/01/2017,Adults & Housing Department,Prime Life Plc,Residential Permanent,"1,900.00",0.00,Residential Care
04/01/2017,Adults & Housing Department,Prime Life Plc,Residential Permanent,"1,528.00",0.00,Residential Care
04/01/2017,Adults & Housing Department,Prime Life Plc,Residential Permanent,"1,528.00",0.00,Residential Care
04/01/2017,Adults & Housing Department,Prime Life Plc,Residential Permanent,"1,528.00",0.00,Residential Care
04/01/2017,Adults & Housing Department,Prime Life Plc,Residential Permanent,"1,908.00",0.00,Residential Care
04/01/2017,Adults & Housing Department,Prime Life Plc,Residential Permanent,"1,900.00",0.00,Residential Care
04/01/2017,Adults & Housing Department,Prime Life Plc,Residential Permanent,"1,528.00",0.00,Residential Care
04/01/2017,Adults & Housing Department,Prime Life Plc,Residential Permanent,896.00,0.00,Residential Care
04/01/2017,Adults & Housing Department,Prime Life Plc,Residential Permanent,"1,528.00",0.00,Residential Care
04/01/2017,Adults & Housing Department,Prime Life Plc,Residential Permanent,"1,528.00",0.00,Residential Care
04/01/2017,Adults & Housing Department,Prime Life Plc,Residential Permanent,"1,528.00",0.00,Residential Care
04/01/2017,Adults & Housing Department,Prime Life Plc,Residential Permanent,"1,528.00",0.00,Residential Care
04/01/2017,Adults & Housing Department,Prime Life Plc,Residential Permanent,"1,528.00",0.00,Residential Care
04/01/2017,Adults & Housing Department,Prime Life Plc,Residential Permanent,"1,900.00",0.00,Residential Care
04/01/2017,Adults & Housing Department,Prime Life Plc,Residential Permanent,"1,704.00",0.00,Residential Care
04/01/2017,Adults & Housing Department,Prime Life Plc,Residential Permanent,"1,900.00",0.00,Residential Care
04/01/2017,Adults & Housing Department,Prime Life Plc,Residential Respite,855.00,0.00,Residential Care
04/01/2017,Adults & Housing Department,Prime Life Plc,Residential Short Stay,"1,653.00",0.00,Residential Care
04/01/2017,Adults & Housing Department,Prime Life Plc,Residential Short Stay,"2,436.00",0.00,Residential Care
04/01/2017,Adults & Housing Department,Quorn Orchards,Residential Permanent,"1,660.00",0.00,Residential Care
04/01/2017,Adults & Housing Department,Rethink Mental Illness T/a Shipley Lodge,Residential Permanent,"2,234.60",0.00,Residential Care
04/01/2017,Adults & Housing Department,Roman Park,Residential Permanent,"2,218.12",0.00,Residential Care
04/01/2017,Adults & Housing Department,Rose Cottage Rest Home,Residential Permanent,"2,228.00",0.00,Residential Care
04/01/2017,Education & Childrens Services,Roseberry Playgroup,Neg Pvt Vol & Ind Providers,"8,722.00",0.00,Voluntary Organisations
04/01/2017,Adults & Housing Department,Rosywood Care Services,Residential Permanent,"7,806.04",0.00,Residential Care
04/01/2017,Adults & Housing Department,Rosywood Care Services,Residential Permanent,"1,732.00",0.00,Residential Care
04/01/2017,Adults & Housing Department,Royal Leics Rut & Wycliffe Soc,Residential Permanent,"5,109.32",0.00,Residential Care
04/01/2017,Adults & Housing Department,Royal Leics Rut & Wycliffe Soc,Residential Permanent,"3,749.12",0.00,Residential Care
04/01/2017,Adults & Housing Department,Royal Leics Rut & Wycliffe Soc,Residential Permanent,"5,453.68",0.00,Residential Care
04/01/2017,Adults & Housing Department,Royal Leics Rut & Wycliffe Soc,Residential Permanent,"3,375.28",0.00,Residential Care
04/01/2017,Adults & Housing Department,Royal Leics Rut & Wycliffe Soc,Residential Permanent,"5,453.68",0.00,Residential Care
04/01/2017,Adults & Housing Department,Royal Leics Rut & Wycliffe Soc,Residential Permanent,"7,717.80",0.00,Residential Care
04/01/2017,Adults & Housing Department,Royal Leics Rut & Wycliffe Soc,Residential Permanent,"4,980.20",0.00,Residential Care
04/01/2017,Adults & Housing Department,Royal Leics Rut & Wycliffe Soc,Residential Permanent,"1,732.00",0.00,Residential Care
04/01/2017,Adults & Housing Department,Royal Leics Rut & Wycliffe Soc,Residential Permanent,"1,732.00",0.00,Residential Care
04/01/2017,Adults & Housing Department,Royal Leics Rut & Wycliffe Soc,Residential Permanent,"2,767.72",0.00,Residential Care
04/01/2017,Adults & Housing Department,Royal Leics Rut & Wycliffe Soc,Residential Permanent,"1,732.00",0.00,Residential Care
04/01/2017,Adults & Housing Department,Royal Mencap Society,Residential Permanent,"2,986.40",0.00,Residential Care
04/01/2017,Adults & Housing Department,Royal Mencap Society,Residential Permanent,"2,986.40",0.00,Residential Care
04/01/2017,Adults & Housing Department,Royal Mencap Society,Residential Permanent,"2,986.40",0.00,Residential Care
04/01/2017,Adults & Housing Department,Royal Mencap Society,Residential Permanent,"3,556.52",0.00,Residential Care
04/01/2017,Adults & Housing Department,Royal Mencap Society,Residential Permanent,"1,732.00",0.00,Residential Care
04/01/2017,Adults & Housing Department,Royal Mencap Society,Residential Permanent,"1,205.84",0.00,Residential Care
04/01/2017,Adults & Housing Department,Royal Mencap Society,Residential Permanent,"3,540.00",0.00,Residential Care
04/01/2017,Adults & Housing Department,Royal Society For The Blind,Residential Permanent,"1,900.00",0.00,Residential Care
04/01/2017,Adults & Housing Department,Royal Society For The Blind,Residential Permanent,"1,900.00",0.00,Residential Care
04/01/2017,Adults & Housing Department,Royal Society For The Blind,Residential Permanent,"1,900.00",0.00,Residential Care
04/01/2017,Adults & Housing Department,Royal Society For The Blind,Residential Permanent,"1,357.14",0.00,Residential Care
04/01/2017,Adults & Housing Department,Royal Society For The Blind,Residential Permanent,"1,704.00",0.00,Residential Care
04/01/2017,Adults & Housing Department,Royal Society For The Blind,Residential Permanent,"1,900.00",0.00,Residential Care
04/01/2017,Adults & Housing Department,Royal Society For The Blind,Residential Permanent,"1,836.00",0.00,Residential Care
04/01/2017,Adults & Housing Department,Royal Society For The Blind,Residential Permanent,779.08,0.00,Residential Care
04/01/2017,Adults & Housing Department,Royal Society For The Blind,Residential Permanent,"1,836.00",0.00,Residential Care
04/01/2017,Adults & Housing Department,Royal Society For The Blind,Residential Permanent,"1,836.00",0.00,Residential Care
04/01/2017,Adults & Housing Department,Royal Society For The Blind,Residential Permanent,"1,900.00",0.00,Residential Care
04/01/2017,Adults & Housing Department,Royal Society For The Blind,Residential Permanent,"1,900.00",0.00,Residential Care
04/01/2017,Adults & Housing Department,Royal Society For The Blind,Residential Permanent,"1,168.52",0.00,Residential Care
04/01/2017,Adults & Housing Department,Royal Society For The Blind,Residential Permanent,"1,704.00",0.00,Residential Care
04/01/2017,Adults & Housing Department,Royal Society For The Blind,Residential Permanent,"1,900.00",0.00,Residential Care
04/01/2017,Adults & Housing Department,Royal Society For The Blind,Residential Permanent,"6,656.00",0.00,Residential Care
04/01/2017,Adults & Housing Department,Royal Society For The Blind,Residential Permanent,"1,920.00",0.00,Residential Care
04/01/2017,Adults & Housing Department,Royal Society For The Blind,Residential Permanent,"1,600.00",0.00,Residential Care
04/01/2017,Adults & Housing Department,Royal Society For The Blind,Residential Permanent,762.86,0.00,Residential Care
04/01/2017,Adults & Housing Department,Royal Society For The Blind,Residential Permanent,"6,412.00",0.00,Residential Care
04/01/2017,Adults & Housing Department,Royal Society For The Blind,Residential Permanent,736.00,0.00,Residential Care
04/01/2017,Adults & Housing Department,Royal Society For The Blind,Residential Permanent,"1,836.00",0.00,Residential Care
04/01/2017,Adults & Housing Department,Royal Society For The Blind,Residential Permanent,"1,900.00",0.00,Residential Care
04/01/2017,Adults & Housing Department,Royal Society For The Blind,Residential Permanent,720.00,0.00,Residential Care
04/01/2017,Adults & Housing Department,Royal Society For The Blind,Residential Permanent,"1,836.00",0.00,Residential Care
04/01/2017,Adults & Housing Department,Royal Society For The Blind,Residential Permanent,504.00,0.00,Residential Care
04/01/2017,Adults & Housing Department,Royal Society For The Blind,Residential Permanent,"1,836.00",0.00,Residential Care
04/01/2017,Adults & Housing Department,Royal Society For The Blind,Residential Permanent,"1,836.00",0.00,Residential Care
04/01/2017,Adults & Housing Department,Royal Society For The Blind,Residential Permanent,"1,596.00",0.00,Residential Care
04/01/2017,Adults & Housing Department,Royal Society For The Blind,Residential Permanent,"1,900.00",0.00,Residential Care
04/01/2017,Adults & Housing Department,Royal Society For The Blind,Residential Permanent,"1,704.00",0.00,Residential Care
04/01/2017,Adults & Housing Department,Royal Society For The Blind,Residential Permanent,"1,900.00",0.00,Residential Care
04/01/2017,Adults & Housing Department,Royal Society For The Blind,Residential Permanent,"7,420.00",0.00,Residential Care
04/01/2017,Adults & Housing Department,Royal Society For The Blind,Residential Permanent,"1,436.00",0.00,Residential Care
04/01/2017,Adults & Housing Department,Royal Society For The Blind,Residential Short Stay,540.00,0.00,Residential Care
04/01/2017,Adults & Housing Department,Royal Society For The Blind,Residential Short Stay,852.00,0.00,Residential Care
04/01/2017,Adults & Housing Department,Royal Society For The Blind,Residential Short Stay,"1,780.00",0.00,Residential Care
04/01/2017,Adults & Housing Department,Royal Society For The Blind,Residential Short Stay,"1,271.43",0.00,Residential Care
04/01/2017,Adults & Housing Department,Rushcliffe Care,Residential Permanent,"1,624.00",0.00,Residential Care
04/01/2017,Adults & Housing Department,Rushcliffe Care,Residential Permanent,"1,024.00",0.00,Residential Care
04/01/2017,Adults & Housing Department,Rushcliffe Care,Residential Permanent,"1,887.20",0.00,Residential Care
04/01/2017,Adults & Housing Department,Rushcliffe Care,Residential Permanent,"1,780.00",0.00,Residential Care
04/01/2017,Adults & Housing Department,Rushcliffe Care,Residential Permanent,"2,193.56",0.00,Residential Care
04/01/2017,Adults & Housing Department,Rushcliffe Care,Residential Permanent,"2,450.92",0.00,Residential Care
04/01/2017,Adults & Housing Department,Rushcliffe Care,Residential Permanent,"1,989.08",0.00,Residential Care
04/01/2017,Adults & Housing Department,Rushcliffe Care Group,Nursing Permanent,"2,268.00",0.00,Nursing Care
04/01/2017,Adults & Housing Department,Rushcliffe Care Group,Residential Permanent,"7,200.00",0.00,Residential Care
04/01/2017,Adults & Housing Department,Rushcliffe Care Limited - Parkmanor Care  Home,Nursing Permanent,"1,700.00",0.00,Nursing Care
04/01/2017,Adults & Housing Department,Rushcliffe Care Ltd,Residential Permanent,"1,988.92",0.00,Residential Care
04/01/2017,Adults & Housing Department,Rushcliffe Care Ltd,Residential Permanent,"2,143.60",0.00,Residential Care
04/01/2017,Adults & Housing Department,Rushey Mead Manor Care Home,Interim Nursing (Delayed Discharges),"1,058.29",0.00,Nursing Care
04/01/2017,Adults & Housing Department,Rushey Mead Manor Care Home,Interim Residential (Delayed Discharges),852.00,0.00,Residential Care
04/01/2017,Adults & Housing Department,Rushey Mead Manor Care Home,Interim Residential (Delayed Discharges),547.71,0.00,Residential Care
04/01/2017,Adults & Housing Department,Rushey Mead Manor Care Home,Interim Residential (Delayed Discharges),912.86,0.00,Residential Care
04/01/2017,Adults & Housing Department,Rushey Mead Manor Care Home,Interim Residential (Delayed Discharges),852.00,0.00,Residential Care
04/01/2017,Adults & Housing Department,Rushey Mead Manor Care Home,Nursing Permanent,"1,852.00",0.00,Nursing Care
04/01/2017,Adults & Housing Department,Rushey Mead Manor Care Home,Nursing Permanent,"1,852.00",0.00,Nursing Care
04/01/2017,Adults & Housing Department,Rushey Mead Manor Care Home,Nursing Permanent,"1,852.00",0.00,Nursing Care
04/01/2017,Adults & Housing Department,Rushey Mead Manor Care Home,Nursing Permanent,"1,852.00",0.00,Nursing Care
04/01/2017,Adults & Housing Department,Rushey Mead Manor Care Home,Nursing Permanent,"1,852.00",0.00,Nursing Care
04/01/2017,Adults & Housing Department,Rushey Mead Manor Care Home,Nursing Permanent,"1,852.00",0.00,Nursing Care
04/01/2017,Adults & Housing Department,Rushey Mead Manor Care Home,Nursing Permanent,"1,852.00",0.00,Nursing Care
04/01/2017,Adults & Housing Department,Rushey Mead Manor Care Home,Nursing Permanent,"1,852.00",0.00,Nursing Care
04/01/2017,Adults & Housing Department,Rushey Mead Manor Care Home,Nursing Permanent,"1,852.00",0.00,Nursing Care
04/01/2017,Adults & Housing Department,Rushey Mead Manor Care Home,Nursing Permanent,"1,852.00",0.00,Nursing Care
04/01/2017,Adults & Housing Department,Rushey Mead Manor Care Home,Nursing Permanent,"1,852.00",0.00,Nursing Care
04/01/2017,Adults & Housing Department,Rushey Mead Manor Care Home,Nursing Permanent,"1,852.00",0.00,Nursing Care
04/01/2017,Adults & Housing Department,Rushey Mead Manor Care Home,Nursing Permanent,"1,852.00",0.00,Nursing Care
04/01/2017,Adults & Housing Department,Rushey Mead Manor Care Home,Nursing Permanent,"1,852.00",0.00,Nursing Care
04/01/2017,Adults & Housing Department,Rushey Mead Manor Care Home,Nursing Permanent,"1,587.52",0.00,Nursing Care
04/01/2017,Adults & Housing Department,Rushey Mead Manor Care Home,Nursing Permanent,"1,852.00",0.00,Nursing Care
04/01/2017,Adults & Housing Department,Rushey Mead Manor Care Home,Residential Permanent,"1,704.00",0.00,Residential Care
04/01/2017,Adults & Housing Department,Rushey Mead Manor Care Home,Residential Permanent,"1,704.00",0.00,Residential Care
04/01/2017,Adults & Housing Department,Rushey Mead Manor Care Home,Residential Permanent,"1,704.00",0.00,Residential Care
04/01/2017,Adults & Housing Department,Rushey Mead Manor Care Home,Residential Permanent,"1,900.00",0.00,Residential Care
04/01/2017,Adults & Housing Department,Rushey Mead Manor Care Home,Residential Permanent,"1,900.00",0.00,Residential Care
04/01/2017,Adults & Housing Department,Rushey Mead Manor Care Home,Residential Permanent,"1,900.00",0.00,Residential Care
04/01/2017,Adults & Housing Department,Rushey Mead Manor Care Home,Residential Permanent,"1,732.00",0.00,Residential Care
04/01/2017,Adults & Housing Department,Rushey Mead Manor Care Home,Residential Permanent,"1,732.00",0.00,Residential Care
04/01/2017,Adults & Housing Department,Rushey Mead Manor Care Home,Residential Permanent,"1,900.00",0.00,Residential Care
04/01/2017,Adults & Housing Department,Rushey Mead Manor Care Home,Residential Permanent,"1,900.00",0.00,Residential Care
04/01/2017,Adults & Housing Department,Rushey Mead Manor Care Home,Residential Permanent,"1,900.00",0.00,Residential Care
04/01/2017,Adults & Housing Department,Rushey Mead Manor Care Home,Residential Short Stay,"1,696.43",0.00,Residential Care
04/01/2017,Adults & Housing Department,Rushey Mead Manor Care Home,Residential Short Stay,"1,836.00",0.00,Residential Care
04/01/2017,Adults & Housing Department,Rushey Mead Manor Care Home,Residential Short Stay,610.71,0.00,Residential Care
04/01/2017,Adults & Housing Department,Rushey Mead Manor Care Home,Residential Short Stay,"1,289.29",0.00,Residential Care
04/01/2017,Adults & Housing Department,Rushey Mead Manor Care Home,Residential Short Stay,"1,017.86",0.00,Residential Care
04/01/2017,Adults & Housing Department,Ryedale House Ltd,Residential Permanent,"1,900.00",0.00,Residential Care
04/01/2017,Adults & Housing Department,Ryedale House Ltd,Residential Permanent,"1,900.00",0.00,Residential Care
04/01/2017,Adults & Housing Department,Ryedale House Ltd,Residential Permanent,"1,221.43",0.00,Residential Care
04/01/2017,Adults & Housing Department,Ryedale House Ltd,Residential Permanent,"1,900.00",0.00,Residential Care
04/01/2017,Adults & Housing Department,Ryedale House Ltd,Residential Permanent,"2,266.36",0.00,Residential Care
04/01/2017,Adults & Housing Department,Ryedale House Ltd,Residential Permanent,"1,900.00",0.00,Residential Care
04/01/2017,Adults & Housing Department,Ryedale House Ltd,Residential Permanent,"1,900.00",0.00,Residential Care
04/01/2017,Adults & Housing Department,Ryedale House Ltd,Residential Permanent,"3,857.36",0.00,Residential Care
04/01/2017,Education & Childrens Services,Salma Daycare,Neg Pvt Vol & Ind Providers,"16,640.75",0.00,Voluntary Organisations
04/01/2017,Adults & Housing Department,Samalodge Ltd T/A Anita Jane�s Lodge,Residential Permanent,"1,528.00",0.00,Residential Care
04/01/2017,Adults & Housing Department,Samalodge Ltd T/A Anita Jane�s Lodge,Residential Permanent,"1,528.00",0.00,Residential Care
04/01/2017,Adults & Housing Department,Samalodge Ltd T/A Anita Jane�s Lodge,Residential Permanent,"1,900.00",0.00,Residential Care
04/01/2017,Adults & Housing Department,Samalodge Ltd T/A Anita Jane�s Lodge,Residential Permanent,"1,528.00",0.00,Residential Care
04/01/2017,Adults & Housing Department,Samalodge Ltd T/A Anita Jane�s Lodge,Residential Permanent,"1,704.00",0.00,Residential Care
04/01/2017,Adults & Housing Department,Samalodge Ltd T/A Anita Jane�s Lodge,Residential Permanent,"1,528.00",0.00,Residential Care
04/01/2017,Adults & Housing Department,Samalodge Ltd T/A Anita Jane�s Lodge,Residential Permanent,704.40,0.00,Residential Care
04/01/2017,Adults & Housing Department,Samalodge Ltd T/A Anita Jane�s Lodge,Residential Permanent,761.88,0.00,Residential Care
04/01/2017,Adults & Housing Department,Samalodge Ltd T/A Anita Jane�s Lodge,Residential Permanent,"1,528.00",0.00,Residential Care
04/01/2017,Adults & Housing Department,Samalodge Ltd T/A Anita Jane�s Lodge,Residential Permanent,"1,900.00",0.00,Residential Care
04/01/2017,Adults & Housing Department,Samalodge Ltd T/A Anita Jane�s Lodge,Residential Short Stay,"1,528.00",0.00,Residential Care
04/01/2017,Adults & Housing Department,Sanctuary Care Ltd t/a Asra House,Residential Permanent,"1,704.00",0.00,Residential Care
04/01/2017,Adults & Housing Department,Sanctuary Care Ltd t/a Asra House,Residential Permanent,"1,900.00",0.00,Residential Care
04/01/2017,Adults & Housing Department,Sanctuary Care Ltd t/a Asra House,Residential Permanent,"1,704.00",0.00,Residential Care
04/01/2017,Adults & Housing Department,Sanctuary Care Ltd t/a Asra House,Residential Permanent,"1,900.00",0.00,Residential Care
04/01/2017,Adults & Housing Department,Sanctuary Care Ltd t/a Asra House,Residential Permanent,"1,704.00",0.00,Residential Care
04/01/2017,Adults & Housing Department,Sanctuary Care Ltd t/a Asra House,Residential Permanent,"1,900.00",0.00,Residential Care
04/01/2017,Adults & Housing Department,Sanctuary Care Ltd t/a Asra House,Residential Permanent,"1,900.00",0.00,Residential Care
04/01/2017,Adults & Housing Department,Sanctuary Care Ltd t/a Asra House,Residential Permanent,"1,900.00",0.00,Residential Care
04/01/2017,Adults & Housing Department,Sanctuary Care Ltd t/a Asra House,Residential Permanent,"1,900.00",0.00,Residential Care
04/01/2017,Adults & Housing Department,Sanctuary Care Ltd t/a Asra House,Residential Permanent,"1,704.00",0.00,Residential Care
04/01/2017,Adults & Housing Department,Sanctuary Care Ltd t/a Asra House,Residential Permanent,"1,900.00",0.00,Residential Care
04/01/2017,Adults & Housing Department,Sanctuary Care Ltd t/a Asra House,Residential Permanent,"1,900.00",0.00,Residential Care
04/01/2017,Adults & Housing Department,Sanctuary Care Ltd t/a Asra House,Residential Permanent,"1,732.00",0.00,Residential Care
04/01/2017,Adults & Housing Department,Sanctuary Care Ltd t/a Asra House,Residential Permanent,"1,704.00",0.00,Residential Care
04/01/2017,Adults & Housing Department,Sanctuary Care Ltd t/a Asra House,Residential Permanent,"1,704.00",0.00,Residential Care
04/01/2017,Adults & Housing Department,Sanctuary Care Ltd t/a Asra House,Residential Short Stay,"1,704.00",0.00,Residential Care
04/01/2017,Adults & Housing Department,Sanctuary Home Care Limited T/a Skelton Court,Residential Permanent,"1,732.00",0.00,Residential Care
04/01/2017,Adults & Housing Department,Sanctuary Home Care Limited T/a Skelton Court,Residential Permanent,"1,732.00",0.00,Residential Care
04/01/2017,Adults & Housing Department,Sanctuary Home Care Limited T/a Skelton Court,Residential Permanent,"1,732.00",0.00,Residential Care
04/01/2017,Adults & Housing Department,Sanctuary Home Care Limited T/a Skelton Court,Residential Permanent,"1,732.00",0.00,Residential Care
04/01/2017,Adults & Housing Department,Sanctuary Home Care Limited T/a Skelton Court,Residential Permanent,597.12,0.00,Residential Care
04/01/2017,Adults & Housing Department,Sanctuary Home Care Limited T/a Skelton Court,Residential Permanent,"1,732.00",0.00,Residential Care
04/01/2017,Adults & Housing Department,Sanctuary Home Care Limited T/a Skelton Court,Residential Permanent,"1,732.00",0.00,Residential Care
04/01/2017,Adults & Housing Department,Sanctuary Home Care Limited T/a Skelton Court,Residential Permanent,"1,900.00",0.00,Residential Care
04/01/2017,Adults & Housing Department,Sanctuary Home Care Limited T/a Skelton Court,Residential Permanent,"1,732.00",0.00,Residential Care
04/01/2017,Education & Childrens Services,Senad Ltd,Independent School Fees,"89,578.34",0.00,Independent School Fees
04/01/2017,Education & Childrens Services,Shama Womens Training Centre,Neg Pvt Vol & Ind Providers,756.00,0.00,Voluntary Organisations
04/01/2017,Education & Childrens Services,Shanklin Day Nursery,Neg Pvt Vol & Ind Providers,"9,015.74",0.00,Voluntary Organisations
04/01/2017,Adults & Housing Department,Signature South Lodge,Residential Permanent,"1,900.00",0.00,Residential Care
04/01/2017,Adults & Housing Department,Signature South Lodge,Residential Permanent,"1,128.00",0.00,Residential Care
04/01/2017,Adults & Housing Department,Signature South Lodge,Residential Permanent,"1,900.00",0.00,Residential Care
04/01/2017,Adults & Housing Department,Signature South Lodge,Residential Permanent,"2,541.84",0.00,Residential Care
04/01/2017,City Developments and Neighbourhood,Snackline Direct Ltd,Catering - Provisions,850.92,170.18,Catering Provisions / Food & Drink
04/01/2017,Education & Childrens Services,Somali Development Services,Neg Pvt Vol & Ind Providers,"5,218.50",0.00,Voluntary Organisations
04/01/2017,Adults & Housing Department,SR Care Ltd (The Chestnuts),Residential Permanent,"2,299.12",0.00,Residential Care
04/01/2017,Adults & Housing Department,St Bennetts Care Home,Residential Permanent,"1,900.00",0.00,Residential Care
04/01/2017,Adults & Housing Department,St Bennetts Care Home,Residential Permanent,"1,900.00",0.00,Residential Care
04/01/2017,Adults & Housing Department,St Bennetts Care Home,Residential Permanent,"1,900.00",0.00,Residential Care
04/01/2017,Adults & Housing Department,St Bennetts Care Home,Residential Permanent,"1,704.00",0.00,Residential Care
04/01/2017,Adults & Housing Department,St Bennetts Care Home,Residential Permanent,"1,900.00",0.00,Residential Care
04/01/2017,Adults & Housing Department,St Bennetts Care Home,Residential Permanent,"1,900.00",0.00,Residential Care
04/01/2017,Adults & Housing Department,St Bennetts Care Home,Residential Permanent,"1,900.00",0.00,Residential Care
04/01/2017,Adults & Housing Department,St Bennetts Care Home,Residential Permanent,"1,704.00",0.00,Residential Care
04/01/2017,Adults & Housing Department,St Bennetts Care Home,Residential Permanent,"1,900.00",0.00,Residential Care
04/01/2017,Adults & Housing Department,St Bennetts Care Home,Residential Permanent,"1,900.00",0.00,Residential Care
04/01/2017,Adults & Housing Department,St Bennetts Care Home,Residential Permanent,"1,900.00",0.00,Residential Care
04/01/2017,Adults & Housing Department,St Bennetts Care Home,Residential Permanent,"1,900.00",0.00,Residential Care
04/01/2017,Adults & Housing Department,St Bennetts Care Home,Residential Permanent,"1,704.00",0.00,Residential Care
04/01/2017,Adults & Housing Department,St Bennetts Care Home,Residential Permanent,"1,900.00",0.00,Residential Care
04/01/2017,Adults & Housing Department,St Bennetts Care Home,Residential Short Stay,"1,521.43",0.00,Residential Care
04/01/2017,Adults & Housing Department,St Bennetts Care Home,Residential Short Stay,"1,676.00",0.00,Residential Care
04/01/2017,Adults & Housing Department,St Bennetts Care Home,Residential Short Stay,"1,582.29",0.00,Residential Care
04/01/2017,Adults & Housing Department,St Bennetts Care Home,Residential Short Stay,"1,732.00",0.00,Residential Care
04/01/2017,Education & Childrens Services,St Georges Nursery School,Neg Pvt Vol & Ind Providers,"12,363.75",0.00,Voluntary Organisations
04/01/2017,Education & Childrens Services,St Marys Pre School Playgroup,Neg Pvt Vol & Ind Providers,"17,333.12",0.00,Voluntary Organisations
04/01/2017,Education & Childrens Services,St.Crispins School,Neg Pvt Vol & Ind Providers,"9,243.99",0.00,Voluntary Organisations
04/01/2017,Education & Childrens Services,Stanhope House Day Nursery,Neg Pvt Vol & Ind Providers,"6,841.87",0.00,Voluntary Organisations
04/01/2017,Education & Childrens Services,Step by Step Childcare,Neg Pvt Vol & Ind Providers,"7,513.59",0.00,Voluntary Organisations
04/01/2017,Adults & Housing Department,Stepping Stone t/a Ash Tree,Residential Permanent,"6,237.80",0.00,Residential Care
04/01/2017,City Developments and Neighbourhood,Stone Edge,Responsive,"11,785.55","2,357.11",Building Services / Repairs & Maintenance  Fixtures & Fittings
04/01/2017,Adults & Housing Department,Stonesby House,Residential Permanent,"1,528.00",0.00,Residential Care
04/01/2017,Adults & Housing Department,Stonesby House,Residential Permanent,"1,528.00",0.00,Residential Care
04/01/2017,Adults & Housing Department,Stonesby House,Residential Permanent,"1,528.00",0.00,Residential Care
04/01/2017,Adults & Housing Department,Stonesby House,Residential Permanent,"1,900.00",0.00,Residential Care
04/01/2017,Adults & Housing Department,Stonesby House,Residential Respite,891.43,0.00,Residential Care
04/01/2017,Adults & Housing Department,Stonesby House,Residential Respite,618.57,0.00,Residential Care
04/01/2017,Adults & Housing Department,Stonesby House,Residential Respite,542.86,0.00,Residential Care
04/01/2017,Adults & Housing Department,Stonesby House,Residential Short Stay,"1,732.00",0.00,Residential Care
04/01/2017,Adults & Housing Department,STONESBY HOUSE LTD,Residential Permanent,792.88,0.00,Residential Care
04/01/2017,Adults & Housing Department,STONESBY HOUSE LTD,Residential Permanent,"1,506.56",0.00,Residential Care
04/01/2017,Adults & Housing Department,STONESBY HOUSE LTD,Residential Permanent,"1,900.00",0.00,Residential Care
04/01/2017,Adults & Housing Department,STONESBY HOUSE LTD,Residential Permanent,"1,704.00",0.00,Residential Care
04/01/2017,Adults & Housing Department,STONESBY HOUSE LTD,Residential Permanent,"1,864.00",0.00,Residential Care
04/01/2017,Adults & Housing Department,STONESBY HOUSE LTD,Residential Permanent,"1,900.00",0.00,Residential Care
04/01/2017,Adults & Housing Department,STONESBY HOUSE LTD,Residential Permanent,"1,900.00",0.00,Residential Care
04/01/2017,Adults & Housing Department,STONESBY HOUSE LTD,Residential Permanent,"2,091.92",0.00,Residential Care
04/01/2017,Adults & Housing Department,STONESBY HOUSE LTD,Residential Permanent,"1,900.00",0.00,Residential Care
04/01/2017,Adults & Housing Department,STONESBY HOUSE LTD,Residential Respite,556.71,0.00,Residential Care
04/01/2017,Adults & Housing Department,STONESBY HOUSE LTD,Residential Respite,"1,093.50",0.00,Residential Care
04/01/2017,Adults & Housing Department,STONESBY HOUSE LTD,Residential Respite,"1,249.00",0.00,Residential Care
04/01/2017,Adults & Housing Department,STONESBY HOUSE LTD,Residential Respite,"1,249.00",0.00,Residential Care
04/01/2017,Adults & Housing Department,STONESBY HOUSE LTD,Residential Respite,866.00,0.00,Residential Care
04/01/2017,Adults & Housing Department,STONESBY HOUSE LTD,Residential Respite,535.29,0.00,Residential Care
04/01/2017,Adults & Housing Department,STONESBY HOUSE LTD,Residential Respite,"1,831.14",0.00,Residential Care
04/01/2017,Adults & Housing Department,STONESBY HOUSE LTD,Residential Respite,972.00,0.00,Residential Care
